Workbook

Sheet Дашборд

Sheet KPI
I7: =IFERROR(INDEX(Сотрудники!$A$3:$A$40,SMALL(IF((Сотрудники!$H$3:$H$40=TRUE)*(Сотрудники!$D$3:$D$40="Мастер"),ROW($E$1:$E$26)),ROW(E1))),"") -> Белозеров В. | L7: =IFERROR(INDEX(Таблица57[[2019]:[2021]],MATCH(I7,Таблица57[ФИО],0),MATCH(TEXT(Расчеты!$D$2,"ГГГГ"),Таблица57[[#Headers],[2019]:[2021]],0)),"") -> 15000 | N7: =Расчеты!I3 -> 6 | P7: =IFERROR(VLOOKUP(I7,'pivot table'!AH:AI,2,FALSE),"") -> 5 | R7: =IFERROR(P7/$N$7,"") -> 0.8333333333 | T7: =IFERROR(VLOOKUP(I7,Расчеты!S:T,2,FALSE),"") -> 15000
I8: =IFERROR(INDEX(Сотрудники!$A$3:$A$40,SMALL(IF((Сотрудники!$H$3:$H$40=TRUE)*(Сотрудники!$D$3:$D$40="Мастер"),ROW($E$1:$E$26)),ROW(E2))),"") -> Белоусов В. | L8: =IFERROR(INDEX(Таблица57[[2019]:[2021]],MATCH(I8,Таблица57[ФИО],0),MATCH(TEXT(Расчеты!$D$2,"ГГГГ"),Таблица57[[#Headers],[2019]:[2021]],0)),"") -> 15000 | P8: =IFERROR(VLOOKUP(I8,'pivot table'!AH:AI,2,FALSE),"") -> 3 | R8: =IFERROR(P8/$N$7,"") -> 0.5 | T8: =IFERROR(VLOOKUP(I8,Расчеты!S:T,2,FALSE),"") -> 15000
I9: =IFERROR(INDEX(Сотрудники!$A$3:$A$40,SMALL(IF((Сотрудники!$H$3:$H$40=TRUE)*(Сотрудники!$D$3:$D$40="Мастер"),ROW($E$1:$E$26)),ROW(E3))),"") -> Беспалов Г. | L9: =IFERROR(INDEX(Таблица57[[2019]:[2021]],MATCH(I9,Таблица57[ФИО],0),MATCH(TEXT(Расчеты!$D$2,"ГГГГ"),Таблица57[[#Headers],[2019]:[2021]],0)),"") -> 15000 | P9: =IFERROR(VLOOKUP(I9,'pivot table'!AH:AI,2,FALSE),"") -> 2 | R9: 0.3333333333 | T9: =IFERROR(VLOOKUP(I9,Расчеты!S:T,2,FALSE),"") -> 15000
I10: =IFERROR(INDEX(Сотрудники!$A$3:$A$40,SMALL(IF((Сотрудники!$H$3:$H$40=TRUE)*(Сотрудники!$D$3:$D$40="Мастер"),ROW($E$1:$E$26)),ROW(E4))),"") -> Минин В. | L10: =IFERROR(INDEX(Таблица57[[2019]:[2021]],MATCH(I10,Таблица57[ФИО],0),MATCH(TEXT(Расчеты!$D$2,"ГГГГ"),Таблица57[[#Headers],[2019]:[2021]],0)),"") -> 15000 | P10: =IFERROR(VLOOKUP(I10,'pivot table'!AH:AI,2,FALSE),"") -> 4 | R10: 0.6666666667 | T10: =IFERROR(VLOOKUP(I10,Расчеты!S:T,2,FALSE),"") -> 15000
I11: =IFERROR(INDEX(Сотрудники!$A$3:$A$40,SMALL(IF((Сотрудники!$H$3:$H$40=TRUE)*(Сотрудники!$D$3:$D$40="Мастер"),ROW($E$1:$E$26)),ROW(E5))),"") -> Субботин С. | L11: =IFERROR(INDEX(Таблица57[[2019]:[2021]],MATCH(I11,Таблица57[ФИО],0),MATCH(TEXT(Расчеты!$D$2,"ГГГГ"),Таблица57[[#Headers],[2019]:[2021]],0)),"") -> 15000 | P11: =IFERROR(VLOOKUP(I11,'pivot table'!AH:AI,2,FALSE),"") -> 3 | R11: 0.5 | T11: =IFERROR(VLOOKUP(I11,Расчеты!S:T,2,FALSE),"") -> 15000
I12: =IFERROR(INDEX(Сотрудники!$A$3:$A$40,SMALL(IF((Сотрудники!$H$3:$H$40=TRUE)*(Сотрудники!$D$3:$D$40="Мастер"),ROW($E$1:$E$26)),ROW(E6))),"") -> Устинов С. | L12: =IFERROR(INDEX(Таблица57[[2019]:[2021]],MATCH(I12,Таблица57[ФИО],0),MATCH(TEXT(Расчеты!$D$2,"ГГГГ"),Таблица57[[#Headers],[2019]:[2021]],0)),"") -> 12000 | P12: =IFERROR(VLOOKUP(I12,'pivot table'!AH:AI,2,FALSE),"") -> 4 | R12: 0.6666666667 | T12: =IFERROR(VLOOKUP(I12,Расчеты!S:T,2,FALSE),"") -> 12000
I13: =IFERROR(INDEX(Сотрудники!$A$3:$A$40,SMALL(IF((Сотрудники!$H$3:$H$40=TRUE)*(Сотрудники!$D$3:$D$40="Мастер"),ROW($E$1:$E$26)),ROW(E7))),"") -> Шарапов В. | L13: =IFERROR(INDEX(Таблица57[[2019]:[2021]],MATCH(I13,Таблица57[ФИО],0),MATCH(TEXT(Расчеты!$D$2,"ГГГГ"),Таблица57[[#Headers],[2019]:[2021]],0)),"") -> 18000 | P13: =IFERROR(VLOOKUP(I13,'pivot table'!AH:AI,2,FALSE),"") -> 6 | R13: 1 | T13: =IFERROR(VLOOKUP(I13,Расчеты!S:T,2,FALSE),"") -> 23000
I14: =IFERROR(INDEX(Сотрудники!$A$3:$A$40,SMALL(IF((Сотрудники!$H$3:$H$40=TRUE)*(Сотрудники!$D$3:$D$40="Мастер"),ROW($E$1:$E$26)),ROW(E8))),"") ->  | L14: =IFERROR(INDEX(Таблица57[[2019]:[2021]],MATCH(I14,Таблица57[ФИО],0),MATCH(TEXT(Расчеты!$D$2,"ГГГГ"),Таблица57[[#Headers],[2019]:[2021]],0)),"") ->  | P14: =IFERROR(VLOOKUP(I14,'pivot table'!AH:AI,2,FALSE),"") ->  | T14: =IFERROR(VLOOKUP(I14,Расчеты!S:T,2,FALSE),"") -> 
I15: =IFERROR(INDEX(Сотрудники!$A$3:$A$40,SMALL(IF((Сотрудники!$H$3:$H$40=TRUE)*(Сотрудники!$D$3:$D$40="Мастер"),ROW($E$1:$E$26)),ROW(E9))),"") ->  | L15: =IFERROR(INDEX(Таблица57[[2019]:[2021]],MATCH(I15,Таблица57[ФИО],0),MATCH(TEXT(Расчеты!$D$2,"ГГГГ"),Таблица57[[#Headers],[2019]:[2021]],0)),"") ->  | P15: =IFERROR(VLOOKUP(I15,'pivot table'!AH:AI,2,FALSE),"") ->  | T15: =IFERROR(VLOOKUP(I15,Расчеты!S:T,2,FALSE),"") -> 
I16: =IFERROR(INDEX(Сотрудники!$A$3:$A$40,SMALL(IF((Сотрудники!$H$3:$H$40=TRUE)*(Сотрудники!$D$3:$D$40="Мастер"),ROW($E$1:$E$26)),ROW(E10))),"") ->  | L16: =IFERROR(INDEX(Таблица57[[2019]:[2021]],MATCH(I16,Таблица57[ФИО],0),MATCH(TEXT(Расчеты!$D$2,"ГГГГ"),Таблица57[[#Headers],[2019]:[2021]],0)),"") ->  | P16: =IFERROR(VLOOKUP(I16,'pivot table'!AH:AI,2,FALSE),"") ->  | R16: =IFERROR(P16/$N$7,"") ->  | T16: =IFERROR(VLOOKUP(I16,Расчеты!S:T,2,FALSE),"") -> 
I17: =IFERROR(INDEX(Сотрудники!$A$3:$A$40,SMALL(IF((Сотрудники!$H$3:$H$40=TRUE)*(Сотрудники!$D$3:$D$40="Мастер"),ROW($E$1:$E$26)),ROW(E11))),"") -> 
I19: =IFERROR(INDEX(Сотрудники!$A$3:$A$40,SMALL(IF((Сотрудники!$H$3:$H$40=TRUE)*(Сотрудники!$D$3:$D$40="Менеджер"),ROW($E$1:$E$26)),ROW(E1))),"") -> Гончарова Н. | L19: =IFERROR(INDEX(Таблица57[[2019]:[2021]],MATCH(I19,Таблица57[ФИО],0),MATCH(TEXT(Расчеты!$D$2,"ГГГГ"),Таблица57[[#Headers],[2019]:[2021]],0)),"") -> 18000 | N19: =Расчеты!I2 -> 230000 | P19: =IFERROR(VLOOKUP(I19,'pivot table'!AH:AI,2,FALSE),"") -> 100200 | R19: =IFERROR(P19/$N$19,"") -> 0.4356521739 | T19: =IFERROR(VLOOKUP(I19,Расчеты!S:T,2,FALSE),"") -> 18000
I20: =IFERROR(INDEX(Сотрудники!$A$3:$A$40,SMALL(IF((Сотрудники!$H$3:$H$40=TRUE)*(Сотрудники!$D$3:$D$40="Менеджер"),ROW($E$1:$E$26)),ROW(E2))),"") -> Иванов И. | L20: =IFERROR(INDEX(Таблица57[[2019]:[2021]],MATCH(I20,Таблица57[ФИО],0),MATCH(TEXT(Расчеты!$D$2,"ГГГГ"),Таблица57[[#Headers],[2019]:[2021]],0)),"") -> 18000 | P20: =IFERROR(VLOOKUP(I20,'pivot table'!AH:AI,2,FALSE),"") -> 88500 | R20: =IFERROR(P20/$N$19,"") -> 0.3847826087 | T20: =IFERROR(VLOOKUP(I20,Расчеты!S:T,2,FALSE),"") -> 18000
I21: =IFERROR(INDEX(Сотрудники!$A$3:$A$40,SMALL(IF((Сотрудники!$H$3:$H$40=TRUE)*(Сотрудники!$D$3:$D$40="Менеджер"),ROW($E$1:$E$26)),ROW(E3))),"") -> Мишин М. | L21: =IFERROR(INDEX(Таблица57[[2019]:[2021]],MATCH(I21,Таблица57[ФИО],0),MATCH(TEXT(Расчеты!$D$2,"ГГГГ"),Таблица57[[#Headers],[2019]:[2021]],0)),"") -> 18000 | P21: =IFERROR(VLOOKUP(I21,'pivot table'!AH:AI,2,FALSE),"") -> 182685 | R21: 0.7942826087 | T21: =IFERROR(VLOOKUP(I21,Расчеты!S:T,2,FALSE),"") -> 18000 | W21: =Расчеты!B3 -> 18 ноя | X21: =Расчеты!A3 -> Субботин С.
I22: =IFERROR(INDEX(Сотрудники!$A$3:$A$40,SMALL(IF((Сотрудники!$H$3:$H$40=TRUE)*(Сотрудники!$D$3:$D$40="Менеджер"),ROW($E$1:$E$26)),ROW(E4))),"") -> Петров В. | L22: =IFERROR(INDEX(Таблица57[[2019]:[2021]],MATCH(I22,Таблица57[ФИО],0),MATCH(TEXT(Расчеты!$D$2,"ГГГГ"),Таблица57[[#Headers],[2019]:[2021]],0)),"") -> 18000 | P22: =IFERROR(VLOOKUP(I22,'pivot table'!AH:AI,2,FALSE),"") -> 202250 | R22: 0.8793478261 | T22: =IFERROR(VLOOKUP(I22,Расчеты!S:T,2,FALSE),"") -> 18000 | W22: =Расчеты!B4 ->  | X22: =Расчеты!A4 -> 
I23: =IFERROR(INDEX(Сотрудники!$A$3:$A$40,SMALL(IF((Сотрудники!$H$3:$H$40=TRUE)*(Сотрудники!$D$3:$D$40="Менеджер"),ROW($E$1:$E$26)),ROW(E5))),"") ->  | L23: =IFERROR(INDEX(Таблица57[[2019]:[2021]],MATCH(I23,Таблица57[ФИО],0),MATCH(TEXT(Расчеты!$D$2,"ГГГГ"),Таблица57[[#Headers],[2019]:[2021]],0)),"") ->  | P23: =IFERROR(VLOOKUP(I23,'pivot table'!AH:AI,2,FALSE),"") ->  | T23: =IFERROR(VLOOKUP(I23,Расчеты!S:T,2,FALSE),"") ->  | W23: =Расчеты!B5 ->  | X23: =Расчеты!A5 -> 
I24: =IFERROR(INDEX(Сотрудники!$A$3:$A$40,SMALL(IF((Сотрудники!$H$3:$H$40=TRUE)*(Сотрудники!$D$3:$D$40="Менеджер"),ROW($E$1:$E$26)),ROW(E6))),"") ->  | L24: =IFERROR(INDEX(Таблица57[[2019]:[2021]],MATCH(I24,Таблица57[ФИО],0),MATCH(TEXT(Расчеты!$D$2,"ГГГГ"),Таблица57[[#Headers],[2019]:[2021]],0)),"") ->  | P24: =IFERROR(VLOOKUP(I24,'pivot table'!AH:AI,2,FALSE),"") ->  | T24: =IFERROR(VLOOKUP(I24,Расчеты!S:T,2,FALSE),"") ->  | W24: =Расчеты!B6 ->  | X24: =Расчеты!A6 -> 
I25: =IFERROR(INDEX(Сотрудники!$A$3:$A$40,SMALL(IF((Сотрудники!$H$3:$H$40=TRUE)*(Сотрудники!$D$3:$D$40="Менеджер"),ROW($E$1:$E$26)),ROW(E7))),"") ->  | L25: =IFERROR(INDEX(Таблица57[[2019]:[2021]],MATCH(I25,Таблица57[ФИО],0),MATCH(TEXT(Расчеты!$D$2,"ГГГГ"),Таблица57[[#Headers],[2019]:[2021]],0)),"") ->  | P25: =IFERROR(VLOOKUP(I25,'pivot table'!AH:AI,2,FALSE),"") ->  | T25: =IFERROR(VLOOKUP(I25,Расчеты!S:T,2,FALSE),"") ->  | W25: =Расчеты!B7 ->  | X25: =Расчеты!A7 -> 
I26: =IFERROR(INDEX(Сотрудники!$A$3:$A$40,SMALL(IF((Сотрудники!$H$3:$H$40=TRUE)*(Сотрудники!$D$3:$D$40="Менеджер"),ROW($E$1:$E$26)),ROW(E8))),"") ->  | L26: =IFERROR(INDEX(Таблица57[[2019]:[2021]],MATCH(I26,Таблица57[ФИО],0),MATCH(TEXT(Расчеты!$D$2,"ГГГГ"),Таблица57[[#Headers],[2019]:[2021]],0)),"") ->  | P26: =IFERROR(VLOOKUP(I26,'pivot table'!AH:AI,2,FALSE),"") ->  | T26: =IFERROR(VLOOKUP(I26,Расчеты!S:T,2,FALSE),"") ->  | W26: =Расчеты!B8 ->  | X26: =Расчеты!A8 -> 

Sheet Сегодня

Sheet Шаблон
E10: =CONCATENATE("Здравствуйте! Сегодня ",TEXT(TODAY(),"ДД.ММ.ГГГГ")," в ",TEXT(INDIRECT("today!L"&today!M1),"ч:мм")," ожидайте мастера - ",INDIRECT("today!K"&today!M1)," ", " ", "Ваш заказ: ",INDIRECT("today!J"&today!M1)," ","Хорошего дня!") -> Здравствуйте! Сегодня 11.12.2021 в 10:00 ожидайте мастера - Беспалов Г. Ваш заказ: Выкройка и монтаж дополнительных углов Хорошего дня!

Sheet База заказов
A1: Дата заявки | B1: День | C1: Месяц | D1: Год | E1: Менеджер | F1: Услуга | G1: Наличн | H1: Безнал | I1: Скидка | J1: Итого | K1: Дата визита | L1: День визита | M1: Месяц визита | N1: Год визита | O1: Неделя визита | P1: Время визита | Q1: Адрес | R1: Мастер | S1: Клиент | T1: E-mail | U1: Телефон | V1: Трафик | W1: Статус | X1: Уведомление | Y1: Оценка клиента
A2: 43466 | B2: =DAY('База заказов'!$A2) -> 1 | C2: ='База заказов'!$A2 -> 2019-01-01 | D2: =YEAR('База заказов'!$A2) -> 2019 | E2: Иванов И. | F2: Демонтаж балконного блока | G2: 20000 | J2: =SUM(Table[[#This Row],[Наличн]:[Безнал]])-SUM(Table[[#This Row],[Наличн]:[Безнал]])*Table[[#This Row],[Скидка]] -> 20000 | K2: 43467 | P2: 10:30:00 | Q2: Ростов-на-Дону, Горького 151 | R2: Белоусов В. | S2: Клиент 1 | T2: mail@birdyx.ru | U2: 79008889900 | V2: Авито | W2: Завершено | X2: да | Y2: 5
A3: 43467 | B3: =DAY('База заказов'!$A3) -> 2 | C3: ='База заказов'!$A3 -> 2019-01-02 | D3: =YEAR('База заказов'!$A3) -> 2019 | E3: Гончарова Н. | F3: Укладка паркетной доски на клей | G3: 120000 | J3: =SUM(Table[[#This Row],[Наличн]:[Безнал]])-SUM(Table[[#This Row],[Наличн]:[Безнал]])*Table[[#This Row],[Скидка]] -> 120000 | K3: 43468 | P3: 10:00:00 | Q3: Ростов-на-Дону, Стартовая 18 | R3: Субботин С. | S3: Клиент 2 | T3: mail@birdyx.ru | U3: 79008889900 | V3: Авито | W3: Завершено | X3: да | Y3: 4
A4: 43468 | B4: =DAY('База заказов'!$A4) -> 3 | C4: ='База заказов'!$A4 -> 2019-01-03 | D4: =YEAR('База заказов'!$A4) -> 2019 | E4: Мишин М. | F4: Укладка кварцвиниловой плитки на подложку | G4: 34500 | J4: =SUM(Table[[#This Row],[Наличн]:[Безнал]])-SUM(Table[[#This Row],[Наличн]:[Безнал]])*Table[[#This Row],[Скидка]] -> 34500 | K4: 43469 | P4: 12:00:00 | Q4: Ростов-на-Дону, Жданова 15 | R4: Белозеров В. | S4: Клиент 3 | T4: mail@birdyx.ru | U4: 79008889900 | V4: Яндекс | W4: Завершено | X4: да | Y4: 4
A5: 43469 | B5: =DAY('База заказов'!$A5) -> 4 | C5: ='База заказов'!$A5 -> 2019-01-04 | D5: =YEAR('База заказов'!$A5) -> 2019 | E5: Иванов И. | F5: Укладка паркетной доски на подложку | G5: 12000 | J5: =SUM(Table[[#This Row],[Наличн]:[Безнал]])-SUM(Table[[#This Row],[Наличн]:[Безнал]])*Table[[#This Row],[Скидка]] -> 12000 | K5: 43470 | P5: 16:00:00 | Q5: Ростов-на-Дону, ул. Пацаева, д. 2 | R5: Устинов С. | S5: Клиент 4 | T5: mail@birdyx.ru | U5: 79008889900 | V5: Авито | W5: Завершено | X5: да | Y5: 4
A6: 43470 | B6: =DAY('База заказов'!$A6) -> 5 | C6: ='База заказов'!$A6 -> 2019-01-05 | D6: =YEAR('База заказов'!$A6) -> 2019 | E6: Петров В. | F6: Укладка массивной доски | G6: 20000 | J6: =SUM(Table[[#This Row],[Наличн]:[Безнал]])-SUM(Table[[#This Row],[Наличн]:[Безнал]])*Table[[#This Row],[Скидка]] -> 20000 | K6: 43471 | P6: 10:30:00 | Q6: Ростов-на-Дону, Горького 151 | R6: Белозеров В. | S6: Клиент 5 | T6: mail@birdyx.ru | U6: 79008889900 | V6: Авито | W6: Завершено | X6: да | Y6: 4
A7: 43497 | B7: =DAY('База заказов'!$A7) -> 1 | C7: ='База заказов'!$A7 -> 2019-02-01 | D7: =YEAR('База заказов'!$A7) -> 2019 | E7: Гончарова Н. | F7: Монтаж потолочного плинтуса | G7: 6000 | J7: =SUM(Table[[#This Row],[Наличн]:[Безнал]])-SUM(Table[[#This Row],[Наличн]:[Безнал]])*Table[[#This Row],[Скидка]] -> 6000 | K7: 43499 | P7: 10:30:00 | Q7: Ростов-на-Дону, Комарова, 24 | R7: Беспалов Г. | S7: Клиент 6 | T7: mail@birdyx.ru | U7: 79008889900 | V7: Авито | W7: Завершено | X7: да | Y7: 4
A8: 43498 | B8: =DAY('База заказов'!$A8) -> 2 | C8: ='База заказов'!$A8 -> 2019-02-02 | D8: =YEAR('База заказов'!$A8) -> 2019 | E8: Гончарова Н. | F8: Укладка массивной доски | G8: 340000 | J8: =SUM(Table[[#This Row],[Наличн]:[Безнал]])-SUM(Table[[#This Row],[Наличн]:[Безнал]])*Table[[#This Row],[Скидка]] -> 340000 | K8: 43500 | P8: 10:00:00 | Q8: Ростов-На-Дону, ул. Извилистая, д. 13/2 | R8: Устинов С. | S8: Клиент 7 | T8: mail@birdyx.ru | U8: 79008889900 | V8: Яндекс | W8: Завершено | X8: да | Y8: 4
A9: 43499 | B9: =DAY('База заказов'!$A9) -> 3 | C9: ='База заказов'!$A9 -> 2019-02-03 | D9: =YEAR('База заказов'!$A9) -> 2019 | E9: Мишин М. | F9: Монтаж потолочного плинтуса | G9: 23000 | J9: =SUM(Table[[#This Row],[Наличн]:[Безнал]])-SUM(Table[[#This Row],[Наличн]:[Безнал]])*Table[[#This Row],[Скидка]] -> 23000 | K9: 43501 | P9: 12:00:00 | Q9: Ростов-на-Дону, пер. Братский, д. 36 | R9: Белоусов В. | S9: Клиент 8 | T9: mail@birdyx.ru | U9: 79008889900 | V9: Авито | W9: Завершено | X9: да | Y9: 4
A10: 43525 | B10: =DAY('База заказов'!$A10) -> 1 | C10: ='База заказов'!$A10 -> 2019-03-01 | D10: =YEAR('База заказов'!$A10) -> 2019 | E10: Иванов И. | F10: Выкройка и монтаж дополнительных углов | G10: 230000 | J10: =SUM(Table[[#This Row],[Наличн]:[Безнал]])-SUM(Table[[#This Row],[Наличн]:[Безнал]])*Table[[#This Row],[Скидка]] -> 230000 | K10: 43528 | P10: 16:00:00 | Q10: Ростов-На-Дону, ул. Андрея Сладкова, д. 87 | R10: Устинов С. | S10: Клиент 9 | T10: mail@birdyx.ru | U10: 79008889900 | V10: Авито | W10: Завершено | X10: да | Y10: 4
A11: 43526 | B11: =DAY('База заказов'!$A11) -> 2 | C11: ='База заказов'!$A11 -> 2019-03-02 | D11: =YEAR('База заказов'!$A11) -> 2019 | E11: Петров В. | F11: Укладка паркетной доски на подложку | G11: 100000 | J11: =SUM(Table[[#This Row],[Наличн]:[Безнал]])-SUM(Table[[#This Row],[Наличн]:[Безнал]])*Table[[#This Row],[Скидка]] -> 100000 | K11: 43529 | P11: 10:30:00 | Q11: Ростов-на-Дону, ул. 339-й Стрелковой Дивизии, д. 33 | R11: Белозеров В. | S11: Клиент 10 | T11: mail@birdyx.ru | U11: 79008889900 | V11: Авито | W11: Завершено | X11: да | Y11: 4
A12: 43527 | B12: =DAY('База заказов'!$A12) -> 3 | C12: ='База заказов'!$A12 -> 2019-03-03 | D12: =YEAR('База заказов'!$A12) -> 2019 | E12: Иванов И. | F12: Демонтаж балконного блока | G12: 4500 | J12: =SUM(Table[[#This Row],[Наличн]:[Безнал]])-SUM(Table[[#This Row],[Наличн]:[Безнал]])*Table[[#This Row],[Скидка]] -> 4500 | K12: 43530 | P12: 10:30:00 | Q12: Ростов-на-Дону, Ленина 1 | R12: Беспалов Г. | S12: Клиент 11 | T12: mail@birdyx.ru | U12: 79008889900 | V12: Яндекс | W12: Завершено | X12: да | Y12: 4
A13: 43528 | B13: =DAY('База заказов'!$A13) -> 4 | C13: ='База заказов'!$A13 -> 2019-03-04 | D13: =YEAR('База заказов'!$A13) -> 2019 | E13: Гончарова Н. | F13: Демонтаж входной двери | H13: 65000 | J13: =SUM(Table[[#This Row],[Наличн]:[Безнал]])-SUM(Table[[#This Row],[Наличн]:[Безнал]])*Table[[#This Row],[Скидка]] -> 65000 | K13: 43531 | P13: 10:00:00 | Q13: Ростов-на-Дону, Михаила Нагибина 40 | R13: Устинов С. | S13: Клиент 12 | T13: mail@birdyx.ru | U13: 79008889900 | V13: Авито | W13: Завершено | X13: да | Y13: 4
A14: 43529 | B14: =DAY('База заказов'!$A14) -> 5 | C14: ='База заказов'!$A14 -> 2019-03-05 | D14: =YEAR('База заказов'!$A14) -> 2019 | E14: Иванов И. | F14: Укладка массивной доски | G14: 20000 | J14: =SUM(Table[[#This Row],[Наличн]:[Безнал]])-SUM(Table[[#This Row],[Наличн]:[Безнал]])*Table[[#This Row],[Скидка]] -> 20000 | K14: 43532 | P14: 12:00:00 | Q14: Ростов-на-Дону, Михаила Нагибина 40 | R14: Белоусов В. | S14: Клиент 13 | T14: mail@birdyx.ru | U14: 79008889900 | V14: Авито | W14: Завершено | X14: да | Y14: 5
A15: 43556 | B15: =DAY('База заказов'!$A15) -> 1 | C15: ='База заказов'!$A15 -> 2019-04-01 | D15: =YEAR('База заказов'!$A15) -> 2019 | E15: Петров В. | F15: Монтаж потолочного плинтуса | H15: 65400 | J15: =SUM(Table[[#This Row],[Наличн]:[Безнал]])-SUM(Table[[#This Row],[Наличн]:[Безнал]])*Table[[#This Row],[Скидка]] -> 65400 | K15: 43561 | P15: 16:00:00 | Q15: Ростов-на-Дону, ул. Таганрогская, д. 149/1 К 35 | R15: Белозеров В. | S15: Клиент 14 | T15: mail@birdyx.ru | U15: 79008889900 | V15: Авито | W15: Завершено | X15: да | Y15: 5
A16: 43557 | B16: =DAY('База заказов'!$A16) -> 2 | C16: ='База заказов'!$A16 -> 2019-04-02 | D16: =YEAR('База заказов'!$A16) -> 2019 | E16: Иванов И. | F16: Демонтаж душевого поддона | H16: 245500 | J16: =SUM(Table[[#This Row],[Наличн]:[Безнал]])-SUM(Table[[#This Row],[Наличн]:[Безнал]])*Table[[#This Row],[Скидка]] -> 245500 | K16: 43562 | P16: 10:30:00 | Q16: Ростов-На-Дону, ул. Большая Садовая, д. 115 | R16: Беспалов Г. | S16: Клиент 15 | T16: mail@birdyx.ru | U16: 79008889900 | V16: Авито | W16: Завершено | X16: да | Y16: 5
A17: 43586 | B17: =DAY('База заказов'!$A17) -> 1 | C17: ='База заказов'!$A17 -> 2019-05-01 | D17: =YEAR('База заказов'!$A17) -> 2019 | E17: Иванов И. | F17: Демонтаж балконного блока | H17: 540000 | J17: =SUM(Table[[#This Row],[Наличн]:[Безнал]])-SUM(Table[[#This Row],[Наличн]:[Безнал]])*Table[[#This Row],[Скидка]] -> 540000 | K17: 43597 | P17: 10:00:00 | Q17: Ростов-на-Дону, ул. Большая Садовая, д. 69 | R17: Устинов С. | S17: Клиент 16 | T17: mail@birdyx.ru | U17: 79008889900 | V17: Яндекс | W17: Завершено | X17: да | Y17: 5
A18: 43587 | B18: =DAY('База заказов'!$A18) -> 2 | C18: ='База заказов'!$A18 -> 2019-05-02 | D18: =YEAR('База заказов'!$A18) -> 2019 | E18: Гончарова Н. | F18: Укладка паркетной доски на клей | H18: 24500 | J18: =SUM(Table[[#This Row],[Наличн]:[Безнал]])-SUM(Table[[#This Row],[Наличн]:[Безнал]])*Table[[#This Row],[Скидка]] -> 24500 | K18: 43598 | P18: 12:00:00 | Q18: Ростов-на-Дону, пер. Университетский, д. 133 | R18: Белоусов В. | S18: Клиент 17 | T18: mail@birdyx.ru | U18: 79008889900 | V18: Авито | W18: Завершено | X18: да | Y18: 5
A19: 43588 | B19: =DAY('База заказов'!$A19) -> 3 | C19: ='База заказов'!$A19 -> 2019-05-03 | D19: =YEAR('База заказов'!$A19) -> 2019 | E19: Мишин М. | F19: Укладка кварцвиниловой плитки на подложку | H19: 8900 | J19: =SUM(Table[[#This Row],[Наличн]:[Безнал]])-SUM(Table[[#This Row],[Наличн]:[Безнал]])*Table[[#This Row],[Скидка]] -> 8900 | K19: 43599 | P19: 16:00:00 | Q19: Ростов-на-Дону, пер. Соборный, д. 26 | R19: Белозеров В. | S19: Клиент 18 | T19: mail@birdyx.ru | U19: 79008889900 | V19: Авито | W19: Завершено | X19: да | Y19: 3
A20: 43617 | B20: =DAY('База заказов'!$A20) -> 1 | C20: ='База заказов'!$A20 -> 2019-06-01 | D20: =YEAR('База заказов'!$A20) -> 2019 | E20: Иванов И. | F20: Укладка паркетной доски на подложку | G20: 560000 | J20: =SUM(Table[[#This Row],[Наличн]:[Безнал]])-SUM(Table[[#This Row],[Наличн]:[Безнал]])*Table[[#This Row],[Скидка]] -> 560000 | K20: 43621 | P20: 10:30:00 | Q20: Ростов-на-Дону, проспект Сиверса, д. 1 | R20: Устинов С. | S20: Клиент 19 | T20: mail@birdyx.ru | U20: 79008889900 | V20: Яндекс | W20: Завершено | X20: да | Y20: 3
A21: 43647 | B21: =DAY('База заказов'!$A21) -> 1 | C21: ='База заказов'!$A21 -> 2019-07-01 | D21: =YEAR('База заказов'!$A21) -> 2019 | E21: Петров В. | F21: Укладка массивной доски | G21: 340000 | J21: =SUM(Table[[#This Row],[Наличн]:[Безнал]])-SUM(Table[[#This Row],[Наличн]:[Безнал]])*Table[[#This Row],[Скидка]] -> 340000 | K21: 43655 | P21: 10:30:00 | Q21: Ростов-на-Дону, ул. Большая Садовая, д. 105/42 | R21: Белозеров В. | S21: Клиент 20 | T21: mail@birdyx.ru | U21: 79008889900 | V21: Авито | W21: Завершено | X21: да | Y21: 3
A22: 43648 | B22: =DAY('База заказов'!$A22) -> 2 | C22: ='База заказов'!$A22 -> 2019-07-02 | D22: =YEAR('База заказов'!$A22) -> 2019 | E22: Гончарова Н. | F22: Монтаж потолочного плинтуса | G22: 45000 | J22: =SUM(Table[[#This Row],[Наличн]:[Безнал]])-SUM(Table[[#This Row],[Наличн]:[Безнал]])*Table[[#This Row],[Скидка]] -> 45000 | K22: 43656 | P22: 10:00:00 | Q22: Ростов-на-Дону, ул. Максима Горького, д. 149 | R22: Беспалов Г. | S22: Клиент 21 | T22: mail@birdyx.ru | U22: 79008889900 | V22: Авито | W22: Завершено | X22: да | Y22: 3
A23: 43649 | B23: =DAY('База заказов'!$A23) -> 3 | C23: ='База заказов'!$A23 -> 2019-07-03 | D23: =YEAR('База заказов'!$A23) -> 2019 | E23: Гончарова Н. | F23: Укладка массивной доски | G23: 67000 | J23: =SUM(Table[[#This Row],[Наличн]:[Безнал]])-SUM(Table[[#This Row],[Наличн]:[Безнал]])*Table[[#This Row],[Скидка]] -> 67000 | K23: 43657 | P23: 12:00:00 | Q23: Ростов-на-Дону, проспект Буденновский, д. 97 | R23: Устинов С. | S23: Клиент 22 | T23: mail@birdyx.ru | U23: 79008889900 | V23: Яндекс | W23: Завершено | X23: да | Y23: 3
A24: 43650 | B24: =DAY('База заказов'!$A24) -> 4 | C24: ='База заказов'!$A24 -> 2019-07-04 | D24: =YEAR('База заказов'!$A24) -> 2019 | E24: Мишин М. | F24: Монтаж потолочного плинтуса | G24: 6000 | J24: =SUM(Table[[#This Row],[Наличн]:[Безнал]])-SUM(Table[[#This Row],[Наличн]:[Безнал]])*Table[[#This Row],[Скидка]] -> 6000 | K24: 43658 | P24: 16:00:00 | Q24: Ростов-на-Дону, ул. Советская, д. 26/1 | R24: Белоусов В. | S24: Клиент 23 | T24: mail@birdyx.ru | U24: 79008889900 | V24: Авито | W24: Завершено | X24: да | Y24: 2
A25: 43678 | B25: =DAY('База заказов'!$A25) -> 1 | C25: ='База заказов'!$A25 -> 2019-08-01 | D25: =YEAR('База заказов'!$A25) -> 2019 | E25: Иванов И. | F25: Выкройка и монтаж дополнительных углов | G25: 500000 | J25: =SUM(Table[[#This Row],[Наличн]:[Безнал]])-SUM(Table[[#This Row],[Наличн]:[Безнал]])*Table[[#This Row],[Скидка]] -> 500000 | K25: 43686 | P25: 10:30:00 | Q25: Ростов-на-Дону, ул. Мечникова, д. 43 | R25: Устинов С. | S25: Клиент 24 | T25: mail@birdyx.ru | U25: 79008889900 | V25: Авито | W25: Завершено | X25: да | Y25: 3
A26: 43709 | B26: =DAY('База заказов'!$A26) -> 1 | C26: ='База заказов'!$A26 -> 2019-09-01 | D26: =YEAR('База заказов'!$A26) -> 2019 | E26: Петров В. | F26: Укладка паркетной доски на подложку | G26: 450000 | J26: =SUM(Table[[#This Row],[Наличн]:[Безнал]])-SUM(Table[[#This Row],[Наличн]:[Безнал]])*Table[[#This Row],[Скидка]] -> 450000 | K26: 43717 | P26: 10:30:00 | Q26: Ростов-на-Дону, пер. Островского, д. 47 | R26: Белозеров В. | S26: Клиент 25 | T26: mail@birdyx.ru | U26: 79008889900 | V26: Авито | W26: Завершено | X26: да | Y26: 4
A27: 43739 | B27: =DAY('База заказов'!$A27) -> 1 | C27: ='База заказов'!$A27 -> 2019-10-01 | D27: =YEAR('База заказов'!$A27) -> 2019 | E27: Иванов И. | F27: Демонтаж балконного блока | G27: 456000 | J27: =SUM(Table[[#This Row],[Наличн]:[Безнал]])-SUM(Table[[#This Row],[Наличн]:[Безнал]])*Table[[#This Row],[Скидка]] -> 456000 | K27: 43751 | P27: 10:00:00 | Q27: Ростов-на-Дону, ул. Пушкинская, д. 225 | R27: Беспалов Г. | S27: Клиент 26 | T27: mail@birdyx.ru | U27: 79008889900 | V27: Яндекс | W27: Завершено | X27: да | Y27: 4
A28: 43770 | B28: =DAY('База заказов'!$A28) -> 1 | C28: ='База заказов'!$A28 -> 2019-11-01 | D28: =YEAR('База заказов'!$A28) -> 2019 | E28: Гончарова Н. | F28: Демонтаж входной двери | G28: 328000 | J28: =SUM(Table[[#This Row],[Наличн]:[Безнал]])-SUM(Table[[#This Row],[Наличн]:[Безнал]])*Table[[#This Row],[Скидка]] -> 328000 | K28: 43782 | P28: 12:00:00 | Q28: Ростов-На-Дону, ул. Ченцова, д. 57/81 | R28: Устинов С. | S28: Клиент 27 | T28: mail@birdyx.ru | U28: 79008889900 | V28: Авито | W28: Завершено | X28: да | Y28: 5
A29: 43771 | B29: =DAY('База заказов'!$A29) -> 2 | C29: ='База заказов'!$A29 -> 2019-11-02 | D29: =YEAR('База заказов'!$A29) -> 2019 | E29: Иванов И. | F29: Укладка массивной доски | G29: 90000 | J29: =SUM(Table[[#This Row],[Наличн]:[Безнал]])-SUM(Table[[#This Row],[Наличн]:[Безнал]])*Table[[#This Row],[Скидка]] -> 90000 | K29: 43783 | P29: 16:00:00 | Q29: Ростов-на-Дону, ул. Текучева, д. 135 | R29: Белоусов В. | S29: Клиент 28 | T29: mail@birdyx.ru | U29: 79008889900 | V29: Авито | W29: Завершено | X29: да | Y29: 4
A30: 43772 | B30: =DAY('База заказов'!$A30) -> 3 | C30: ='База заказов'!$A30 -> 2019-11-03 | D30: =YEAR('База заказов'!$A30) -> 2019 | E30: Петров В. | F30: Монтаж потолочного плинтуса | H30: 8900 | J30: =SUM(Table[[#This Row],[Наличн]:[Безнал]])-SUM(Table[[#This Row],[Наличн]:[Безнал]])*Table[[#This Row],[Скидка]] -> 8900 | K30: 43784 | P30: 10:30:00 | Q30: Ростов-на-Дону, пер. Газетный, д. 99 | R30: Белозеров В. | S30: Клиент 29 | T30: mail@birdyx.ru | U30: 79008889900 | V30: Яндекс | W30: Завершено | X30: да | Y30: 3
A31: 43773 | B31: =DAY('База заказов'!$A31) -> 4 | C31: ='База заказов'!$A31 -> 2019-11-04 | D31: =YEAR('База заказов'!$A31) -> 2019 | E31: Иванов И. | F31: Демонтаж душевого поддона | H31: 7000 | J31: =SUM(Table[[#This Row],[Наличн]:[Безнал]])-SUM(Table[[#This Row],[Наличн]:[Безнал]])*Table[[#This Row],[Скидка]] -> 7000 | K31: 43785 | P31: 16:00:00 | Q31: Ростов-на-Дону, пер. Газетный, д. 99 | R31: Беспалов Г. | S31: Клиент 30 | T31: mail@birdyx.ru | U31: 79008889900 | V31: Авито | W31: Завершено | X31: да | Y31: 4
A32: 43800 | B32: =DAY('База заказов'!$A32) -> 1 | C32: ='База заказов'!$A32 -> 2019-12-01 | D32: =YEAR('База заказов'!$A32) -> 2019 | E32: Гончарова Н. | F32: Демонтаж входной двери | H32: 50000 | I32: 0.15 | J32: =SUM(Table[[#This Row],[Наличн]:[Безнал]])-SUM(Table[[#This Row],[Наличн]:[Безнал]])*Table[[#This Row],[Скидка]] -> 42500 | K32: 43800 | L32: =DAY(Table[[#This Row],[Дата визита]]) -> 1 | M32: =MONTH(Table[[#This Row],[Дата визита]]) -> 1900-01-12 | N32: =YEAR(Table[[#This Row],[Дата визита]]) -> 2019 | O32: =WEEKNUM(Table[[#This Row],[Дата визита]]) -> 49 | P32: 18:00:00 | Q32: Ростов-на-Дону, Стартовая 20 | R32: Устинов С. | S32: Клиент 31 | T32: mail@birdyx.ru | U32: 79008889900 | V32: Сайт | W32: Завершено | X32: да | Y32: 5
A33: 43800 | B33: =DAY('База заказов'!$A33) -> 1 | C33: ='База заказов'!$A33 -> 2019-12-01 | D33: =YEAR('База заказов'!$A33) -> 2019 | E33: Мишин М. | F33: Демонтаж раковины | G33: 2000 | I33: 0.15 | J33: =SUM(Table[[#This Row],[Наличн]:[Безнал]])-SUM(Table[[#This Row],[Наличн]:[Безнал]])*Table[[#This Row],[Скидка]] -> 1700 | K33: 43801 | L33: =DAY(Table[[#This Row],[Дата визита]]) -> 2 | M33: =MONTH(Table[[#This Row],[Дата визита]]) -> 1900-01-12 | N33: =YEAR(Table[[#This Row],[Дата визита]]) -> 2019 | O33: =WEEKNUM(Table[[#This Row],[Дата визита]]) -> 49 | P33: 10:00:00 | Q33: Ростов-на-Дону, Стартовая 22 | R33: Белоусов В. | S33: Клиент 32 | T33: mail@birdyx.ru | U33: 79008889900 | V33: Авито | W33: Завершено | X33: да | Y33: 4
A34: 43800 | B34: =DAY('База заказов'!$A34) -> 1 | C34: ='База заказов'!$A34 -> 2019-12-01 | D34: =YEAR('База заказов'!$A34) -> 2019 | E34: Иванов И. | F34: Демонтаж оконного блока | H34: 5000 | J34: =SUM(Table[[#This Row],[Наличн]:[Безнал]])-SUM(Table[[#This Row],[Наличн]:[Безнал]])*Table[[#This Row],[Скидка]] -> 5000 | K34: 43801 | L34: =DAY(Table[[#This Row],[Дата визита]]) -> 2 | M34: =MONTH(Table[[#This Row],[Дата визита]]) -> 1900-01-12 | N34: =YEAR(Table[[#This Row],[Дата визита]]) -> 2019 | O34: =WEEKNUM(Table[[#This Row],[Дата визита]]) -> 49 | P34: 12:00:00 | Q34: Ростов-на-Дону, Жданова 15 | R34: Субботин С. | S34: Клиент 33 | T34: mail@birdyx.ru | U34: 79008889900 | V34: Авито | W34: Завершено | X34: да | Y34: 3
A35: 43801 | B35: =DAY('База заказов'!$A35) -> 2 | C35: ='База заказов'!$A35 -> 2019-12-02 | D35: =YEAR('База заказов'!$A35) -> 2019 | E35: Иванов И. | F35: Укладка керамической плитки, керамогранита на пол с затиркой | G35: 40000 | J35: =SUM(Table[[#This Row],[Наличн]:[Безнал]])-SUM(Table[[#This Row],[Наличн]:[Безнал]])*Table[[#This Row],[Скидка]] -> 40000 | K35: 43801 | L35: =DAY(Table[[#This Row],[Дата визита]]) -> 2 | M35: =MONTH(Table[[#This Row],[Дата визита]]) -> 1900-01-12 | N35: =YEAR(Table[[#This Row],[Дата визита]]) -> 2019 | O35: =WEEKNUM(Table[[#This Row],[Дата визита]]) -> 49 | P35: 16:00:00 | Q35: Ростов-на-Дону, ул. Пацаева, д. 2 | R35: Минин В. | S35: Клиент 34 | T35: mail@birdyx.ru | U35: 79008889900 | V35: Авито | W35: Завершено | X35: да | Y35: 4
A36: 43801 | B36: =DAY('База заказов'!$A36) -> 2 | C36: ='База заказов'!$A36 -> 2019-12-02 | D36: =YEAR('База заказов'!$A36) -> 2019 | E36: Петров В. | F36: Демонтаж входной двери | H36: 1000 | J36: =SUM(Table[[#This Row],[Наличн]:[Безнал]])-SUM(Table[[#This Row],[Наличн]:[Безнал]])*Table[[#This Row],[Скидка]] -> 1000 | K36: 43802 | L36: =DAY(Table[[#This Row],[Дата визита]]) -> 3 | M36: =MONTH(Table[[#This Row],[Дата визита]]) -> 1900-01-12 | N36: =YEAR(Table[[#This Row],[Дата визита]]) -> 2019 | O36: =WEEKNUM(Table[[#This Row],[Дата визита]]) -> 49 | P36: 10:00:00 | Q36: Ростов-на-Дону, ул. 14 Линия, д. 33 | R36: Белозеров В. | S36: Клиент 35 | T36: mail@birdyx.ru | U36: 79008889900 | V36: Сайт | W36: Завершено | X36: да | Y36: 4
A37: 43801 | B37: =DAY('База заказов'!$A37) -> 2 | C37: ='База заказов'!$A37 -> 2019-12-02 | D37: =YEAR('База заказов'!$A37) -> 2019 | E37: Иванов И. | F37: Нанесение декоративной штукатурки | G37: 10000 | J37: =SUM(Table[[#This Row],[Наличн]:[Безнал]])-SUM(Table[[#This Row],[Наличн]:[Безнал]])*Table[[#This Row],[Скидка]] -> 10000 | K37: 43802 | L37: =DAY(Table[[#This Row],[Дата визита]]) -> 3 | M37: =MONTH(Table[[#This Row],[Дата визита]]) -> 1900-01-12 | N37: =YEAR(Table[[#This Row],[Дата визита]]) -> 2019 | O37: =WEEKNUM(Table[[#This Row],[Дата визита]]) -> 49 | P37: 12:00:00 | Q37: Ростов-на-Дону, пер. Беломорский, д. 94 | R37: Беспалов Г. | S37: Клиент 36 | T37: mail@birdyx.ru | U37: 79008889900 | V37: Сайт | W37: Завершено | X37: да | Y37: 5
A38: 43802 | B38: =DAY('База заказов'!$A38) -> 3 | C38: ='База заказов'!$A38 -> 2019-12-03 | D38: =YEAR('База заказов'!$A38) -> 2019 | E38: Гончарова Н. | F38: Укладка массивной доски | G38: 30000 | J38: =SUM(Table[[#This Row],[Наличн]:[Безнал]])-SUM(Table[[#This Row],[Наличн]:[Безнал]])*Table[[#This Row],[Скидка]] -> 30000 | K38: 43802 | L38: =DAY(Table[[#This Row],[Дата визита]]) -> 3 | M38: =MONTH(Table[[#This Row],[Дата визита]]) -> 1900-01-12 | N38: =YEAR(Table[[#This Row],[Дата визита]]) -> 2019 | O38: =WEEKNUM(Table[[#This Row],[Дата визита]]) -> 49 | P38: 16:00:00 | Q38: Ростов-На-Дону, ул. Извилистая, д. 13/2 | R38: Устинов С. | S38: Клиент 37 | T38: mail@birdyx.ru | U38: 79008889900 | V38: Авито | W38: Отмена | X38: да | Y38: 3
A39: 43802 | B39: =DAY('База заказов'!$A39) -> 3 | C39: ='База заказов'!$A39 -> 2019-12-03 | D39: =YEAR('База заказов'!$A39) -> 2019 | E39: Мишин М. | F39: Нанесение декоративной штукатурки | G39: 56000 | J39: =SUM(Table[[#This Row],[Наличн]:[Безнал]])-SUM(Table[[#This Row],[Наличн]:[Безнал]])*Table[[#This Row],[Скидка]] -> 56000 | K39: 43802 | L39: =DAY(Table[[#This Row],[Дата визита]]) -> 3 | M39: =MONTH(Table[[#This Row],[Дата визита]]) -> 1900-01-12 | N39: =YEAR(Table[[#This Row],[Дата визита]]) -> 2019 | O39: =WEEKNUM(Table[[#This Row],[Дата визита]]) -> 49 | P39: 18:00:00 | Q39: Ростов-на-Дону, пер. Братский, д. 36 | R39: Минин В. | S39: Клиент 38 | T39: mail@birdyx.ru | U39: 79008889900 | V39: Сайт | W39: Завершено | X39: да | Y39: 2
A40: 43802 | B40: =DAY('База заказов'!$A40) -> 3 | C40: ='База заказов'!$A40 -> 2019-12-03 | D40: =YEAR('База заказов'!$A40) -> 2019 | E40: Гончарова Н. | F40: Укладка массивной доски | H40: 20000 | J40: =SUM(Table[[#This Row],[Наличн]:[Безнал]])-SUM(Table[[#This Row],[Наличн]:[Безнал]])*Table[[#This Row],[Скидка]] -> 20000 | K40: 43803 | L40: =DAY(Table[[#This Row],[Дата визита]]) -> 4 | M40: =MONTH(Table[[#This Row],[Дата визита]]) -> 1900-01-12 | N40: =YEAR(Table[[#This Row],[Дата визита]]) -> 2019 | O40: =WEEKNUM(Table[[#This Row],[Дата визита]]) -> 49 | P40: 10:00:00 | Q40: Ростов-На-Дону, ул. Андрея Сладкова, д. 87 | R40: Минин В. | S40: Клиент 39 | T40: mail@birdyx.ru | U40: 79008889900 | V40: По совету | W40: Завершено | X40: да | Y40: 4
A41: 43803 | B41: =DAY('База заказов'!$A41) -> 4 | C41: ='База заказов'!$A41 -> 2019-12-04 | D41: =YEAR('База заказов'!$A41) -> 2019 | E41: Мишин М. | F41: Монтаж потолочного плинтуса | G41: 10000 | I41: 0.15 | J41: =SUM(Table[[#This Row],[Наличн]:[Безнал]])-SUM(Table[[#This Row],[Наличн]:[Безнал]])*Table[[#This Row],[Скидка]] -> 8500 | K41: 43803 | L41: =DAY(Table[[#This Row],[Дата визита]]) -> 4 | M41: =MONTH(Table[[#This Row],[Дата визита]]) -> 1900-01-12 | N41: =YEAR(Table[[#This Row],[Дата визита]]) -> 2019 | O41: =WEEKNUM(Table[[#This Row],[Дата визита]]) -> 49 | P41: 12:00:00 | Q41: Ростов-на-Дону, ул. 339-й Стрелковой Дивизии, д. 33 | R41: Субботин С. | S41: Клиент 40 | T41: mail@birdyx.ru | U41: 79008889900 | V41: Яндекс | W41: Завершено | X41: да | Y41: 5
A42: 43804 | B42: =DAY('База заказов'!$A42) -> 5 | C42: ='База заказов'!$A42 -> 2019-12-05 | D42: =YEAR('База заказов'!$A42) -> 2019 | E42: Иванов И. | F42: Выкройка и монтаж дополнительных углов | H42: 8000 | I42: 0.15 | J42: =SUM(Table[[#This Row],[Наличн]:[Безнал]])-SUM(Table[[#This Row],[Наличн]:[Безнал]])*Table[[#This Row],[Скидка]] -> 6800 | K42: 43804 | L42: =DAY(Table[[#This Row],[Дата визита]]) -> 5 | M42: =MONTH(Table[[#This Row],[Дата визита]]) -> 1900-01-12 | N42: =YEAR(Table[[#This Row],[Дата визита]]) -> 2019 | O42: =WEEKNUM(Table[[#This Row],[Дата визита]]) -> 49 | P42: 16:00:00 | Q42: Ростов-на-Дону, Ленина 1 | R42: Белозеров В. | S42: Клиент 41 | T42: mail@birdyx.ru | U42: 79008889900 | V42: Инстаграм | W42: Завершено | X42: да | Y42: 5
A43: 43805 | B43: =DAY('База заказов'!$A43) -> 6 | C43: ='База заказов'!$A43 -> 2019-12-06 | D43: =YEAR('База заказов'!$A43) -> 2019 | E43: Петров В. | F43: Укладка паркетной доски на подложку | H43: 9000 | I43: 0.15 | J43: =SUM(Table[[#This Row],[Наличн]:[Безнал]])-SUM(Table[[#This Row],[Наличн]:[Безнал]])*Table[[#This Row],[Скидка]] -> 7650 | K43: 43805 | L43: =DAY(Table[[#This Row],[Дата визита]]) -> 6 | M43: =MONTH(Table[[#This Row],[Дата визита]]) -> 1900-01-12 | N43: =YEAR(Table[[#This Row],[Дата визита]]) -> 2019 | O43: =WEEKNUM(Table[[#This Row],[Дата визита]]) -> 49 | P43: 18:00:00 | Q43: Ростов-на-Дону, Михаила Нагибина 32 | R43: Беспалов Г. | S43: Клиент 42 | T43: mail@birdyx.ru | U43: 79008889900 | V43: Яндекс | W43: Завершено | X43: да | Y43: 5
A44: 43806 | B44: =DAY('База заказов'!$A44) -> 7 | C44: ='База заказов'!$A44 -> 2019-12-07 | D44: =YEAR('База заказов'!$A44) -> 2019 | E44: Иванов И. | F44: Демонтаж балконного блока | H44: 9000 | I44: 0.15 | J44: =SUM(Table[[#This Row],[Наличн]:[Безнал]])-SUM(Table[[#This Row],[Наличн]:[Безнал]])*Table[[#This Row],[Скидка]] -> 7650 | K44: 43806 | L44: =DAY(Table[[#This Row],[Дата визита]]) -> 7 | M44: =MONTH(Table[[#This Row],[Дата визита]]) -> 1900-01-12 | N44: =YEAR(Table[[#This Row],[Дата визита]]) -> 2019 | O44: =WEEKNUM(Table[[#This Row],[Дата визита]]) -> 49 | P44: 10:00:00 | Q44: Ростов-на-Дону, Михаила Нагибина 32 | R44: Беспалов Г. | S44: Клиент 43 | T44: mail@birdyx.ru | U44: 79008889900 | V44: Инстаграм | W44: Завершено | X44: да | Y44: 5
A45: 43806 | B45: =DAY('База заказов'!$A45) -> 7 | C45: ='База заказов'!$A45 -> 2019-12-07 | D45: =YEAR('База заказов'!$A45) -> 2019 | E45: Гончарова Н. | F45: Демонтаж входной двери | G45: 20000 | J45: =SUM(Table[[#This Row],[Наличн]:[Безнал]])-SUM(Table[[#This Row],[Наличн]:[Безнал]])*Table[[#This Row],[Скидка]] -> 20000 | K45: 43807 | L45: =DAY(Table[[#This Row],[Дата визита]]) -> 8 | M45: =MONTH(Table[[#This Row],[Дата визита]]) -> 1900-01-12 | N45: =YEAR(Table[[#This Row],[Дата визита]]) -> 2019 | O45: =WEEKNUM(Table[[#This Row],[Дата визита]]) -> 50 | P45: 12:00:00 | Q45: Ростов-на-Дону, ул. Таганрогская, д. 149/1 К 35 | R45: Белоусов В. | S45: Клиент 44 | T45: mail@birdyx.ru | U45: 79008889900 | V45: Авито | W45: Завершено | X45: да | Y45: 5
A46: 43806 | B46: =DAY('База заказов'!$A46) -> 7 | C46: ='База заказов'!$A46 -> 2019-12-07 | D46: =YEAR('База заказов'!$A46) -> 2019 | E46: Иванов И. | F46: Укладка массивной доски | H46: 27300 | J46: =SUM(Table[[#This Row],[Наличн]:[Безнал]])-SUM(Table[[#This Row],[Наличн]:[Безнал]])*Table[[#This Row],[Скидка]] -> 27300 | K46: 43807 | L46: =DAY(Table[[#This Row],[Дата визита]]) -> 8 | M46: =MONTH(Table[[#This Row],[Дата визита]]) -> 1900-01-12 | N46: =YEAR(Table[[#This Row],[Дата визита]]) -> 2019 | O46: =WEEKNUM(Table[[#This Row],[Дата визита]]) -> 50 | P46: 16:00:00 | Q46: Ростов-На-Дону, ул. Большая Садовая, д. 115 | R46: Минин В. | S46: Клиент 45 | T46: mail@birdyx.ru | U46: 79008889900 | V46: Авито | W46: Завершено | X46: да | Y46: 5
A47: 43806 | B47: =DAY('База заказов'!$A47) -> 7 | C47: ='База заказов'!$A47 -> 2019-12-07 | D47: =YEAR('База заказов'!$A47) -> 2019 | E47: Петров В. | F47: Монтаж потолочного плинтуса | G47: 7600 | J47: =SUM(Table[[#This Row],[Наличн]:[Безнал]])-SUM(Table[[#This Row],[Наличн]:[Безнал]])*Table[[#This Row],[Скидка]] -> 7600 | K47: 43807 | L47: =DAY(Table[[#This Row],[Дата визита]]) -> 8 | M47: =MONTH(Table[[#This Row],[Дата визита]]) -> 1900-01-12 | N47: =YEAR(Table[[#This Row],[Дата визита]]) -> 2019 | O47: =WEEKNUM(Table[[#This Row],[Дата визита]]) -> 50 | P47: 18:00:00 | Q47: Ростов-на-Дону, ул. Большая Садовая, д. 69 | R47: Субботин С. | S47: Клиент 46 | T47: mail@birdyx.ru | U47: 79008889900 | V47: Сайт | W47: Завершено | X47: да | Y47: 4
A48: 43807 | B48: =DAY('База заказов'!$A48) -> 8 | C48: ='База заказов'!$A48 -> 2019-12-08 | D48: =YEAR('База заказов'!$A48) -> 2019 | E48: Иванов И. | F48: Демонтаж душевого поддона | G48: 35100 | J48: =SUM(Table[[#This Row],[Наличн]:[Безнал]])-SUM(Table[[#This Row],[Наличн]:[Безнал]])*Table[[#This Row],[Скидка]] -> 35100 | K48: 43807 | L48: =DAY(Table[[#This Row],[Дата визита]]) -> 8 | M48: =MONTH(Table[[#This Row],[Дата визита]]) -> 1900-01-12 | N48: =YEAR(Table[[#This Row],[Дата визита]]) -> 2019 | O48: =WEEKNUM(Table[[#This Row],[Дата визита]]) -> 50 | P48: 10:00:00 | Q48: Ростов-на-Дону, пер. Университетский, д. 133 | R48: Минин В. | S48: Клиент 47 | T48: mail@birdyx.ru | U48: 79008889900 | V48: Инстаграм | W48: Завершено | X48: да | Y48: 4
A49: 43808 | B49: =DAY('База заказов'!$A49) -> 9 | C49: ='База заказов'!$A49 -> 2019-12-09 | D49: =YEAR('База заказов'!$A49) -> 2019 | E49: Гончарова Н. | F49: Демонтаж входной двери | G49: 35100 | J49: =SUM(Table[[#This Row],[Наличн]:[Безнал]])-SUM(Table[[#This Row],[Наличн]:[Безнал]])*Table[[#This Row],[Скидка]] -> 35100 | K49: 43810 | L49: =DAY(Table[[#This Row],[Дата визита]]) -> 11 | M49: =MONTH(Table[[#This Row],[Дата визита]]) -> 1900-01-12 | N49: =YEAR(Table[[#This Row],[Дата визита]]) -> 2019 | O49: =WEEKNUM(Table[[#This Row],[Дата визита]]) -> 50 | P49: 12:00:00 | Q49: Ростов-на-Дону, пер. Соборный, д. 26 | R49: Белозеров В. | S49: Клиент 48 | T49: mail@birdyx.ru | U49: 79008889900 | V49: Яндекс | W49: Завершено | X49: да | Y49: 4
A50: 43809 | B50: =DAY('База заказов'!$A50) -> 10 | C50: ='База заказов'!$A50 -> 2019-12-10 | D50: =YEAR('База заказов'!$A50) -> 2019 | E50: Мишин М. | F50: Демонтаж раковины | G50: 25400 | J50: =SUM(Table[[#This Row],[Наличн]:[Безнал]])-SUM(Table[[#This Row],[Наличн]:[Безнал]])*Table[[#This Row],[Скидка]] -> 25400 | K50: 43810 | L50: =DAY(Table[[#This Row],[Дата визита]]) -> 11 | M50: =MONTH(Table[[#This Row],[Дата визита]]) -> 1900-01-12 | N50: =YEAR(Table[[#This Row],[Дата визита]]) -> 2019 | O50: =WEEKNUM(Table[[#This Row],[Дата визита]]) -> 50 | P50: 16:00:00 | Q50: Ростов-на-Дону, проспект Сиверса, д. 1 | R50: Беспалов Г. | S50: Клиент 49 | T50: mail@birdyx.ru | U50: 79008889900 | V50: По совету | W50: Завершено | X50: да | Y50: 4
A51: 43810 | B51: =DAY('База заказов'!$A51) -> 11 | C51: ='База заказов'!$A51 -> 2019-12-11 | D51: =YEAR('База заказов'!$A51) -> 2019 | E51: Иванов И. | F51: Демонтаж оконного блока | H51: 14200 | J51: =SUM(Table[[#This Row],[Наличн]:[Безнал]])-SUM(Table[[#This Row],[Наличн]:[Безнал]])*Table[[#This Row],[Скидка]] -> 14200 | K51: 43810 | L51: =DAY(Table[[#This Row],[Дата визита]]) -> 11 | M51: =MONTH(Table[[#This Row],[Дата визита]]) -> 1900-01-12 | N51: =YEAR(Table[[#This Row],[Дата визита]]) -> 2019 | O51: =WEEKNUM(Table[[#This Row],[Дата визита]]) -> 50 | P51: 18:00:00 | Q51: Ростов-на-Дону, ул. Большая Садовая, д. 105/42 | R51: Устинов С. | S51: Клиент 50 | T51: mail@birdyx.ru | U51: 79008889900 | V51: Авито | W51: Завершено | X51: да | Y51: 4
A52: 43811 | B52: =DAY('База заказов'!$A52) -> 12 | C52: ='База заказов'!$A52 -> 2019-12-12 | D52: =YEAR('База заказов'!$A52) -> 2019 | E52: Иванов И. | F52: Укладка керамической плитки, керамогранита на пол с затиркой | G52: 20900 | J52: =SUM(Table[[#This Row],[Наличн]:[Безнал]])-SUM(Table[[#This Row],[Наличн]:[Безнал]])*Table[[#This Row],[Скидка]] -> 20900 | K52: 43811 | L52: =DAY(Table[[#This Row],[Дата визита]]) -> 12 | M52: =MONTH(Table[[#This Row],[Дата визита]]) -> 1900-01-12 | N52: =YEAR(Table[[#This Row],[Дата визита]]) -> 2019 | O52: =WEEKNUM(Table[[#This Row],[Дата визита]]) -> 50 | P52: 10:00:00 | Q52: Ростов-на-Дону, ул. Максима Горького, д. 149 | R52: Минин В. | S52: Клиент 51 | T52: mail@birdyx.ru | U52: 79008889900 | V52: Сайт | W52: Завершено | X52: да | Y52: 4
A53: 43812 | B53: =DAY('База заказов'!$A53) -> 13 | C53: ='База заказов'!$A53 -> 2019-12-13 | D53: =YEAR('База заказов'!$A53) -> 2019 | E53: Петров В. | F53: Демонтаж входной двери | G53: 31900 | J53: =SUM(Table[[#This Row],[Наличн]:[Безнал]])-SUM(Table[[#This Row],[Наличн]:[Безнал]])*Table[[#This Row],[Скидка]] -> 31900 | K53: 43812 | L53: =DAY(Table[[#This Row],[Дата визита]]) -> 13 | M53: =MONTH(Table[[#This Row],[Дата визита]]) -> 1900-01-12 | N53: =YEAR(Table[[#This Row],[Дата визита]]) -> 2019 | O53: =WEEKNUM(Table[[#This Row],[Дата визита]]) -> 50 | P53: 12:00:00 | Q53: Ростов-на-Дону, проспект Буденновский, д. 97 | R53: Белоусов В. | S53: Клиент 52 | T53: mail@birdyx.ru | U53: 79008889900 | V53: Сайт | W53: Завершено | X53: да | Y53: 4
A54: 43812 | B54: =DAY('База заказов'!$A54) -> 13 | C54: ='База заказов'!$A54 -> 2019-12-13 | D54: =YEAR('База заказов'!$A54) -> 2019 | E54: Иванов И. | F54: Нанесение декоративной штукатурки | G54: 12800 | J54: =SUM(Table[[#This Row],[Наличн]:[Безнал]])-SUM(Table[[#This Row],[Наличн]:[Безнал]])*Table[[#This Row],[Скидка]] -> 12800 | K54: 43812 | L54: =DAY(Table[[#This Row],[Дата визита]]) -> 13 | M54: =MONTH(Table[[#This Row],[Дата визита]]) -> 1900-01-12 | N54: =YEAR(Table[[#This Row],[Дата визита]]) -> 2019 | O54: =WEEKNUM(Table[[#This Row],[Дата визита]]) -> 50 | P54: 16:00:00 | Q54: Ростов-на-Дону, ул. Советская, д. 26/1 | R54: Субботин С. | S54: Клиент 53 | T54: mail@birdyx.ru | U54: 79008889900 | V54: Авито | W54: Завершено | X54: да | Y54: 4
A55: 43812 | B55: =DAY('База заказов'!$A55) -> 13 | C55: ='База заказов'!$A55 -> 2019-12-13 | D55: =YEAR('База заказов'!$A55) -> 2019 | E55: Гончарова Н. | F55: Укладка массивной доски | H55: 36100 | J55: =SUM(Table[[#This Row],[Наличн]:[Безнал]])-SUM(Table[[#This Row],[Наличн]:[Безнал]])*Table[[#This Row],[Скидка]] -> 36100 | K55: 43812 | L55: =DAY(Table[[#This Row],[Дата визита]]) -> 13 | M55: =MONTH(Table[[#This Row],[Дата визита]]) -> 1900-01-12 | N55: =YEAR(Table[[#This Row],[Дата визита]]) -> 2019 | O55: =WEEKNUM(Table[[#This Row],[Дата визита]]) -> 50 | P55: 18:00:00 | Q55: Ростов-на-Дону, ул. Мечникова, д. 43 | R55: Белозеров В. | S55: Клиент 54 | T55: mail@birdyx.ru | U55: 79008889900 | V55: Авито | W55: Завершено | X55: да | Y55: 4
A56: 43812 | B56: =DAY('База заказов'!$A56) -> 13 | C56: ='База заказов'!$A56 -> 2019-12-13 | D56: =YEAR('База заказов'!$A56) -> 2019 | E56: Мишин М. | F56: Нанесение декоративной штукатурки | G56: 33200 | I56: 0.15 | J56: =SUM(Table[[#This Row],[Наличн]:[Безнал]])-SUM(Table[[#This Row],[Наличн]:[Безнал]])*Table[[#This Row],[Скидка]] -> 28220 | K56: 43815 | L56: =DAY(Table[[#This Row],[Дата визита]]) -> 16 | M56: =MONTH(Table[[#This Row],[Дата визита]]) -> 1900-01-12 | N56: =YEAR(Table[[#This Row],[Дата визита]]) -> 2019 | O56: =WEEKNUM(Table[[#This Row],[Дата визита]]) -> 51 | P56: 10:00:00 | Q56: Ростов-на-Дону, пер. Островского, д. 47 | R56: Беспалов Г. | S56: Клиент 55 | T56: mail@birdyx.ru | U56: 79008889900 | V56: Авито | W56: Завершено | X56: да | Y56: 4
A57: 43813 | B57: =DAY('База заказов'!$A57) -> 14 | C57: ='База заказов'!$A57 -> 2019-12-14 | D57: =YEAR('База заказов'!$A57) -> 2019 | E57: Иванов И. | F57: Поклейка обоев | G57: 29600 | J57: =SUM(Table[[#This Row],[Наличн]:[Безнал]])-SUM(Table[[#This Row],[Наличн]:[Безнал]])*Table[[#This Row],[Скидка]] -> 29600 | K57: 43815 | L57: =DAY(Table[[#This Row],[Дата визита]]) -> 16 | M57: =MONTH(Table[[#This Row],[Дата визита]]) -> 1900-01-12 | N57: =YEAR(Table[[#This Row],[Дата визита]]) -> 2019 | O57: =WEEKNUM(Table[[#This Row],[Дата визита]]) -> 51 | P57: 12:00:00 | Q57: Ростов-на-Дону, ул. Пушкинская, д. 225 | R57: Минин В. | S57: Клиент 56 | T57: mail@birdyx.ru | U57: 79008889900 | V57: Сайт | W57: Отмена | X57: да | Y57: 4
A58: 43814 | B58: =DAY('База заказов'!$A58) -> 15 | C58: ='База заказов'!$A58 -> 2019-12-15 | D58: =YEAR('База заказов'!$A58) -> 2019 | E58: Иванов И. | F58: Демонтаж входной двери | G58: 17300 | J58: =SUM(Table[[#This Row],[Наличн]:[Безнал]])-SUM(Table[[#This Row],[Наличн]:[Безнал]])*Table[[#This Row],[Скидка]] -> 17300 | K58: 43815 | L58: =DAY(Table[[#This Row],[Дата визита]]) -> 16 | M58: =MONTH(Table[[#This Row],[Дата визита]]) -> 1900-01-12 | N58: =YEAR(Table[[#This Row],[Дата визита]]) -> 2019 | O58: =WEEKNUM(Table[[#This Row],[Дата визита]]) -> 51 | P58: 16:00:00 | Q58: Ростов-На-Дону, ул. Ченцова, д. 57/81 | R58: Минин В. | S58: Клиент 57 | T58: mail@birdyx.ru | U58: 79008889900 | V58: Сайт | W58: Завершено | X58: да | Y58: 4
A59: 43815 | B59: =DAY('База заказов'!$A59) -> 16 | C59: ='База заказов'!$A59 -> 2019-12-16 | D59: =YEAR('База заказов'!$A59) -> 2019 | E59: Петров В. | F59: Выкройка и монтаж дополнительных углов | G59: 34200 | J59: =SUM(Table[[#This Row],[Наличн]:[Безнал]])-SUM(Table[[#This Row],[Наличн]:[Безнал]])*Table[[#This Row],[Скидка]] -> 34200 | K59: 43815 | L59: =DAY(Table[[#This Row],[Дата визита]]) -> 16 | M59: =MONTH(Table[[#This Row],[Дата визита]]) -> 1900-01-12 | N59: =YEAR(Table[[#This Row],[Дата визита]]) -> 2019 | O59: =WEEKNUM(Table[[#This Row],[Дата визита]]) -> 51 | P59: 18:00:00 | Q59: Ростов-на-Дону, ул. Текучева, д. 135 | R59: Минин В. | S59: Клиент 58 | T59: mail@birdyx.ru | U59: 79008889900 | V59: Авито | W59: Завершено | X59: да | Y59: 5
A60: 43816 | B60: =DAY('База заказов'!$A60) -> 17 | C60: ='База заказов'!$A60 -> 2019-12-17 | D60: =YEAR('База заказов'!$A60) -> 2019 | E60: Иванов И. | F60: Выкройка и монтаж дополнительных углов | G60: 9500 | J60: =SUM(Table[[#This Row],[Наличн]:[Безнал]])-SUM(Table[[#This Row],[Наличн]:[Безнал]])*Table[[#This Row],[Скидка]] -> 9500 | K60: 43816 | L60: =DAY(Table[[#This Row],[Дата визита]]) -> 17 | M60: =MONTH(Table[[#This Row],[Дата визита]]) -> 1900-01-12 | N60: =YEAR(Table[[#This Row],[Дата визита]]) -> 2019 | O60: =WEEKNUM(Table[[#This Row],[Дата визита]]) -> 51 | P60: 10:00:00 | Q60: Ростов-на-Дону, пер. Газетный, д. 99 | R60: Субботин С. | S60: Клиент 59 | T60: mail@birdyx.ru | U60: 79008889900 | V60: Сайт | W60: Завершено | X60: да | Y60: 5
A61: 43817 | B61: =DAY('База заказов'!$A61) -> 18 | C61: ='База заказов'!$A61 -> 2019-12-18 | D61: =YEAR('База заказов'!$A61) -> 2019 | E61: Гончарова Н. | F61: Укладка паркетной доски на клей | G61: 7900 | J61: =SUM(Table[[#This Row],[Наличн]:[Безнал]])-SUM(Table[[#This Row],[Наличн]:[Безнал]])*Table[[#This Row],[Скидка]] -> 7900 | K61: 43817 | L61: =DAY(Table[[#This Row],[Дата визита]]) -> 18 | M61: =MONTH(Table[[#This Row],[Дата визита]]) -> 1900-01-12 | N61: =YEAR(Table[[#This Row],[Дата визита]]) -> 2019 | O61: =WEEKNUM(Table[[#This Row],[Дата визита]]) -> 51 | P61: 12:00:00 | Q61: Ростов-на-Дону, проспект Кировский, д. 90 | R61: Минин В. | S61: Клиент 60 | T61: mail@birdyx.ru | U61: 79008889900 | V61: По совету | W61: Завершено | X61: да | Y61: 5
A62: 43818 | B62: =DAY('База заказов'!$A62) -> 19 | C62: ='База заказов'!$A62 -> 2019-12-19 | D62: =YEAR('База заказов'!$A62) -> 2019 | E62: Мишин М. | F62: Нанесение декоративной штукатурки | G62: 33700 | I62: 0.15 | J62: =SUM(Table[[#This Row],[Наличн]:[Безнал]])-SUM(Table[[#This Row],[Наличн]:[Безнал]])*Table[[#This Row],[Скидка]] -> 28645 | K62: 43818 | L62: =DAY(Table[[#This Row],[Дата визита]]) -> 19 | M62: =MONTH(Table[[#This Row],[Дата визита]]) -> 1900-01-12 | N62: =YEAR(Table[[#This Row],[Дата визита]]) -> 2019 | O62: =WEEKNUM(Table[[#This Row],[Дата визита]]) -> 51 | P62: 16:00:00 | Q62: Ростов-на-Дону, ул. 14 Линия, д. 14 | R62: Белозеров В. | S62: Клиент 61 | T62: mail@birdyx.ru | U62: 79008889900 | V62: Яндекс | W62: Завершено | X62: да | Y62: 5
A63: 43818 | B63: =DAY('База заказов'!$A63) -> 19 | C63: ='База заказов'!$A63 -> 2019-12-19 | D63: =YEAR('База заказов'!$A63) -> 2019 | E63: Иванов И. | F63: Монтаж потолочного плинтуса | G63: 26700 | J63: =SUM(Table[[#This Row],[Наличн]:[Безнал]])-SUM(Table[[#This Row],[Наличн]:[Безнал]])*Table[[#This Row],[Скидка]] -> 26700 | K63: 43820 | L63: =DAY(Table[[#This Row],[Дата визита]]) -> 21 | M63: =MONTH(Table[[#This Row],[Дата визита]]) -> 1900-01-12 | N63: =YEAR(Table[[#This Row],[Дата визита]]) -> 2019 | O63: =WEEKNUM(Table[[#This Row],[Дата визита]]) -> 51 | P63: 18:00:00 | Q63: Ростов-на-Дону, ул. Береговая, д. 30 | R63: Беспалов Г. | S63: Клиент 62 | T63: mail@birdyx.ru | U63: 79008889900 | V63: Инстаграм | W63: Завершено | X63: да | Y63: 5
A64: 43819 | B64: =DAY('База заказов'!$A64) -> 20 | C64: ='База заказов'!$A64 -> 2019-12-20 | D64: =YEAR('База заказов'!$A64) -> 2019 | E64: Петров В. | F64: Укладка фанеры в 1 слой | H64: 29600 | J64: =SUM(Table[[#This Row],[Наличн]:[Безнал]])-SUM(Table[[#This Row],[Наличн]:[Безнал]])*Table[[#This Row],[Скидка]] -> 29600 | K64: 43820 | L64: =DAY(Table[[#This Row],[Дата визита]]) -> 21 | M64: =MONTH(Table[[#This Row],[Дата визита]]) -> 1900-01-12 | N64: =YEAR(Table[[#This Row],[Дата визита]]) -> 2019 | O64: =WEEKNUM(Table[[#This Row],[Дата визита]]) -> 51 | P64: 10:00:00 | Q64: Ростов-на-Дону, ул. Большая Садовая, д. 77 | R64: Устинов С. | S64: Клиент 63 | T64: mail@birdyx.ru | U64: 79008889900 | V64: Яндекс | W64: Завершено | X64: да | Y64: 5
A65: 43820 | B65: =DAY('База заказов'!$A65) -> 21 | C65: ='База заказов'!$A65 -> 2019-12-21 | D65: =YEAR('База заказов'!$A65) -> 2019 | E65: Гончарова Н. | F65: Укладка линолеума на клей | H65: 15600 | J65: =SUM(Table[[#This Row],[Наличн]:[Безнал]])-SUM(Table[[#This Row],[Наличн]:[Безнал]])*Table[[#This Row],[Скидка]] -> 15600 | K65: 43820 | L65: =DAY(Table[[#This Row],[Дата визита]]) -> 21 | M65: =MONTH(Table[[#This Row],[Дата визита]]) -> 1900-01-12 | N65: =YEAR(Table[[#This Row],[Дата визита]]) -> 2019 | O65: =WEEKNUM(Table[[#This Row],[Дата визита]]) -> 51 | P65: 12:00:00 | Q65: Ростов-на-Дону, ул. 6-я линия, д. 4 | R65: Минин В. | S65: Клиент 64 | T65: mail@birdyx.ru | U65: 79008889900 | V65: Сайт | W65: Завершено | X65: да | Y65: 3
A66: 43821 | B66: =DAY('База заказов'!$A66) -> 22 | C66: ='База заказов'!$A66 -> 2019-12-22 | D66: =YEAR('База заказов'!$A66) -> 2019 | E66: Гончарова Н. | F66: Демонтаж раковины | G66: 39600 | J66: =SUM(Table[[#This Row],[Наличн]:[Безнал]])-SUM(Table[[#This Row],[Наличн]:[Безнал]])*Table[[#This Row],[Скидка]] -> 39600 | K66: 43821 | L66: =DAY(Table[[#This Row],[Дата визита]]) -> 22 | M66: =MONTH(Table[[#This Row],[Дата визита]]) -> 1900-01-12 | N66: =YEAR(Table[[#This Row],[Дата визита]]) -> 2019 | O66: =WEEKNUM(Table[[#This Row],[Дата визита]]) -> 52 | P66: 16:00:00 | Q66: Ростов-на-Дону, ул. Гагринская, д. 46 | R66: Минин В. | S66: Клиент 65 | T66: mail@birdyx.ru | U66: 79008889900 | V66: Авито | W66: Завершено | X66: да | Y66: 3
A67: 43822 | B67: =DAY('База заказов'!$A67) -> 23 | C67: ='База заказов'!$A67 -> 2019-12-23 | D67: =YEAR('База заказов'!$A67) -> 2019 | E67: Иванов И. | F67: Демонтаж входной двери | G67: 15200 | J67: =SUM(Table[[#This Row],[Наличн]:[Безнал]])-SUM(Table[[#This Row],[Наличн]:[Безнал]])*Table[[#This Row],[Скидка]] -> 15200 | K67: 43822 | L67: =DAY(Table[[#This Row],[Дата визита]]) -> 23 | M67: =MONTH(Table[[#This Row],[Дата визита]]) -> 1900-01-12 | N67: =YEAR(Table[[#This Row],[Дата визита]]) -> 2019 | O67: =WEEKNUM(Table[[#This Row],[Дата визита]]) -> 52 | P67: 18:00:00 | Q67: Ростов-на-Дону, ул. Вятская, д. 37/1 | R67: Субботин С. | S67: Клиент 66 | T67: mail@birdyx.ru | U67: 79008889900 | V67: Авито | W67: Завершено | X67: да | Y67: 2
A68: 43822 | B68: =DAY('База заказов'!$A68) -> 23 | C68: ='База заказов'!$A68 -> 2019-12-23 | D68: =YEAR('База заказов'!$A68) -> 2019 | E68: Петров В. | F68: Демонтаж балконного блока | G68: 22900 | J68: =SUM(Table[[#This Row],[Наличн]:[Безнал]])-SUM(Table[[#This Row],[Наличн]:[Безнал]])*Table[[#This Row],[Скидка]] -> 22900 | K68: 43822 | L68: =DAY(Table[[#This Row],[Дата визита]]) -> 23 | M68: =MONTH(Table[[#This Row],[Дата визита]]) -> 1900-01-12 | N68: =YEAR(Table[[#This Row],[Дата визита]]) -> 2019 | O68: =WEEKNUM(Table[[#This Row],[Дата визита]]) -> 52 | P68: 10:00:00 | Q68: Ростов-на-Дону, ул. Станиславского, д. 58 | R68: Белозеров В. | S68: Клиент 67 | T68: mail@birdyx.ru | U68: 79008889900 | V68: Сайт | W68: Завершено | X68: да | Y68: 3
A69: 43822 | B69: =DAY('База заказов'!$A69) -> 23 | C69: ='База заказов'!$A69 -> 2019-12-23 | D69: =YEAR('База заказов'!$A69) -> 2019 | E69: Иванов И. | F69: Укладка паркетной доски на клей | G69: 34700 | J69: =SUM(Table[[#This Row],[Наличн]:[Безнал]])-SUM(Table[[#This Row],[Наличн]:[Безнал]])*Table[[#This Row],[Скидка]] -> 34700 | K69: 43822 | L69: =DAY(Table[[#This Row],[Дата визита]]) -> 23 | M69: =MONTH(Table[[#This Row],[Дата визита]]) -> 1900-01-12 | N69: =YEAR(Table[[#This Row],[Дата визита]]) -> 2019 | O69: =WEEKNUM(Table[[#This Row],[Дата визита]]) -> 52 | P69: 12:00:00 | Q69: Ростов-на-Дону, пер. Нефтяной, д. 4 А | R69: Беспалов Г. | S69: Клиент 68 | T69: mail@birdyx.ru | U69: 79008889900 | V69: Инстаграм | W69: Завершено | X69: да | Y69: 4
A70: 43823 | B70: =DAY('База заказов'!$A70) -> 24 | C70: ='База заказов'!$A70 -> 2019-12-24 | D70: =YEAR('База заказов'!$A70) -> 2019 | E70: Гончарова Н. | F70: Укладка кварцвиниловой плитки на подложку | G70: 12500 | J70: =SUM(Table[[#This Row],[Наличн]:[Безнал]])-SUM(Table[[#This Row],[Наличн]:[Безнал]])*Table[[#This Row],[Скидка]] -> 12500 | K70: 43823 | L70: =DAY(Table[[#This Row],[Дата визита]]) -> 24 | M70: =MONTH(Table[[#This Row],[Дата визита]]) -> 1900-01-12 | N70: =YEAR(Table[[#This Row],[Дата визита]]) -> 2019 | O70: =WEEKNUM(Table[[#This Row],[Дата визита]]) -> 52 | P70: 16:00:00 | Q70: Ростов-на-Дону, ул. Станиславского, д. 167/25 | R70: Минин В. | S70: Клиент 69 | T70: mail@birdyx.ru | U70: 79008889900 | V70: Яндекс | W70: Завершено | X70: да | Y70: 3
A71: 43824 | B71: =DAY('База заказов'!$A71) -> 25 | C71: ='База заказов'!$A71 -> 2019-12-25 | D71: =YEAR('База заказов'!$A71) -> 2019 | E71: Мишин М. | F71: Укладка паркетной доски на подложку | G71: 27000 | J71: =SUM(Table[[#This Row],[Наличн]:[Безнал]])-SUM(Table[[#This Row],[Наличн]:[Безнал]])*Table[[#This Row],[Скидка]] -> 27000 | K71: 43824 | L71: =DAY(Table[[#This Row],[Дата визита]]) -> 25 | M71: =MONTH(Table[[#This Row],[Дата визита]]) -> 1900-01-12 | N71: =YEAR(Table[[#This Row],[Дата визита]]) -> 2019 | O71: =WEEKNUM(Table[[#This Row],[Дата визита]]) -> 52 | P71: 18:00:00 | Q71: Ростов-на-Дону, проспект Соколова, д. 85 | R71: Белоусов В. | S71: Клиент 70 | T71: mail@birdyx.ru | U71: 79008889900 | V71: По совету | W71: Завершено | X71: да | Y71: 4
A72: 43825 | B72: =DAY('База заказов'!$A72) -> 26 | C72: ='База заказов'!$A72 -> 2019-12-26 | D72: =YEAR('База заказов'!$A72) -> 2019 | E72: Иванов И. | F72: Укладка массивной доски | H72: 11400 | J72: =SUM(Table[[#This Row],[Наличн]:[Безнал]])-SUM(Table[[#This Row],[Наличн]:[Безнал]])*Table[[#This Row],[Скидка]] -> 11400 | K72: 43827 | L72: =DAY(Table[[#This Row],[Дата визита]]) -> 28 | M72: =MONTH(Table[[#This Row],[Дата визита]]) -> 1900-01-12 | N72: =YEAR(Table[[#This Row],[Дата визита]]) -> 2019 | O72: =WEEKNUM(Table[[#This Row],[Дата визита]]) -> 52 | P72: 10:00:00 | Q72: Ростов-на-Дону, ул. Московская, д. 80 | R72: Минин В. | S72: Клиент 71 | T72: mail@birdyx.ru | U72: 79008889900 | V72: Авито | W72: Завершено | X72: да | Y72: 5
A73: 43826 | B73: =DAY('База заказов'!$A73) -> 27 | C73: ='База заказов'!$A73 -> 2019-12-27 | D73: =YEAR('База заказов'!$A73) -> 2019 | E73: Петров В. | F73: Монтаж потолочного плинтуса | H73: 38100 | J73: =SUM(Table[[#This Row],[Наличн]:[Безнал]])-SUM(Table[[#This Row],[Наличн]:[Безнал]])*Table[[#This Row],[Скидка]] -> 38100 | K73: 43827 | L73: =DAY(Table[[#This Row],[Дата визита]]) -> 28 | M73: =MONTH(Table[[#This Row],[Дата визита]]) -> 1900-01-12 | N73: =YEAR(Table[[#This Row],[Дата визита]]) -> 2019 | O73: =WEEKNUM(Table[[#This Row],[Дата визита]]) -> 52 | P73: 12:00:00 | Q73: Ростов-на-Дону, ул. Текучева, д. 151/2 | R73: Субботин С. | S73: Клиент 72 | T73: mail@birdyx.ru | U73: 79008889900 | V73: Сайт | W73: Завершено | X73: да | Y73: 4
A74: 43827 | B74: =DAY('База заказов'!$A74) -> 28 | C74: ='База заказов'!$A74 -> 2019-12-28 | D74: =YEAR('База заказов'!$A74) -> 2019 | E74: Гончарова Н. | F74: Демонтаж входной двери | H74: 36800 | J74: =SUM(Table[[#This Row],[Наличн]:[Безнал]])-SUM(Table[[#This Row],[Наличн]:[Безнал]])*Table[[#This Row],[Скидка]] -> 36800 | K74: 43827 | L74: =DAY(Table[[#This Row],[Дата визита]]) -> 28 | M74: =MONTH(Table[[#This Row],[Дата визита]]) -> 1900-01-12 | N74: =YEAR(Table[[#This Row],[Дата визита]]) -> 2019 | O74: =WEEKNUM(Table[[#This Row],[Дата визита]]) -> 52 | P74: 16:00:00 | Q74: Ростов-На-Дону, ул. Тургеневская, д. 73 | R74: Минин В. | S74: Клиент 73 | T74: mail@birdyx.ru | U74: 79008889900 | V74: Сайт | W74: Завершено | X74: да | Y74: 5
A75: 43827 | B75: =DAY('База заказов'!$A75) -> 28 | C75: ='База заказов'!$A75 -> 2019-12-28 | D75: =YEAR('База заказов'!$A75) -> 2019 | E75: Иванов И. | F75: Монтаж потолочного плинтуса | H75: 12200 | J75: =SUM(Table[[#This Row],[Наличн]:[Безнал]])-SUM(Table[[#This Row],[Наличн]:[Безнал]])*Table[[#This Row],[Скидка]] -> 12200 | K75: 43827 | L75: =DAY(Table[[#This Row],[Дата визита]]) -> 28 | M75: =MONTH(Table[[#This Row],[Дата визита]]) -> 1900-01-12 | N75: =YEAR(Table[[#This Row],[Дата визита]]) -> 2019 | O75: =WEEKNUM(Table[[#This Row],[Дата визита]]) -> 52 | P75: 18:00:00 | Q75: Ростов-на-Дону, бульвар Комарова, д. 20/1 | R75: Белозеров В. | S75: Клиент 74 | T75: mail@birdyx.ru | U75: 79008889900 | V75: Авито | W75: Отмена | X75: да | Y75: 5
A76: 43827 | B76: =DAY('База заказов'!$A76) -> 28 | C76: ='База заказов'!$A76 -> 2019-12-28 | D76: =YEAR('База заказов'!$A76) -> 2019 | E76: Петров В. | F76: Выкройка и монтаж дополнительных углов | H76: 14300 | I76: 0.15 | J76: =SUM(Table[[#This Row],[Наличн]:[Безнал]])-SUM(Table[[#This Row],[Наличн]:[Безнал]])*Table[[#This Row],[Скидка]] -> 12155 | K76: 43827 | L76: =DAY(Table[[#This Row],[Дата визита]]) -> 28 | M76: =MONTH(Table[[#This Row],[Дата визита]]) -> 1900-01-12 | N76: =YEAR(Table[[#This Row],[Дата визита]]) -> 2019 | O76: =WEEKNUM(Table[[#This Row],[Дата визита]]) -> 52 | P76: 10:00:00 | Q76: Ростов-на-Дону, ул. Пушкинская, д. 225/41/224 | R76: Беспалов Г. | S76: Клиент 75 | T76: mail@birdyx.ru | U76: 79008889900 | V76: Авито | W76: Отмена | X76: да | Y76: 4
A77: 43840 | B77: =DAY('База заказов'!$A77) -> 10 | C77: ='База заказов'!$A77 -> 2020-01-10 | D77: =YEAR('База заказов'!$A77) -> 2020 | E77: Иванов И. | F77: Укладка паркетной доски на подложку | H77: 33400 | J77: =SUM(Table[[#This Row],[Наличн]:[Безнал]])-SUM(Table[[#This Row],[Наличн]:[Безнал]])*Table[[#This Row],[Скидка]] -> 33400 | K77: 43840 | L77: =DAY(Table[[#This Row],[Дата визита]]) -> 10 | M77: =MONTH(Table[[#This Row],[Дата визита]]) -> 1900-01-01 | N77: =YEAR(Table[[#This Row],[Дата визита]]) -> 2020 | O77: =WEEKNUM(Table[[#This Row],[Дата визита]]) -> 2 | P77: 12:00:00 | Q77: Ростов-На-Дону, ул. Пушкинская, д. 1/36 | R77: Устинов С. | S77: Клиент 76 | T77: mail@birdyx.ru | U77: 79008889900 | V77: Авито | W77: Отмена | X77: да | Y77: 5
A78: 43841 | B78: =DAY('База заказов'!$A78) -> 11 | C78: ='База заказов'!$A78 -> 2020-01-11 | D78: =YEAR('База заказов'!$A78) -> 2020 | E78: Гончарова Н. | F78: Демонтаж балконного блока | H78: 11500 | J78: =SUM(Table[[#This Row],[Наличн]:[Безнал]])-SUM(Table[[#This Row],[Наличн]:[Безнал]])*Table[[#This Row],[Скидка]] -> 11500 | K78: 43843 | L78: =DAY(Table[[#This Row],[Дата визита]]) -> 13 | M78: =MONTH(Table[[#This Row],[Дата визита]]) -> 1900-01-01 | N78: =YEAR(Table[[#This Row],[Дата визита]]) -> 2020 | O78: =WEEKNUM(Table[[#This Row],[Дата визита]]) -> 3 | P78: 16:00:00 | Q78: Ростов-на-Дону, пер. Газетный, д. 92/85 | R78: Шарапов В. | S78: Клиент 77 | T78: mail@birdyx.ru | U78: 79008889900 | V78: Сайт | W78: Отмена | X78: да | Y78: 3
A79: 43842 | B79: =DAY('База заказов'!$A79) -> 12 | C79: ='База заказов'!$A79 -> 2020-01-12 | D79: =YEAR('База заказов'!$A79) -> 2020 | E79: Мишин М. | F79: Укладка паркетной доски на клей | G79: 16500 | J79: =SUM(Table[[#This Row],[Наличн]:[Безнал]])-SUM(Table[[#This Row],[Наличн]:[Безнал]])*Table[[#This Row],[Скидка]] -> 16500 | K79: 43843 | L79: =DAY(Table[[#This Row],[Дата визита]]) -> 13 | M79: =MONTH(Table[[#This Row],[Дата визита]]) -> 1900-01-01 | N79: =YEAR(Table[[#This Row],[Дата визита]]) -> 2020 | O79: =WEEKNUM(Table[[#This Row],[Дата визита]]) -> 3 | P79: 18:00:00 | Q79: Ростов-на-Дону, проспект Буденновский, д. 106/2 | R79: Белоусов В. | S79: Клиент 78 | T79: mail@birdyx.ru | U79: 79008889900 | V79: Сайт | W79: Отмена | X79: да | Y79: 5
A80: 43843 | B80: =DAY('База заказов'!$A80) -> 13 | C80: ='База заказов'!$A80 -> 2020-01-13 | D80: =YEAR('База заказов'!$A80) -> 2020 | E80: Иванов И. | F80: Укладка массивной доски | G80: 39800 | J80: =SUM(Table[[#This Row],[Наличн]:[Безнал]])-SUM(Table[[#This Row],[Наличн]:[Безнал]])*Table[[#This Row],[Скидка]] -> 39800 | K80: 43843 | L80: =DAY(Table[[#This Row],[Дата визита]]) -> 13 | M80: =MONTH(Table[[#This Row],[Дата визита]]) -> 1900-01-01 | N80: =YEAR(Table[[#This Row],[Дата визита]]) -> 2020 | O80: =WEEKNUM(Table[[#This Row],[Дата визита]]) -> 3 | P80: 10:00:00 | Q80: Ростов-на-Дону, ул. Пушкинская, д. 104/32 | R80: Минин В. | S80: Клиент 79 | T80: mail@birdyx.ru | U80: 79008889900 | V80: Авито | W80: Завершено | X80: да | Y80: 4
A81: 43843 | B81: =DAY('База заказов'!$A81) -> 13 | C81: ='База заказов'!$A81 -> 2020-01-13 | D81: =YEAR('База заказов'!$A81) -> 2020 | E81: Петров В. | F81: Монтаж потолочного плинтуса | G81: 15300 | J81: =SUM(Table[[#This Row],[Наличн]:[Безнал]])-SUM(Table[[#This Row],[Наличн]:[Безнал]])*Table[[#This Row],[Скидка]] -> 15300 | K81: 43843 | L81: =DAY(Table[[#This Row],[Дата визита]]) -> 13 | M81: =MONTH(Table[[#This Row],[Дата визита]]) -> 1900-01-01 | N81: =YEAR(Table[[#This Row],[Дата визита]]) -> 2020 | O81: =WEEKNUM(Table[[#This Row],[Дата визита]]) -> 3 | P81: 12:00:00 | Q81: Ростов-на-Дону, ул. Республиканская, д. 1/8 | R81: Шарапов В. | S81: Клиент 80 | T81: mail@birdyx.ru | U81: 79008889900 | V81: Сайт | W81: Завершено | X81: да | Y81: 5
A82: 43843 | B82: =DAY('База заказов'!$A82) -> 13 | C82: ='База заказов'!$A82 -> 2020-01-13 | D82: =YEAR('База заказов'!$A82) -> 2020 | E82: Гончарова Н. | F82: Демонтаж входной двери | G82: 21500 | J82: =SUM(Table[[#This Row],[Наличн]:[Безнал]])-SUM(Table[[#This Row],[Наличн]:[Безнал]])*Table[[#This Row],[Скидка]] -> 21500 | K82: 43843 | L82: =DAY(Table[[#This Row],[Дата визита]]) -> 13 | M82: =MONTH(Table[[#This Row],[Дата визита]]) -> 1900-01-01 | N82: =YEAR(Table[[#This Row],[Дата визита]]) -> 2020 | O82: =WEEKNUM(Table[[#This Row],[Дата визита]]) -> 3 | P82: 16:00:00 | Q82: Ростов-на-Дону, ул. Красноармейская, д. 33 | R82: Субботин С. | S82: Клиент 81 | T82: mail@birdyx.ru | U82: 79008889900 | V82: По совету | W82: Завершено | X82: да | Y82: 5
A83: 43846 | B83: =DAY('База заказов'!$A83) -> 16 | C83: ='База заказов'!$A83 -> 2020-01-16 | D83: =YEAR('База заказов'!$A83) -> 2020 | E83: Гончарова Н. | F83: Демонтаж раковины | G83: 8100 | J83: =SUM(Table[[#This Row],[Наличн]:[Безнал]])-SUM(Table[[#This Row],[Наличн]:[Безнал]])*Table[[#This Row],[Скидка]] -> 8100 | K83: 43846 | L83: =DAY(Table[[#This Row],[Дата визита]]) -> 16 | M83: =MONTH(Table[[#This Row],[Дата визита]]) -> 1900-01-01 | N83: =YEAR(Table[[#This Row],[Дата визита]]) -> 2020 | O83: =WEEKNUM(Table[[#This Row],[Дата визита]]) -> 3 | P83: 18:00:00 | Q83: Ростов-на-Дону, ул. Максима Горького, д. 11/43 | R83: Минин В. | S83: Клиент 82 | T83: mail@birdyx.ru | U83: 79008889900 | V83: Яндекс | W83: Завершено | X83: да | Y83: 4
A84: 43846 | B84: =DAY('База заказов'!$A84) -> 16 | C84: ='База заказов'!$A84 -> 2020-01-16 | D84: =YEAR('База заказов'!$A84) -> 2020 | E84: Мишин М. | F84: Демонтаж душевой кабины | H84: 23400 | I84: 0.15 | J84: =SUM(Table[[#This Row],[Наличн]:[Безнал]])-SUM(Table[[#This Row],[Наличн]:[Безнал]])*Table[[#This Row],[Скидка]] -> 19890 | K84: 43846 | L84: =DAY(Table[[#This Row],[Дата визита]]) -> 16 | M84: =MONTH(Table[[#This Row],[Дата визита]]) -> 1900-01-01 | N84: =YEAR(Table[[#This Row],[Дата визита]]) -> 2020 | O84: =WEEKNUM(Table[[#This Row],[Дата визита]]) -> 3 | P84: 10:00:00 | Q84: Ростов-на-Дону, ул. Алма-Атинская, д. 29/2 А | R84: Белозеров В. | S84: Клиент 83 | T84: mail@birdyx.ru | U84: 79008889900 | V84: Инстаграм | W84: Завершено | X84: да | Y84: 5
A85: 43848 | B85: =DAY('База заказов'!$A85) -> 18 | C85: ='База заказов'!$A85 -> 2020-01-18 | D85: =YEAR('База заказов'!$A85) -> 2020 | E85: Иванов И. | F85: Демонтаж балконного блока | H85: 37700 | J85: =SUM(Table[[#This Row],[Наличн]:[Безнал]])-SUM(Table[[#This Row],[Наличн]:[Безнал]])*Table[[#This Row],[Скидка]] -> 37700 | K85: 43848 | L85: =DAY(Table[[#This Row],[Дата визита]]) -> 18 | M85: =MONTH(Table[[#This Row],[Дата визита]]) -> 1900-01-01 | N85: =YEAR(Table[[#This Row],[Дата визита]]) -> 2020 | O85: =WEEKNUM(Table[[#This Row],[Дата визита]]) -> 3 | P85: 12:00:00 | Q85: Ростов-на-Дону, ул. Малиновского, д. 68/1 | R85: Беспалов Г. | S85: Клиент 84 | T85: mail@birdyx.ru | U85: 79008889900 | V85: Яндекс | W85: Завершено | X85: да | Y85: 5
A86: 43849 | B86: =DAY('База заказов'!$A86) -> 19 | C86: ='База заказов'!$A86 -> 2020-01-19 | D86: =YEAR('База заказов'!$A86) -> 2020 | E86: Петров В. | F86: Укладка паркетной доски на клей | H86: 11900 | J86: =SUM(Table[[#This Row],[Наличн]:[Безнал]])-SUM(Table[[#This Row],[Наличн]:[Безнал]])*Table[[#This Row],[Скидка]] -> 11900 | K86: 43849 | L86: =DAY(Table[[#This Row],[Дата визита]]) -> 19 | M86: =MONTH(Table[[#This Row],[Дата визита]]) -> 1900-01-01 | N86: =YEAR(Table[[#This Row],[Дата визита]]) -> 2020 | O86: =WEEKNUM(Table[[#This Row],[Дата визита]]) -> 4 | P86: 16:00:00 | Q86: Ростов-на-Дону, ул. Береговая, д. 5 | R86: Устинов С. | S86: Клиент 85 | T86: mail@birdyx.ru | U86: 79008889900 | V86: Сайт | W86: Завершено | X86: да | Y86: 5
A87: 43850 | B87: =DAY('База заказов'!$A87) -> 20 | C87: ='База заказов'!$A87 -> 2020-01-20 | D87: =YEAR('База заказов'!$A87) -> 2020 | E87: Иванов И. | F87: Демонтаж входной двери | H87: 8400 | J87: =SUM(Table[[#This Row],[Наличн]:[Безнал]])-SUM(Table[[#This Row],[Наличн]:[Безнал]])*Table[[#This Row],[Скидка]] -> 8400 | K87: 43850 | L87: =DAY(Table[[#This Row],[Дата визита]]) -> 20 | M87: =MONTH(Table[[#This Row],[Дата визита]]) -> 1900-01-01 | N87: =YEAR(Table[[#This Row],[Дата визита]]) -> 2020 | O87: =WEEKNUM(Table[[#This Row],[Дата визита]]) -> 4 | P87: 18:00:00 | Q87: Ростов-на-Дону, пл. Гагарина, д. 1 | R87: Минин В. | S87: Клиент 86 | T87: mail@birdyx.ru | U87: 79008889900 | V87: Авито | W87: Завершено | X87: да | Y87: 3
A88: 43850 | B88: =DAY('База заказов'!$A88) -> 20 | C88: ='База заказов'!$A88 -> 2020-01-20 | D88: =YEAR('База заказов'!$A88) -> 2020 | E88: Гончарова Н. | F88: Укладка паркетной доски на подложку | H88: 22900 | J88: =SUM(Table[[#This Row],[Наличн]:[Безнал]])-SUM(Table[[#This Row],[Наличн]:[Безнал]])*Table[[#This Row],[Скидка]] -> 22900 | K88: 43850 | L88: =DAY(Table[[#This Row],[Дата визита]]) -> 20 | M88: =MONTH(Table[[#This Row],[Дата визита]]) -> 1900-01-01 | N88: =YEAR(Table[[#This Row],[Дата визита]]) -> 2020 | O88: =WEEKNUM(Table[[#This Row],[Дата визита]]) -> 4 | P88: 09:00:00 | Q88: Ростов-на-Дону, ул. Механизаторов, д. 6А | R88: Минин В. | S88: Клиент 87 | T88: mail@birdyx.ru | U88: 79008889900 | V88: Авито | W88: Завершено | X88: да | Y88: 3
A89: 43850 | B89: =DAY('База заказов'!$A89) -> 20 | C89: ='База заказов'!$A89 -> 2020-01-20 | D89: =YEAR('База заказов'!$A89) -> 2020 | E89: Мишин М. | F89: Укладка массивной доски | H89: 8700 | J89: =SUM(Table[[#This Row],[Наличн]:[Безнал]])-SUM(Table[[#This Row],[Наличн]:[Безнал]])*Table[[#This Row],[Скидка]] -> 8700 | K89: 43855 | L89: =DAY(Table[[#This Row],[Дата визита]]) -> 25 | M89: =MONTH(Table[[#This Row],[Дата визита]]) -> 1900-01-01 | N89: =YEAR(Table[[#This Row],[Дата визита]]) -> 2020 | O89: =WEEKNUM(Table[[#This Row],[Дата визита]]) -> 4 | P89: 11:00:00 | Q89: Ростов-На-Дону, проспект Буденновский, д. 3/3 | R89: Субботин С. | S89: Клиент 88 | T89: mail@birdyx.ru | U89: 79008889900 | V89: Сайт | W89: Завершено | X89: да | Y89: 2
A90: 43853 | B90: =DAY('База заказов'!$A90) -> 23 | C90: ='База заказов'!$A90 -> 2020-01-23 | D90: =YEAR('База заказов'!$A90) -> 2020 | E90: Иванов И. | F90: Монтаж потолочного плинтуса | H90: 9400 | J90: =SUM(Table[[#This Row],[Наличн]:[Безнал]])-SUM(Table[[#This Row],[Наличн]:[Безнал]])*Table[[#This Row],[Скидка]] -> 9400 | K90: 43855 | L90: =DAY(Table[[#This Row],[Дата визита]]) -> 25 | M90: =MONTH(Table[[#This Row],[Дата визита]]) -> 1900-01-01 | N90: =YEAR(Table[[#This Row],[Дата визита]]) -> 2020 | O90: =WEEKNUM(Table[[#This Row],[Дата визита]]) -> 4 | P90: 15:00:00 | Q90: Ростов-на-Дону, ул. Обороны, д. 40/17 | R90: Белозеров В. | S90: Клиент 89 | T90: mail@birdyx.ru | U90: 79008889900 | V90: Инстаграм | W90: Завершено | X90: да | Y90: 4
A91: 43853 | B91: =DAY('База заказов'!$A91) -> 23 | C91: ='База заказов'!$A91 -> 2020-01-23 | D91: =YEAR('База заказов'!$A91) -> 2020 | E91: Петров В. | F91: Укладка массивной доски | H91: 30900 | J91: =SUM(Table[[#This Row],[Наличн]:[Безнал]])-SUM(Table[[#This Row],[Наличн]:[Безнал]])*Table[[#This Row],[Скидка]] -> 30900 | K91: 43855 | L91: =DAY(Table[[#This Row],[Дата визита]]) -> 25 | M91: =MONTH(Table[[#This Row],[Дата визита]]) -> 1900-01-01 | N91: =YEAR(Table[[#This Row],[Дата визита]]) -> 2020 | O91: =WEEKNUM(Table[[#This Row],[Дата визита]]) -> 4 | P91: 17:00:00 | Q91: Ростов-на-Дону, ул. Судостроительная, д. 55 | R91: Беспалов Г. | S91: Клиент 90 | T91: mail@birdyx.ru | U91: 79008889900 | V91: Яндекс | W91: Завершено | X91: да | Y91: 5
A92: 43855 | B92: =DAY('База заказов'!$A92) -> 25 | C92: ='База заказов'!$A92 -> 2020-01-25 | D92: =YEAR('База заказов'!$A92) -> 2020 | E92: Гончарова Н. | F92: Монтаж потолочного плинтуса | H92: 22500 | J92: =SUM(Table[[#This Row],[Наличн]:[Безнал]])-SUM(Table[[#This Row],[Наличн]:[Безнал]])*Table[[#This Row],[Скидка]] -> 22500 | K92: 43855 | L92: =DAY(Table[[#This Row],[Дата визита]]) -> 25 | M92: =MONTH(Table[[#This Row],[Дата визита]]) -> 1900-01-01 | N92: =YEAR(Table[[#This Row],[Дата визита]]) -> 2020 | O92: =WEEKNUM(Table[[#This Row],[Дата визита]]) -> 4 | P92: 09:00:00 | Q92: Ростов-На-Дону, пер. Семашко, д. 46/1 | R92: Шарапов В. | S92: Клиент 91 | T92: mail@birdyx.ru | U92: 79008889900 | V92: По совету | W92: Завершено | X92: да | Y92: 3
A93: 43856 | B93: =DAY('База заказов'!$A93) -> 26 | C93: ='База заказов'!$A93 -> 2020-01-26 | D93: =YEAR('База заказов'!$A93) -> 2020 | E93: Гончарова Н. | F93: Выкройка и монтаж дополнительных углов | H93: 11300 | I93: 0.15 | J93: =SUM(Table[[#This Row],[Наличн]:[Безнал]])-SUM(Table[[#This Row],[Наличн]:[Безнал]])*Table[[#This Row],[Скидка]] -> 9605 | K93: 43856 | L93: =DAY(Table[[#This Row],[Дата визита]]) -> 26 | M93: =MONTH(Table[[#This Row],[Дата визита]]) -> 1900-01-01 | N93: =YEAR(Table[[#This Row],[Дата визита]]) -> 2020 | O93: =WEEKNUM(Table[[#This Row],[Дата визита]]) -> 5 | P93: 11:00:00 | Q93: Ростов-на-Дону, проспект Соколова, д. 11/Б | R93: Белоусов В. | S93: Клиент 92 | T93: mail@birdyx.ru | U93: 79008889900 | V93: Авито | W93: Завершено | X93: да | Y93: 5
A94: 43857 | B94: =DAY('База заказов'!$A94) -> 27 | C94: ='База заказов'!$A94 -> 2020-01-27 | D94: =YEAR('База заказов'!$A94) -> 2020 | E94: Мишин М. | F94: Укладка паркетной доски на подложку | H94: 38300 | J94: =SUM(Table[[#This Row],[Наличн]:[Безнал]])-SUM(Table[[#This Row],[Наличн]:[Безнал]])*Table[[#This Row],[Скидка]] -> 38300 | K94: 43857 | L94: =DAY(Table[[#This Row],[Дата визита]]) -> 27 | M94: =MONTH(Table[[#This Row],[Дата визита]]) -> 1900-01-01 | N94: =YEAR(Table[[#This Row],[Дата визита]]) -> 2020 | O94: =WEEKNUM(Table[[#This Row],[Дата визита]]) -> 5 | P94: 15:00:00 | Q94: Ростов-на-Дону, ул. Ларина, д. 41/19 | R94: Шарапов В. | S94: Клиент 93 | T94: mail@birdyx.ru | U94: 79008889900 | V94: Сайт | W94: Завершено | X94: да | Y94: 4
A95: 43857 | B95: =DAY('База заказов'!$A95) -> 27 | C95: ='База заказов'!$A95 -> 2020-01-27 | D95: =YEAR('База заказов'!$A95) -> 2020 | E95: Иванов И. | F95: Демонтаж входной двери | H95: 29700 | J95: =SUM(Table[[#This Row],[Наличн]:[Безнал]])-SUM(Table[[#This Row],[Наличн]:[Безнал]])*Table[[#This Row],[Скидка]] -> 29700 | K95: 43857 | L95: =DAY(Table[[#This Row],[Дата визита]]) -> 27 | M95: =MONTH(Table[[#This Row],[Дата визита]]) -> 1900-01-01 | N95: =YEAR(Table[[#This Row],[Дата визита]]) -> 2020 | O95: =WEEKNUM(Table[[#This Row],[Дата визита]]) -> 5 | P95: 17:00:00 | Q95: Ростов-на-Дону, проспект Коммунистический, д. 20/4 | R95: Субботин С. | S95: Клиент 94 | T95: mail@birdyx.ru | U95: 79008889900 | V95: Авито | W95: Завершено | X95: да | Y95: 3
A96: 43857 | B96: =DAY('База заказов'!$A96) -> 27 | C96: ='База заказов'!$A96 -> 2020-01-27 | D96: =YEAR('База заказов'!$A96) -> 2020 | E96: Петров В. | F96: Укладка паркетной доски на клей | H96: 29500 | J96: =SUM(Table[[#This Row],[Наличн]:[Безнал]])-SUM(Table[[#This Row],[Наличн]:[Безнал]])*Table[[#This Row],[Скидка]] -> 29500 | K96: 43857 | L96: =DAY(Table[[#This Row],[Дата визита]]) -> 27 | M96: =MONTH(Table[[#This Row],[Дата визита]]) -> 1900-01-01 | N96: =YEAR(Table[[#This Row],[Дата визита]]) -> 2020 | O96: =WEEKNUM(Table[[#This Row],[Дата визита]]) -> 5 | P96: 09:00:00 | Q96: Ростов-на-Дону, ул. Цезаря Куникова, д. 32/А | R96: Минин В. | S96: Клиент 95 | T96: mail@birdyx.ru | U96: 79008889900 | V96: Авито | W96: Завершено | X96: да | Y96: 5
A97: 43860 | B97: =DAY('База заказов'!$A97) -> 30 | C97: ='База заказов'!$A97 -> 2020-01-30 | D97: =YEAR('База заказов'!$A97) -> 2020 | E97: Иванов И. | F97: Укладка массивной доски | H97: 38600 | J97: =SUM(Table[[#This Row],[Наличн]:[Безнал]])-SUM(Table[[#This Row],[Наличн]:[Безнал]])*Table[[#This Row],[Скидка]] -> 38600 | K97: 43860 | L97: =DAY(Table[[#This Row],[Дата визита]]) -> 30 | M97: =MONTH(Table[[#This Row],[Дата визита]]) -> 1900-01-01 | N97: =YEAR(Table[[#This Row],[Дата визита]]) -> 2020 | O97: =WEEKNUM(Table[[#This Row],[Дата визита]]) -> 5 | P97: 11:00:00 | Q97: Ростов-на-Дону, ул. Красноармейская, д. 21 | R97: Белозеров В. | S97: Клиент 96 | T97: mail@birdyx.ru | U97: 79008889900 | V97: Авито | W97: Завершено | X97: да | Y97: 4
A98: 43861 | B98: =DAY('База заказов'!$A98) -> 31 | C98: ='База заказов'!$A98 -> 2020-01-31 | D98: =YEAR('База заказов'!$A98) -> 2020 | E98: Гончарова Н. | F98: Монтаж потолочного плинтуса | H98: 21000 | I98: 0.15 | J98: =SUM(Table[[#This Row],[Наличн]:[Безнал]])-SUM(Table[[#This Row],[Наличн]:[Безнал]])*Table[[#This Row],[Скидка]] -> 17850 | K98: 43861 | L98: =DAY(Table[[#This Row],[Дата визита]]) -> 31 | M98: =MONTH(Table[[#This Row],[Дата визита]]) -> 1900-01-01 | N98: =YEAR(Table[[#This Row],[Дата визита]]) -> 2020 | O98: =WEEKNUM(Table[[#This Row],[Дата визита]]) -> 5 | P98: 15:00:00 | Q98: Ростов-на-Дону, проспект 40-летия Победы, д. 95/3 | R98: Беспалов Г. | S98: Клиент 97 | T98: mail@birdyx.ru | U98: 79008889900 | V98: Сайт | W98: Завершено | X98: да | Y98: 5
A99: 43862 | B99: =DAY('База заказов'!$A99) -> 1 | C99: ='База заказов'!$A99 -> 2020-02-01 | D99: =YEAR('База заказов'!$A99) -> 2020 | E99: Мишин М. | F99: Демонтаж входной двери | H99: 14800 | J99: =SUM(Table[[#This Row],[Наличн]:[Безнал]])-SUM(Table[[#This Row],[Наличн]:[Безнал]])*Table[[#This Row],[Скидка]] -> 14800 | K99: 43862 | L99: =DAY(Table[[#This Row],[Дата визита]]) -> 1 | M99: =MONTH(Table[[#This Row],[Дата визита]]) -> 1900-01-02 | N99: =YEAR(Table[[#This Row],[Дата визита]]) -> 2020 | O99: =WEEKNUM(Table[[#This Row],[Дата визита]]) -> 5 | P99: 17:00:00 | Q99: Ростов-на-Дону, ул. Станиславского, д. 58 | R99: Устинов С. | S99: Клиент 98 | T99: mail@birdyx.ru | U99: 79008889900 | V99: Сайт | W99: Отмена | X99: да | Y99: 4
A100: 43862 | B100: =DAY('База заказов'!$A100) -> 1 | C100: ='База заказов'!$A100 -> 2020-02-01 | D100: =YEAR('База заказов'!$A100) -> 2020 | E100: Иванов И. | F100: Демонтаж душевой кабины | H100: 39200 | J100: =SUM(Table[[#This Row],[Наличн]:[Безнал]])-SUM(Table[[#This Row],[Наличн]:[Безнал]])*Table[[#This Row],[Скидка]] -> 39200 | K100: 43862 | L100: =DAY(Table[[#This Row],[Дата визита]]) -> 1 | M100: =MONTH(Table[[#This Row],[Дата визита]]) -> 1900-01-02 | N100: =YEAR(Table[[#This Row],[Дата визита]]) -> 2020 | O100: =WEEKNUM(Table[[#This Row],[Дата визита]]) -> 5 | P100: 09:00:00 | Q100: Ростов-на-Дону, проспект Буденновский, 86/197 | R100: Шарапов В. | S100: Клиент 99 | T100: mail@birdyx.ru | U100: 79008889900 | V100: Авито | W100: Завершено | X100: да | Y100: 3
A101: 43864 | B101: =DAY('База заказов'!$A101) -> 3 | C101: ='База заказов'!$A101 -> 2020-02-03 | D101: =YEAR('База заказов'!$A101) -> 2020 | E101: Петров В. | F101: Демонтаж раковины | H101: 31900 | J101: =SUM(Table[[#This Row],[Наличн]:[Безнал]])-SUM(Table[[#This Row],[Наличн]:[Безнал]])*Table[[#This Row],[Скидка]] -> 31900 | K101: 43864 | L101: =DAY(Table[[#This Row],[Дата визита]]) -> 3 | M101: =MONTH(Table[[#This Row],[Дата визита]]) -> 1900-01-02 | N101: =YEAR(Table[[#This Row],[Дата визита]]) -> 2020 | O101: =WEEKNUM(Table[[#This Row],[Дата визита]]) -> 6 | P101: 11:00:00 | Q101: Ростов-на-Дону, ул. Липовая, 5 | R101: Белоусов В. | S101: Клиент 100 | T101: mail@birdyx.ru | U101: 79008889900 | V101: Сайт | W101: Завершено | X101: да | Y101: 4
A102: 43865 | B102: =DAY('База заказов'!$A102) -> 4 | C102: ='База заказов'!$A102 -> 2020-02-04 | D102: =YEAR('База заказов'!$A102) -> 2020 | E102: Гончарова Н. | F102: Демонтаж оконного блока | H102: 27900 | J102: =SUM(Table[[#This Row],[Наличн]:[Безнал]])-SUM(Table[[#This Row],[Наличн]:[Безнал]])*Table[[#This Row],[Скидка]] -> 27900 | K102: 43865 | L102: =DAY(Table[[#This Row],[Дата визита]]) -> 4 | M102: =MONTH(Table[[#This Row],[Дата визита]]) -> 1900-01-02 | N102: =YEAR(Table[[#This Row],[Дата визита]]) -> 2020 | O102: =WEEKNUM(Table[[#This Row],[Дата визита]]) -> 6 | P102: 15:00:00 | Q102: Ростов-на-Дону, ул. Станиславского, д. 58 | R102: Субботин С. | S102: Клиент 101 | T102: mail@birdyx.ru | U102: 79008889900 | V102: По совету | W102: Завершено | X102: да | Y102: 3
A103: 43866 | B103: =DAY('База заказов'!$A103) -> 5 | C103: ='База заказов'!$A103 -> 2020-02-05 | D103: =YEAR('База заказов'!$A103) -> 2020 | E103: Иванов И. | F103: Укладка керамической плитки, керамогранита на пол с затиркой | H103: 29900 | J103: =SUM(Table[[#This Row],[Наличн]:[Безнал]])-SUM(Table[[#This Row],[Наличн]:[Безнал]])*Table[[#This Row],[Скидка]] -> 29900 | K103: 43866 | L103: =DAY(Table[[#This Row],[Дата визита]]) -> 5 | M103: =MONTH(Table[[#This Row],[Дата визита]]) -> 1900-01-02 | N103: =YEAR(Table[[#This Row],[Дата визита]]) -> 2020 | O103: =WEEKNUM(Table[[#This Row],[Дата визита]]) -> 6 | P103: 17:00:00 | Q103: Ростов-на-Дону, ул. Беляева, д. 22А | R103: Минин В. | S103: Клиент 102 | T103: mail@birdyx.ru | U103: 79008889900 | V103: Яндекс | W103: Завершено | X103: да | Y103: 4
A104: 43867 | B104: =DAY('База заказов'!$A104) -> 6 | C104: ='База заказов'!$A104 -> 2020-02-06 | D104: =YEAR('База заказов'!$A104) -> 2020 | E104: Петров В. | F104: Укладка массивной доски | H104: 34200 | J104: =SUM(Table[[#This Row],[Наличн]:[Безнал]])-SUM(Table[[#This Row],[Наличн]:[Безнал]])*Table[[#This Row],[Скидка]] -> 34200 | K104: 43867 | L104: =DAY(Table[[#This Row],[Дата визита]]) -> 6 | M104: =MONTH(Table[[#This Row],[Дата визита]]) -> 1900-01-02 | N104: =YEAR(Table[[#This Row],[Дата визита]]) -> 2020 | O104: =WEEKNUM(Table[[#This Row],[Дата визита]]) -> 6 | P104: 10:00:00 | Q104: Ростов-на-Дону, ул. 22 Линия, д. 34 | R104: Шарапов В. | S104: Клиент 103 | T104: mail@birdyx.ru | U104: 79008889900 | V104: Инстаграм | W104: Завершено | X104: да | Y104: 3
A105: 43868 | B105: =DAY('База заказов'!$A105) -> 7 | C105: ='База заказов'!$A105 -> 2020-02-07 | D105: =YEAR('База заказов'!$A105) -> 2020 | E105: Иванов И. | F105: Нанесение декоративной штукатурки | H105: 16700 | J105: =SUM(Table[[#This Row],[Наличн]:[Безнал]])-SUM(Table[[#This Row],[Наличн]:[Безнал]])*Table[[#This Row],[Скидка]] -> 16700 | K105: 43868 | L105: =DAY(Table[[#This Row],[Дата визита]]) -> 7 | M105: =MONTH(Table[[#This Row],[Дата визита]]) -> 1900-01-02 | N105: =YEAR(Table[[#This Row],[Дата визита]]) -> 2020 | O105: =WEEKNUM(Table[[#This Row],[Дата визита]]) -> 6 | P105: 12:00:00 | Q105: Ростов-На-Дону, проспект Шолохова, д. 288 | R105: Субботин С. | S105: Клиент 104 | T105: mail@birdyx.ru | U105: 79008889900 | V105: Яндекс | W105: Завершено | X105: да | Y105: 4
A106: 43868 | B106: =DAY('База заказов'!$A106) -> 7 | C106: ='База заказов'!$A106 -> 2020-02-07 | D106: =YEAR('База заказов'!$A106) -> 2020 | E106: Гончарова Н. | F106: Укладка массивной доски | H106: 20400 | I106: 0.15 | J106: =SUM(Table[[#This Row],[Наличн]:[Безнал]])-SUM(Table[[#This Row],[Наличн]:[Безнал]])*Table[[#This Row],[Скидка]] -> 17340 | K106: 43868 | L106: =DAY(Table[[#This Row],[Дата визита]]) -> 7 | M106: =MONTH(Table[[#This Row],[Дата визита]]) -> 1900-01-02 | N106: =YEAR(Table[[#This Row],[Дата визита]]) -> 2020 | O106: =WEEKNUM(Table[[#This Row],[Дата визита]]) -> 6 | P106: 16:00:00 | Q106: Ростов-на-Дону, проспект Кировский, д. 57 | R106: Минин В. | S106: Клиент 105 | T106: mail@birdyx.ru | U106: 79008889900 | V106: Сайт | W106: Завершено | X106: да | Y106: 5
A107: 43870 | B107: =DAY('База заказов'!$A107) -> 9 | C107: ='База заказов'!$A107 -> 2020-02-09 | D107: =YEAR('База заказов'!$A107) -> 2020 | E107: Мишин М. | F107: Демонтаж входной двери | H107: 24200 | J107: =SUM(Table[[#This Row],[Наличн]:[Безнал]])-SUM(Table[[#This Row],[Наличн]:[Безнал]])*Table[[#This Row],[Скидка]] -> 24200 | K107: 43870 | L107: =DAY(Table[[#This Row],[Дата визита]]) -> 9 | M107: =MONTH(Table[[#This Row],[Дата визита]]) -> 1900-01-02 | N107: =YEAR(Table[[#This Row],[Дата визита]]) -> 2020 | O107: =WEEKNUM(Table[[#This Row],[Дата визита]]) -> 7 | P107: 18:00:00 | Q107: Ростов-на-Дону, Стартовая 20 | R107: Белозеров В. | S107: Клиент 106 | T107: mail@birdyx.ru | U107: 79008889900 | V107: Авито | W107: Завершено | X107: да | Y107: 5
A108: 43870 | B108: =DAY('База заказов'!$A108) -> 9 | C108: ='База заказов'!$A108 -> 2020-02-09 | D108: =YEAR('База заказов'!$A108) -> 2020 | E108: Иванов И. | F108: Поклейка обоев | H108: 11800 | J108: =SUM(Table[[#This Row],[Наличн]:[Безнал]])-SUM(Table[[#This Row],[Наличн]:[Безнал]])*Table[[#This Row],[Скидка]] -> 11800 | K108: 43872 | L108: =DAY(Table[[#This Row],[Дата визита]]) -> 11 | M108: =MONTH(Table[[#This Row],[Дата визита]]) -> 1900-01-02 | N108: =YEAR(Table[[#This Row],[Дата визита]]) -> 2020 | O108: =WEEKNUM(Table[[#This Row],[Дата визита]]) -> 7 | P108: 10:00:00 | Q108: Ростов-на-Дону, Стартовая 22 | R108: Беспалов Г. | S108: Клиент 107 | T108: mail@birdyx.ru | U108: 79008889900 | V108: Авито | W108: Завершено | X108: да | Y108: 4
A109: 43872 | B109: =DAY('База заказов'!$A109) -> 11 | C109: ='База заказов'!$A109 -> 2020-02-11 | D109: =YEAR('База заказов'!$A109) -> 2020 | E109: Петров В. | F109: Укладка паркетной доски на клей | H109: 14400 | J109: =SUM(Table[[#This Row],[Наличн]:[Безнал]])-SUM(Table[[#This Row],[Наличн]:[Безнал]])*Table[[#This Row],[Скидка]] -> 14400 | K109: 43872 | L109: =DAY(Table[[#This Row],[Дата визита]]) -> 11 | M109: =MONTH(Table[[#This Row],[Дата визита]]) -> 1900-01-02 | N109: =YEAR(Table[[#This Row],[Дата визита]]) -> 2020 | O109: =WEEKNUM(Table[[#This Row],[Дата визита]]) -> 7 | P109: 12:00:00 | Q109: Ростов-на-Дону, Жданова 15 | R109: Устинов С. | S109: Клиент 108 | T109: mail@birdyx.ru | U109: 79008889900 | V109: Сайт | W109: Завершено | X109: да | Y109: 5
A110: 43873 | B110: =DAY('База заказов'!$A110) -> 12 | C110: ='База заказов'!$A110 -> 2020-02-12 | D110: =YEAR('База заказов'!$A110) -> 2020 | E110: Гончарова Н. | F110: Выкройка и монтаж дополнительных углов | H110: 26800 | J110: =SUM(Table[[#This Row],[Наличн]:[Безнал]])-SUM(Table[[#This Row],[Наличн]:[Безнал]])*Table[[#This Row],[Скидка]] -> 26800 | K110: 43873 | L110: =DAY(Table[[#This Row],[Дата визита]]) -> 12 | M110: =MONTH(Table[[#This Row],[Дата визита]]) -> 1900-01-02 | N110: =YEAR(Table[[#This Row],[Дата визита]]) -> 2020 | O110: =WEEKNUM(Table[[#This Row],[Дата визита]]) -> 7 | P110: 16:00:00 | Q110: Ростов-на-Дону, ул. Пацаева, д. 2 | R110: Минин В. | S110: Клиент 109 | T110: mail@birdyx.ru | U110: 79008889900 | V110: Инстаграм | W110: Завершено | X110: да | Y110: 4
A111: 43874 | B111: =DAY('База заказов'!$A111) -> 13 | C111: ='База заказов'!$A111 -> 2020-02-13 | D111: =YEAR('База заказов'!$A111) -> 2020 | E111: Гончарова Н. | F111: Выкройка и монтаж дополнительных углов | H111: 29300 | J111: =SUM(Table[[#This Row],[Наличн]:[Безнал]])-SUM(Table[[#This Row],[Наличн]:[Безнал]])*Table[[#This Row],[Скидка]] -> 29300 | K111: 43874 | L111: =DAY(Table[[#This Row],[Дата визита]]) -> 13 | M111: =MONTH(Table[[#This Row],[Дата визита]]) -> 1900-01-02 | N111: =YEAR(Table[[#This Row],[Дата визита]]) -> 2020 | O111: =WEEKNUM(Table[[#This Row],[Дата визита]]) -> 7 | P111: 18:00:00 | Q111: Ростов-на-Дону, ул. 14 Линия, д. 33 | R111: Минин В. | S111: Клиент 110 | T111: mail@birdyx.ru | U111: 79008889900 | V111: Яндекс | W111: Завершено | X111: да | Y111: 5
A112: 43875 | B112: =DAY('База заказов'!$A112) -> 14 | C112: ='База заказов'!$A112 -> 2020-02-14 | D112: =YEAR('База заказов'!$A112) -> 2020 | E112: Мишин М. | F112: Укладка паркетной доски на клей | H112: 13500 | I112: 0.15 | J112: =SUM(Table[[#This Row],[Наличн]:[Безнал]])-SUM(Table[[#This Row],[Наличн]:[Безнал]])*Table[[#This Row],[Скидка]] -> 11475 | K112: 43875 | L112: =DAY(Table[[#This Row],[Дата визита]]) -> 14 | M112: =MONTH(Table[[#This Row],[Дата визита]]) -> 1900-01-02 | N112: =YEAR(Table[[#This Row],[Дата визита]]) -> 2020 | O112: =WEEKNUM(Table[[#This Row],[Дата визита]]) -> 7 | P112: 10:00:00 | Q112: Ростов-на-Дону, пер. Беломорский, д. 94 | R112: Субботин С. | S112: Клиент 111 | T112: mail@birdyx.ru | U112: 79008889900 | V112: По совету | W112: Завершено | X112: да | Y112: 4
A113: 43876 | B113: =DAY('База заказов'!$A113) -> 15 | C113: ='База заказов'!$A113 -> 2020-02-15 | D113: =YEAR('База заказов'!$A113) -> 2020 | E113: Иванов И. | F113: Нанесение декоративной штукатурки | H113: 31600 | I113: 0.15 | J113: =SUM(Table[[#This Row],[Наличн]:[Безнал]])-SUM(Table[[#This Row],[Наличн]:[Безнал]])*Table[[#This Row],[Скидка]] -> 26860 | K113: 43878 | L113: =DAY(Table[[#This Row],[Дата визита]]) -> 17 | M113: =MONTH(Table[[#This Row],[Дата визита]]) -> 1900-01-02 | N113: =YEAR(Table[[#This Row],[Дата визита]]) -> 2020 | O113: =WEEKNUM(Table[[#This Row],[Дата визита]]) -> 8 | P113: 12:00:00 | Q113: Ростов-На-Дону, ул. Извилистая, д. 13/2 | R113: Белозеров В. | S113: Клиент 112 | T113: mail@birdyx.ru | U113: 79008889900 | V113: Авито | W113: Завершено | X113: да | Y113: 5
A114: 43877 | B114: =DAY('База заказов'!$A114) -> 16 | C114: ='База заказов'!$A114 -> 2020-02-16 | D114: =YEAR('База заказов'!$A114) -> 2020 | E114: Петров В. | F114: Монтаж потолочного плинтуса | H114: 38500 | J114: =SUM(Table[[#This Row],[Наличн]:[Безнал]])-SUM(Table[[#This Row],[Наличн]:[Безнал]])*Table[[#This Row],[Скидка]] -> 38500 | K114: 43878 | L114: =DAY(Table[[#This Row],[Дата визита]]) -> 17 | M114: =MONTH(Table[[#This Row],[Дата визита]]) -> 1900-01-02 | N114: =YEAR(Table[[#This Row],[Дата визита]]) -> 2020 | O114: =WEEKNUM(Table[[#This Row],[Дата визита]]) -> 8 | P114: 16:00:00 | Q114: Ростов-на-Дону, пер. Братский, д. 36 | R114: Беспалов Г. | S114: Клиент 113 | T114: mail@birdyx.ru | U114: 79008889900 | V114: Сайт | W114: Завершено | X114: да | Y114: 5
A115: 43878 | B115: =DAY('База заказов'!$A115) -> 17 | C115: ='База заказов'!$A115 -> 2020-02-17 | D115: =YEAR('База заказов'!$A115) -> 2020 | E115: Иванов И. | F115: Укладка фанеры в 1 слой | H115: 38600 | J115: =SUM(Table[[#This Row],[Наличн]:[Безнал]])-SUM(Table[[#This Row],[Наличн]:[Безнал]])*Table[[#This Row],[Скидка]] -> 38600 | K115: 43878 | L115: =DAY(Table[[#This Row],[Дата визита]]) -> 17 | M115: =MONTH(Table[[#This Row],[Дата визита]]) -> 1900-01-02 | N115: =YEAR(Table[[#This Row],[Дата визита]]) -> 2020 | O115: =WEEKNUM(Table[[#This Row],[Дата визита]]) -> 8 | P115: 18:00:00 | Q115: Ростов-На-Дону, ул. Андрея Сладкова, д. 87 | R115: Шарапов В. | S115: Клиент 114 | T115: mail@birdyx.ru | U115: 79008889900 | V115: Сайт | W115: Завершено | X115: да | Y115: 4
A116: 43879 | B116: =DAY('База заказов'!$A116) -> 18 | C116: ='База заказов'!$A116 -> 2020-02-18 | D116: =YEAR('База заказов'!$A116) -> 2020 | E116: Гончарова Н. | F116: Укладка линолеума на клей | H116: 39100 | J116: =SUM(Table[[#This Row],[Наличн]:[Безнал]])-SUM(Table[[#This Row],[Наличн]:[Безнал]])*Table[[#This Row],[Скидка]] -> 39100 | K116: 43879 | L116: =DAY(Table[[#This Row],[Дата визита]]) -> 18 | M116: =MONTH(Table[[#This Row],[Дата визита]]) -> 1900-01-02 | N116: =YEAR(Table[[#This Row],[Дата визита]]) -> 2020 | O116: =WEEKNUM(Table[[#This Row],[Дата визита]]) -> 8 | P116: 10:00:00 | Q116: Ростов-на-Дону, ул. 339-й Стрелковой Дивизии, д. 33 | R116: Белоусов В. | S116: Клиент 115 | T116: mail@birdyx.ru | U116: 79008889900 | V116: Авито | W116: Завершено | X116: да | Y116: 5
A117: 43879 | B117: =DAY('База заказов'!$A117) -> 18 | C117: ='База заказов'!$A117 -> 2020-02-18 | D117: =YEAR('База заказов'!$A117) -> 2020 | E117: Мишин М. | F117: Демонтаж душевой кабины | H117: 31900 | J117: =SUM(Table[[#This Row],[Наличн]:[Безнал]])-SUM(Table[[#This Row],[Наличн]:[Безнал]])*Table[[#This Row],[Скидка]] -> 31900 | K117: 43879 | L117: =DAY(Table[[#This Row],[Дата визита]]) -> 18 | M117: =MONTH(Table[[#This Row],[Дата визита]]) -> 1900-01-02 | N117: =YEAR(Table[[#This Row],[Дата визита]]) -> 2020 | O117: =WEEKNUM(Table[[#This Row],[Дата визита]]) -> 8 | P117: 12:00:00 | Q117: Ростов-на-Дону, Ленина 1 | R117: Шарапов В. | S117: Клиент 116 | T117: mail@birdyx.ru | U117: 79008889900 | V117: Авито | W117: Завершено | X117: да | Y117: 5
A118: 43879 | B118: =DAY('База заказов'!$A118) -> 18 | C118: ='База заказов'!$A118 -> 2020-02-18 | D118: =YEAR('База заказов'!$A118) -> 2020 | E118: Иванов И. | F118: Демонтаж раковины | H118: 13900 | J118: =SUM(Table[[#This Row],[Наличн]:[Безнал]])-SUM(Table[[#This Row],[Наличн]:[Безнал]])*Table[[#This Row],[Скидка]] -> 13900 | K118: 43879 | L118: =DAY(Table[[#This Row],[Дата визита]]) -> 18 | M118: =MONTH(Table[[#This Row],[Дата визита]]) -> 1900-01-02 | N118: =YEAR(Table[[#This Row],[Дата визита]]) -> 2020 | O118: =WEEKNUM(Table[[#This Row],[Дата визита]]) -> 8 | P118: 16:00:00 | Q118: Ростов-на-Дону, Михаила Нагибина 32 | R118: Субботин С. | S118: Клиент 117 | T118: mail@birdyx.ru | U118: 79008889900 | V118: Авито | W118: Завершено | X118: да | Y118: 5
A119: 43879 | B119: =DAY('База заказов'!$A119) -> 18 | C119: ='База заказов'!$A119 -> 2020-02-18 | D119: =YEAR('База заказов'!$A119) -> 2020 | E119: Петров В. | F119: Демонтаж оконного блока | G119: 21200 | J119: =SUM(Table[[#This Row],[Наличн]:[Безнал]])-SUM(Table[[#This Row],[Наличн]:[Безнал]])*Table[[#This Row],[Скидка]] -> 21200 | K119: 43879 | L119: =DAY(Table[[#This Row],[Дата визита]]) -> 18 | M119: =MONTH(Table[[#This Row],[Дата визита]]) -> 1900-01-02 | N119: =YEAR(Table[[#This Row],[Дата визита]]) -> 2020 | O119: =WEEKNUM(Table[[#This Row],[Дата визита]]) -> 8 | P119: 18:00:00 | Q119: Ростов-на-Дону, Михаила Нагибина 32 | R119: Минин В. | S119: Клиент 118 | T119: mail@birdyx.ru | U119: 79008889900 | V119: Сайт | W119: Отмена | X119: да | Y119: 3
A120: 43883 | B120: =DAY('База заказов'!$A120) -> 22 | C120: ='База заказов'!$A120 -> 2020-02-22 | D120: =YEAR('База заказов'!$A120) -> 2020 | E120: Гончарова Н. | F120: Демонтаж входной двери | G120: 11200 | J120: =SUM(Table[[#This Row],[Наличн]:[Безнал]])-SUM(Table[[#This Row],[Наличн]:[Безнал]])*Table[[#This Row],[Скидка]] -> 11200 | K120: 43883 | L120: =DAY(Table[[#This Row],[Дата визита]]) -> 22 | M120: =MONTH(Table[[#This Row],[Дата визита]]) -> 1900-01-02 | N120: =YEAR(Table[[#This Row],[Дата визита]]) -> 2020 | O120: =WEEKNUM(Table[[#This Row],[Дата визита]]) -> 8 | P120: 10:00:00 | Q120: Ростов-на-Дону, ул. Таганрогская, д. 149/1 К 35 | R120: Белозеров В. | S120: Клиент 119 | T120: mail@birdyx.ru | U120: 79008889900 | V120: Сайт | W120: Завершено | X120: да | Y120: 3
A121: 43883 | B121: =DAY('База заказов'!$A121) -> 22 | C121: ='База заказов'!$A121 -> 2020-02-22 | D121: =YEAR('База заказов'!$A121) -> 2020 | E121: Гончарова Н. | F121: Укладка массивной доски | G121: 30500 | J121: =SUM(Table[[#This Row],[Наличн]:[Безнал]])-SUM(Table[[#This Row],[Наличн]:[Безнал]])*Table[[#This Row],[Скидка]] -> 30500 | K121: 43883 | L121: =DAY(Table[[#This Row],[Дата визита]]) -> 22 | M121: =MONTH(Table[[#This Row],[Дата визита]]) -> 1900-01-02 | N121: =YEAR(Table[[#This Row],[Дата визита]]) -> 2020 | O121: =WEEKNUM(Table[[#This Row],[Дата визита]]) -> 8 | P121: 12:00:00 | Q121: Ростов-На-Дону, ул. Большая Садовая, д. 115 | R121: Беспалов Г. | S121: Клиент 120 | T121: mail@birdyx.ru | U121: 79008889900 | V121: Авито | W121: Завершено | X121: да | Y121: 2
A122: 43885 | B122: =DAY('База заказов'!$A122) -> 24 | C122: ='База заказов'!$A122 -> 2020-02-24 | D122: =YEAR('База заказов'!$A122) -> 2020 | E122: Мишин М. | F122: Нанесение декоративной штукатурки | G122: 34900 | J122: =SUM(Table[[#This Row],[Наличн]:[Безнал]])-SUM(Table[[#This Row],[Наличн]:[Безнал]])*Table[[#This Row],[Скидка]] -> 34900 | K122: 43887 | L122: =DAY(Table[[#This Row],[Дата визита]]) -> 26 | M122: =MONTH(Table[[#This Row],[Дата визита]]) -> 1900-01-02 | N122: =YEAR(Table[[#This Row],[Дата визита]]) -> 2020 | O122: =WEEKNUM(Table[[#This Row],[Дата визита]]) -> 9 | P122: 16:00:00 | Q122: Ростов-на-Дону, ул. Большая Садовая, д. 69 | R122: Устинов С. | S122: Клиент 121 | T122: mail@birdyx.ru | U122: 79008889900 | V122: Сайт | W122: Завершено | X122: да | Y122: 4
A123: 43886 | B123: =DAY('База заказов'!$A123) -> 25 | C123: ='База заказов'!$A123 -> 2020-02-25 | D123: =YEAR('База заказов'!$A123) -> 2020 | E123: Иванов И. | F123: Укладка массивной доски | G123: 37800 | J123: =SUM(Table[[#This Row],[Наличн]:[Безнал]])-SUM(Table[[#This Row],[Наличн]:[Безнал]])*Table[[#This Row],[Скидка]] -> 37800 | K123: 43887 | L123: =DAY(Table[[#This Row],[Дата визита]]) -> 26 | M123: =MONTH(Table[[#This Row],[Дата визита]]) -> 1900-01-02 | N123: =YEAR(Table[[#This Row],[Дата визита]]) -> 2020 | O123: =WEEKNUM(Table[[#This Row],[Дата визита]]) -> 9 | P123: 18:00:00 | Q123: Ростов-на-Дону, пер. Университетский, д. 133 | R123: Шарапов В. | S123: Клиент 122 | T123: mail@birdyx.ru | U123: 79008889900 | V123: По совету | W123: Завершено | X123: да | Y123: 3
A124: 43887 | B124: =DAY('База заказов'!$A124) -> 26 | C124: ='База заказов'!$A124 -> 2020-02-26 | D124: =YEAR('База заказов'!$A124) -> 2020 | E124: Петров В. | F124: Демонтаж входной двери | G124: 25900 | J124: =SUM(Table[[#This Row],[Наличн]:[Безнал]])-SUM(Table[[#This Row],[Наличн]:[Безнал]])*Table[[#This Row],[Скидка]] -> 25900 | K124: 43887 | L124: =DAY(Table[[#This Row],[Дата визита]]) -> 26 | M124: =MONTH(Table[[#This Row],[Дата визита]]) -> 1900-01-02 | N124: =YEAR(Table[[#This Row],[Дата визита]]) -> 2020 | O124: =WEEKNUM(Table[[#This Row],[Дата визита]]) -> 9 | P124: 10:00:00 | Q124: Ростов-на-Дону, пер. Соборный, д. 26 | R124: Белоусов В. | S124: Клиент 123 | T124: mail@birdyx.ru | U124: 79008889900 | V124: Яндекс | W124: Завершено | X124: да | Y124: 3
A125: 43888 | B125: =DAY('База заказов'!$A125) -> 27 | C125: ='База заказов'!$A125 -> 2020-02-27 | D125: =YEAR('База заказов'!$A125) -> 2020 | E125: Иванов И. | F125: Поклейка обоев | H125: 38500 | J125: =SUM(Table[[#This Row],[Наличн]:[Безнал]])-SUM(Table[[#This Row],[Наличн]:[Безнал]])*Table[[#This Row],[Скидка]] -> 38500 | K125: 43888 | L125: =DAY(Table[[#This Row],[Дата визита]]) -> 27 | M125: =MONTH(Table[[#This Row],[Дата визита]]) -> 1900-01-02 | N125: =YEAR(Table[[#This Row],[Дата визита]]) -> 2020 | O125: =WEEKNUM(Table[[#This Row],[Дата визита]]) -> 9 | P125: 12:00:00 | Q125: Ростов-на-Дону, проспект Сиверса, д. 1 | R125: Субботин С. | S125: Клиент 124 | T125: mail@birdyx.ru | U125: 79008889900 | V125: Инстаграм | W125: Завершено | X125: да | Y125: 4
A126: 43888 | B126: =DAY('База заказов'!$A126) -> 27 | C126: ='База заказов'!$A126 -> 2020-02-27 | D126: =YEAR('База заказов'!$A126) -> 2020 | E126: Гончарова Н. | F126: Укладка паркетной доски на клей | H126: 15500 | J126: =SUM(Table[[#This Row],[Наличн]:[Безнал]])-SUM(Table[[#This Row],[Наличн]:[Безнал]])*Table[[#This Row],[Скидка]] -> 15500 | K126: 43888 | L126: =DAY(Table[[#This Row],[Дата визита]]) -> 27 | M126: =MONTH(Table[[#This Row],[Дата визита]]) -> 1900-01-02 | N126: =YEAR(Table[[#This Row],[Дата визита]]) -> 2020 | O126: =WEEKNUM(Table[[#This Row],[Дата визита]]) -> 9 | P126: 16:00:00 | Q126: Ростов-на-Дону, ул. Большая Садовая, д. 105/42 | R126: Белозеров В. | S126: Клиент 125 | T126: mail@birdyx.ru | U126: 79008889900 | V126: Яндекс | W126: Завершено | X126: да | Y126: 3
A127: 43891 | B127: =DAY('База заказов'!$A127) -> 1 | C127: ='База заказов'!$A127 -> 2020-03-01 | D127: =YEAR('База заказов'!$A127) -> 2020 | E127: Мишин М. | F127: Выкройка и монтаж дополнительных углов | H127: 32400 | J127: =SUM(Table[[#This Row],[Наличн]:[Безнал]])-SUM(Table[[#This Row],[Наличн]:[Безнал]])*Table[[#This Row],[Скидка]] -> 32400 | K127: 43891 | L127: =DAY(Table[[#This Row],[Дата визита]]) -> 1 | M127: =MONTH(Table[[#This Row],[Дата визита]]) -> 1900-01-03 | N127: =YEAR(Table[[#This Row],[Дата визита]]) -> 2020 | O127: =WEEKNUM(Table[[#This Row],[Дата визита]]) -> 10 | P127: 18:00:00 | Q127: Ростов-на-Дону, ул. Максима Горького, д. 149 | R127: Беспалов Г. | S127: Клиент 126 | T127: mail@birdyx.ru | U127: 79008889900 | V127: Сайт | W127: Завершено | X127: да | Y127: 4
A128: 43892 | B128: =DAY('База заказов'!$A128) -> 2 | C128: ='База заказов'!$A128 -> 2020-03-02 | D128: =YEAR('База заказов'!$A128) -> 2020 | E128: Иванов И. | F128: Демонтаж входной двери | H128: 8400 | J128: =SUM(Table[[#This Row],[Наличн]:[Безнал]])-SUM(Table[[#This Row],[Наличн]:[Безнал]])*Table[[#This Row],[Скидка]] -> 8400 | K128: 43892 | L128: =DAY(Table[[#This Row],[Дата визита]]) -> 2 | M128: =MONTH(Table[[#This Row],[Дата визита]]) -> 1900-01-03 | N128: =YEAR(Table[[#This Row],[Дата визита]]) -> 2020 | O128: =WEEKNUM(Table[[#This Row],[Дата визита]]) -> 10 | P128: 10:00:00 | Q128: Ростов-на-Дону, проспект Буденновский, д. 97 | R128: Минин В. | S128: Клиент 127 | T128: mail@birdyx.ru | U128: 79008889900 | V128: Авито | W128: Завершено | X128: да | Y128: 5
A129: 43893 | B129: =DAY('База заказов'!$A129) -> 3 | C129: ='База заказов'!$A129 -> 2020-03-03 | D129: =YEAR('База заказов'!$A129) -> 2020 | E129: Петров В. | F129: Укладка паркетной доски на клей | H129: 37700 | I129: 0.15 | J129: =SUM(Table[[#This Row],[Наличн]:[Безнал]])-SUM(Table[[#This Row],[Наличн]:[Безнал]])*Table[[#This Row],[Скидка]] -> 32045 | K129: 43893 | L129: =DAY(Table[[#This Row],[Дата визита]]) -> 3 | M129: =MONTH(Table[[#This Row],[Дата визита]]) -> 1900-01-03 | N129: =YEAR(Table[[#This Row],[Дата визита]]) -> 2020 | O129: =WEEKNUM(Table[[#This Row],[Дата визита]]) -> 10 | P129: 12:00:00 | Q129: Ростов-на-Дону, ул. Советская, д. 26/1 | R129: Шарапов В. | S129: Клиент 128 | T129: mail@birdyx.ru | U129: 79008889900 | V129: Авито | W129: Завершено | X129: да | Y129: 4
A130: 43894 | B130: =DAY('База заказов'!$A130) -> 4 | C130: ='База заказов'!$A130 -> 2020-03-04 | D130: =YEAR('База заказов'!$A130) -> 2020 | E130: Гончарова Н. | F130: Демонтаж раковины | H130: 21900 | J130: =SUM(Table[[#This Row],[Наличн]:[Безнал]])-SUM(Table[[#This Row],[Наличн]:[Безнал]])*Table[[#This Row],[Скидка]] -> 21900 | K130: 43894 | L130: =DAY(Table[[#This Row],[Дата визита]]) -> 4 | M130: =MONTH(Table[[#This Row],[Дата визита]]) -> 1900-01-03 | N130: =YEAR(Table[[#This Row],[Дата визита]]) -> 2020 | O130: =WEEKNUM(Table[[#This Row],[Дата визита]]) -> 10 | P130: 16:00:00 | Q130: Ростов-на-Дону, ул. Мечникова, д. 43 | R130: Субботин С. | S130: Клиент 129 | T130: mail@birdyx.ru | U130: 79008889900 | V130: Сайт | W130: Завершено | X130: да | Y130: 5
A131: 43895 | B131: =DAY('База заказов'!$A131) -> 5 | C131: ='База заказов'!$A131 -> 2020-03-05 | D131: =YEAR('База заказов'!$A131) -> 2020 | E131: Гончарова Н. | F131: Демонтаж душевой кабины | H131: 35200 | J131: =SUM(Table[[#This Row],[Наличн]:[Безнал]])-SUM(Table[[#This Row],[Наличн]:[Безнал]])*Table[[#This Row],[Скидка]] -> 35200 | K131: 43895 | L131: =DAY(Table[[#This Row],[Дата визита]]) -> 5 | M131: =MONTH(Table[[#This Row],[Дата визита]]) -> 1900-01-03 | N131: =YEAR(Table[[#This Row],[Дата визита]]) -> 2020 | O131: =WEEKNUM(Table[[#This Row],[Дата визита]]) -> 10 | P131: 18:00:00 | Q131: Ростов-на-Дону, пер. Островского, д. 47 | R131: Минин В. | S131: Клиент 130 | T131: mail@birdyx.ru | U131: 79008889900 | V131: Инстаграм | W131: Завершено | X131: да | Y131: 5
A132: 43896 | B132: =DAY('База заказов'!$A132) -> 6 | C132: ='База заказов'!$A132 -> 2020-03-06 | D132: =YEAR('База заказов'!$A132) -> 2020 | E132: Иванов И. | F132: Демонтаж балконного блока | H132: 33400 | J132: =SUM(Table[[#This Row],[Наличн]:[Безнал]])-SUM(Table[[#This Row],[Наличн]:[Безнал]])*Table[[#This Row],[Скидка]] -> 33400 | K132: 43896 | L132: =DAY(Table[[#This Row],[Дата визита]]) -> 6 | M132: =MONTH(Table[[#This Row],[Дата визита]]) -> 1900-01-03 | N132: =YEAR(Table[[#This Row],[Дата визита]]) -> 2020 | O132: =WEEKNUM(Table[[#This Row],[Дата визита]]) -> 10 | P132: 10:00:00 | Q132: Ростов-на-Дону, ул. Пушкинская, д. 225 | R132: Белозеров В. | S132: Клиент 131 | T132: mail@birdyx.ru | U132: 79008889900 | V132: Яндекс | W132: Завершено | X132: да | Y132: 4
A133: 43896 | B133: =DAY('База заказов'!$A133) -> 6 | C133: ='База заказов'!$A133 -> 2020-03-06 | D133: =YEAR('База заказов'!$A133) -> 2020 | E133: Петров В. | F133: Укладка паркетной доски на клей | H133: 14700 | J133: =SUM(Table[[#This Row],[Наличн]:[Безнал]])-SUM(Table[[#This Row],[Наличн]:[Безнал]])*Table[[#This Row],[Скидка]] -> 14700 | K133: 43896 | L133: =DAY(Table[[#This Row],[Дата визита]]) -> 6 | M133: =MONTH(Table[[#This Row],[Дата визита]]) -> 1900-01-03 | N133: =YEAR(Table[[#This Row],[Дата визита]]) -> 2020 | O133: =WEEKNUM(Table[[#This Row],[Дата визита]]) -> 10 | P133: 12:00:00 | Q133: Ростов-На-Дону, ул. Ченцова, д. 57/81 | R133: Беспалов Г. | S133: Клиент 132 | T133: mail@birdyx.ru | U133: 79008889900 | V133: По совету | W133: Завершено | X133: да | Y133: 5
A134: 43898 | B134: =DAY('База заказов'!$A134) -> 8 | C134: ='База заказов'!$A134 -> 2020-03-08 | D134: =YEAR('База заказов'!$A134) -> 2020 | E134: Иванов И. | F134: Укладка кварцвиниловой плитки на подложку | H134: 27500 | J134: =SUM(Table[[#This Row],[Наличн]:[Безнал]])-SUM(Table[[#This Row],[Наличн]:[Безнал]])*Table[[#This Row],[Скидка]] -> 27500 | K134: 43902 | L134: =DAY(Table[[#This Row],[Дата визита]]) -> 12 | M134: =MONTH(Table[[#This Row],[Дата визита]]) -> 1900-01-03 | N134: =YEAR(Table[[#This Row],[Дата визита]]) -> 2020 | O134: =WEEKNUM(Table[[#This Row],[Дата визита]]) -> 11 | P134: 16:00:00 | Q134: Ростов-на-Дону, ул. Текучева, д. 135 | R134: Устинов С. | S134: Клиент 133 | T134: mail@birdyx.ru | U134: 79008889900 | V134: Авито | W134: Завершено | X134: да | Y134: 4
A135: 43899 | B135: =DAY('База заказов'!$A135) -> 9 | C135: ='База заказов'!$A135 -> 2020-03-09 | D135: =YEAR('База заказов'!$A135) -> 2020 | E135: Гончарова Н. | F135: Укладка паркетной доски на подложку | H135: 38500 | I135: 0.15 | J135: =SUM(Table[[#This Row],[Наличн]:[Безнал]])-SUM(Table[[#This Row],[Наличн]:[Безнал]])*Table[[#This Row],[Скидка]] -> 32725 | K135: 43902 | L135: =DAY(Table[[#This Row],[Дата визита]]) -> 12 | M135: =MONTH(Table[[#This Row],[Дата визита]]) -> 1900-01-03 | N135: =YEAR(Table[[#This Row],[Дата визита]]) -> 2020 | O135: =WEEKNUM(Table[[#This Row],[Дата визита]]) -> 11 | P135: 18:00:00 | Q135: Ростов-на-Дону, пер. Газетный, д. 99 | R135: Минин В. | S135: Клиент 134 | T135: mail@birdyx.ru | U135: 79008889900 | V135: Сайт | W135: Завершено | X135: да | Y135: 5
A136: 43899 | B136: =DAY('База заказов'!$A136) -> 9 | C136: ='База заказов'!$A136 -> 2020-03-09 | D136: =YEAR('База заказов'!$A136) -> 2020 | E136: Мишин М. | F136: Укладка массивной доски | G136: 38600 | J136: =SUM(Table[[#This Row],[Наличн]:[Безнал]])-SUM(Table[[#This Row],[Наличн]:[Безнал]])*Table[[#This Row],[Скидка]] -> 38600 | K136: 43902 | L136: =DAY(Table[[#This Row],[Дата визита]]) -> 12 | M136: =MONTH(Table[[#This Row],[Дата визита]]) -> 1900-01-03 | N136: =YEAR(Table[[#This Row],[Дата визита]]) -> 2020 | O136: =WEEKNUM(Table[[#This Row],[Дата визита]]) -> 11 | P136: 09:00:00 | Q136: Ростов-на-Дону, проспект Кировский, д. 90 | R136: Минин В. | S136: Клиент 135 | T136: mail@birdyx.ru | U136: 79008889900 | V136: Авито | W136: Завершено | X136: да | Y136: 4
A137: 43901 | B137: =DAY('База заказов'!$A137) -> 11 | C137: ='База заказов'!$A137 -> 2020-03-11 | D137: =YEAR('База заказов'!$A137) -> 2020 | E137: Иванов И. | F137: Монтаж потолочного плинтуса | H137: 38700 | J137: =SUM(Table[[#This Row],[Наличн]:[Безнал]])-SUM(Table[[#This Row],[Наличн]:[Безнал]])*Table[[#This Row],[Скидка]] -> 38700 | K137: 43902 | L137: =DAY(Table[[#This Row],[Дата визита]]) -> 12 | M137: =MONTH(Table[[#This Row],[Дата визита]]) -> 1900-01-03 | N137: =YEAR(Table[[#This Row],[Дата визита]]) -> 2020 | O137: =WEEKNUM(Table[[#This Row],[Дата визита]]) -> 11 | P137: 11:00:00 | Q137: Ростов-на-Дону, ул. 14 Линия, д. 14 | R137: Субботин С. | S137: Клиент 136 | T137: mail@birdyx.ru | U137: 79008889900 | V137: Авито | W137: Завершено | X137: да | Y137: 5
A138: 43902 | B138: =DAY('База заказов'!$A138) -> 12 | C138: ='База заказов'!$A138 -> 2020-03-12 | D138: =YEAR('База заказов'!$A138) -> 2020 | E138: Петров В. | F138: Укладка массивной доски | G138: 18700 | J138: =SUM(Table[[#This Row],[Наличн]:[Безнал]])-SUM(Table[[#This Row],[Наличн]:[Безнал]])*Table[[#This Row],[Скидка]] -> 18700 | K138: 43902 | L138: =DAY(Table[[#This Row],[Дата визита]]) -> 12 | M138: =MONTH(Table[[#This Row],[Дата визита]]) -> 1900-01-03 | N138: =YEAR(Table[[#This Row],[Дата визита]]) -> 2020 | O138: =WEEKNUM(Table[[#This Row],[Дата визита]]) -> 11 | P138: 15:00:00 | Q138: Ростов-на-Дону, ул. Береговая, д. 30 | R138: Белозеров В. | S138: Клиент 137 | T138: mail@birdyx.ru | U138: 79008889900 | V138: Авито | W138: Завершено | X138: да | Y138: 5
A139: 43903 | B139: =DAY('База заказов'!$A139) -> 13 | C139: ='База заказов'!$A139 -> 2020-03-13 | D139: =YEAR('База заказов'!$A139) -> 2020 | E139: Гончарова Н. | F139: Монтаж потолочного плинтуса | H139: 7800 | J139: =SUM(Table[[#This Row],[Наличн]:[Безнал]])-SUM(Table[[#This Row],[Наличн]:[Безнал]])*Table[[#This Row],[Скидка]] -> 7800 | K139: 43903 | L139: =DAY(Table[[#This Row],[Дата визита]]) -> 13 | M139: =MONTH(Table[[#This Row],[Дата визита]]) -> 1900-01-03 | N139: =YEAR(Table[[#This Row],[Дата визита]]) -> 2020 | O139: =WEEKNUM(Table[[#This Row],[Дата визита]]) -> 11 | P139: 17:00:00 | Q139: Ростов-на-Дону, ул. Большая Садовая, д. 77 | R139: Беспалов Г. | S139: Клиент 138 | T139: mail@birdyx.ru | U139: 79008889900 | V139: Сайт | W139: Завершено | X139: да | Y139: 4
A140: 43904 | B140: =DAY('База заказов'!$A140) -> 14 | C140: ='База заказов'!$A140 -> 2020-03-14 | D140: =YEAR('База заказов'!$A140) -> 2020 | E140: Иванов И. | F140: Выкройка и монтаж дополнительных углов | H140: 23300 | J140: =SUM(Table[[#This Row],[Наличн]:[Безнал]])-SUM(Table[[#This Row],[Наличн]:[Безнал]])*Table[[#This Row],[Скидка]] -> 23300 | K140: 43904 | L140: =DAY(Table[[#This Row],[Дата визита]]) -> 14 | M140: =MONTH(Table[[#This Row],[Дата визита]]) -> 1900-01-03 | N140: =YEAR(Table[[#This Row],[Дата визита]]) -> 2020 | O140: =WEEKNUM(Table[[#This Row],[Дата визита]]) -> 11 | P140: 09:00:00 | Q140: Ростов-на-Дону, ул. 6-я линия, д. 4 | R140: Шарапов В. | S140: Клиент 139 | T140: mail@birdyx.ru | U140: 79008889900 | V140: Сайт | W140: Завершено | X140: да | Y140: 5
A141: 43905 | B141: =DAY('База заказов'!$A141) -> 15 | C141: ='База заказов'!$A141 -> 2020-03-15 | D141: =YEAR('База заказов'!$A141) -> 2020 | E141: Петров В. | F141: Укладка паркетной доски на подложку | H141: 10300 | J141: =SUM(Table[[#This Row],[Наличн]:[Безнал]])-SUM(Table[[#This Row],[Наличн]:[Безнал]])*Table[[#This Row],[Скидка]] -> 10300 | K141: 43905 | L141: =DAY(Table[[#This Row],[Дата визита]]) -> 15 | M141: =MONTH(Table[[#This Row],[Дата визита]]) -> 1900-01-03 | N141: =YEAR(Table[[#This Row],[Дата визита]]) -> 2020 | O141: =WEEKNUM(Table[[#This Row],[Дата визита]]) -> 12 | P141: 11:00:00 | Q141: Ростов-на-Дону, ул. Гагринская, д. 46 | R141: Белоусов В. | S141: Клиент 140 | T141: mail@birdyx.ru | U141: 79008889900 | V141: Сайт | W141: Отмена | X141: да | Y141: 5
A142: 43906 | B142: =DAY('База заказов'!$A142) -> 16 | C142: ='База заказов'!$A142 -> 2020-03-16 | D142: =YEAR('База заказов'!$A142) -> 2020 | E142: Иванов И. | F142: Демонтаж балконного блока | G142: 19600 | I142: 0.15 | J142: =SUM(Table[[#This Row],[Наличн]:[Безнал]])-SUM(Table[[#This Row],[Наличн]:[Безнал]])*Table[[#This Row],[Скидка]] -> 16660 | K142: 43906 | L142: =DAY(Table[[#This Row],[Дата визита]]) -> 16 | M142: =MONTH(Table[[#This Row],[Дата визита]]) -> 1900-01-03 | N142: =YEAR(Table[[#This Row],[Дата визита]]) -> 2020 | O142: =WEEKNUM(Table[[#This Row],[Дата визита]]) -> 12 | P142: 15:00:00 | Q142: Ростов-на-Дону, ул. Вятская, д. 37/1 | R142: Шарапов В. | S142: Клиент 141 | T142: mail@birdyx.ru | U142: 79008889900 | V142: Сайт | W142: Завершено | X142: да | Y142: 5
A143: 43907 | B143: =DAY('База заказов'!$A143) -> 17 | C143: ='База заказов'!$A143 -> 2020-03-17 | D143: =YEAR('База заказов'!$A143) -> 2020 | E143: Гончарова Н. | F143: Укладка паркетной доски на клей | G143: 26900 | J143: =SUM(Table[[#This Row],[Наличн]:[Безнал]])-SUM(Table[[#This Row],[Наличн]:[Безнал]])*Table[[#This Row],[Скидка]] -> 26900 | K143: 43907 | L143: =DAY(Table[[#This Row],[Дата визита]]) -> 17 | M143: =MONTH(Table[[#This Row],[Дата визита]]) -> 1900-01-03 | N143: =YEAR(Table[[#This Row],[Дата визита]]) -> 2020 | O143: =WEEKNUM(Table[[#This Row],[Дата визита]]) -> 12 | P143: 17:00:00 | Q143: Ростов-на-Дону, ул. Станиславского, д. 58 | R143: Субботин С. | S143: Клиент 142 | T143: mail@birdyx.ru | U143: 79008889900 | V143: Сайт | W143: Завершено | X143: да | Y143: 3
A144: 43908 | B144: =DAY('База заказов'!$A144) -> 18 | C144: ='База заказов'!$A144 -> 2020-03-18 | D144: =YEAR('База заказов'!$A144) -> 2020 | E144: Мишин М. | F144: Укладка массивной доски | G144: 18400 | J144: =SUM(Table[[#This Row],[Наличн]:[Безнал]])-SUM(Table[[#This Row],[Наличн]:[Безнал]])*Table[[#This Row],[Скидка]] -> 18400 | K144: 43908 | L144: =DAY(Table[[#This Row],[Дата визита]]) -> 18 | M144: =MONTH(Table[[#This Row],[Дата визита]]) -> 1900-01-03 | N144: =YEAR(Table[[#This Row],[Дата визита]]) -> 2020 | O144: =WEEKNUM(Table[[#This Row],[Дата визита]]) -> 12 | P144: 09:00:00 | Q144: Ростов-на-Дону, пер. Нефтяной, д. 4 А | R144: Минин В. | S144: Клиент 143 | T144: mail@birdyx.ru | U144: 79008889900 | V144: Сайт | W144: Завершено | X144: да | Y144: 3
A145: 43909 | B145: =DAY('База заказов'!$A145) -> 19 | C145: ='База заказов'!$A145 -> 2020-03-19 | D145: =YEAR('База заказов'!$A145) -> 2020 | E145: Иванов И. | F145: Монтаж тепло-пароизоляции потолка | H145: 33200 | J145: =SUM(Table[[#This Row],[Наличн]:[Безнал]])-SUM(Table[[#This Row],[Наличн]:[Безнал]])*Table[[#This Row],[Скидка]] -> 33200 | K145: 43909 | L145: =DAY(Table[[#This Row],[Дата визита]]) -> 19 | M145: =MONTH(Table[[#This Row],[Дата визита]]) -> 1900-01-03 | N145: =YEAR(Table[[#This Row],[Дата визита]]) -> 2020 | O145: =WEEKNUM(Table[[#This Row],[Дата визита]]) -> 12 | P145: 11:00:00 | Q145: Ростов-на-Дону, ул. Станиславского, д. 167/25 | R145: Белозеров В. | S145: Клиент 144 | T145: mail@birdyx.ru | U145: 79008889900 | V145: Сайт | W145: Завершено | X145: да | Y145: 2
A146: 43910 | B146: =DAY('База заказов'!$A146) -> 20 | C146: ='База заказов'!$A146 -> 2020-03-20 | D146: =YEAR('База заказов'!$A146) -> 2020 | E146: Петров В. | F146: Демонтаж душевого поддона | H146: 23500 | I146: 0.15 | J146: =SUM(Table[[#This Row],[Наличн]:[Безнал]])-SUM(Table[[#This Row],[Наличн]:[Безнал]])*Table[[#This Row],[Скидка]] -> 19975 | K146: 43910 | L146: =DAY(Table[[#This Row],[Дата визита]]) -> 20 | M146: =MONTH(Table[[#This Row],[Дата визита]]) -> 1900-01-03 | N146: =YEAR(Table[[#This Row],[Дата визита]]) -> 2020 | O146: =WEEKNUM(Table[[#This Row],[Дата визита]]) -> 12 | P146: 15:00:00 | Q146: Ростов-на-Дону, проспект Соколова, д. 85 | R146: Беспалов Г. | S146: Клиент 145 | T146: mail@birdyx.ru | U146: 79008889900 | V146: Сайт | W146: Завершено | X146: да | Y146: 4
A147: 43911 | B147: =DAY('База заказов'!$A147) -> 21 | C147: ='База заказов'!$A147 -> 2020-03-21 | D147: =YEAR('База заказов'!$A147) -> 2020 | E147: Гончарова Н. | F147: Демонтаж раковины | G147: 7700 | J147: =SUM(Table[[#This Row],[Наличн]:[Безнал]])-SUM(Table[[#This Row],[Наличн]:[Безнал]])*Table[[#This Row],[Скидка]] -> 7700 | K147: 43911 | L147: =DAY(Table[[#This Row],[Дата визита]]) -> 21 | M147: =MONTH(Table[[#This Row],[Дата визита]]) -> 1900-01-03 | N147: =YEAR(Table[[#This Row],[Дата визита]]) -> 2020 | O147: =WEEKNUM(Table[[#This Row],[Дата визита]]) -> 12 | P147: 17:00:00 | Q147: Ростов-на-Дону, ул. Московская, д. 80 | R147: Устинов С. | S147: Клиент 146 | T147: mail@birdyx.ru | U147: 79008889900 | V147: Сайт | W147: Завершено | X147: да | Y147: 5
A148: 43911 | B148: =DAY('База заказов'!$A148) -> 21 | C148: ='База заказов'!$A148 -> 2020-03-21 | D148: =YEAR('База заказов'!$A148) -> 2020 | E148: Гончарова Н. | F148: Демонтаж раковины | G148: 39300 | J148: =SUM(Table[[#This Row],[Наличн]:[Безнал]])-SUM(Table[[#This Row],[Наличн]:[Безнал]])*Table[[#This Row],[Скидка]] -> 39300 | K148: 43911 | L148: =DAY(Table[[#This Row],[Дата визита]]) -> 21 | M148: =MONTH(Table[[#This Row],[Дата визита]]) -> 1900-01-03 | N148: =YEAR(Table[[#This Row],[Дата визита]]) -> 2020 | O148: =WEEKNUM(Table[[#This Row],[Дата визита]]) -> 12 | P148: 09:00:00 | Q148: Ростов-на-Дону, ул. Текучева, д. 151/2 | R148: Шарапов В. | S148: Клиент 147 | T148: mail@birdyx.ru | U148: 79008889900 | V148: Сайт | W148: Завершено | X148: да | Y148: 3
A149: 43911 | B149: =DAY('База заказов'!$A149) -> 21 | C149: ='База заказов'!$A149 -> 2020-03-21 | D149: =YEAR('База заказов'!$A149) -> 2020 | E149: Мишин М. | F149: Демонтаж входной двери | G149: 22600 | J149: =SUM(Table[[#This Row],[Наличн]:[Безнал]])-SUM(Table[[#This Row],[Наличн]:[Безнал]])*Table[[#This Row],[Скидка]] -> 22600 | K149: 43915 | L149: =DAY(Table[[#This Row],[Дата визита]]) -> 25 | M149: =MONTH(Table[[#This Row],[Дата визита]]) -> 1900-01-03 | N149: =YEAR(Table[[#This Row],[Дата визита]]) -> 2020 | O149: =WEEKNUM(Table[[#This Row],[Дата визита]]) -> 13 | P149: 11:00:00 | Q149: Ростов-На-Дону, ул. Тургеневская, д. 73 | R149: Белоусов В. | S149: Клиент 148 | T149: mail@birdyx.ru | U149: 79008889900 | V149: Сайт | W149: Завершено | X149: да | Y149: 5
A150: 43914 | B150: =DAY('База заказов'!$A150) -> 24 | C150: ='База заказов'!$A150 -> 2020-03-24 | D150: =YEAR('База заказов'!$A150) -> 2020 | E150: Иванов И. | F150: Укладка кварцвиниловой плитки на подложку | G150: 24300 | J150: =SUM(Table[[#This Row],[Наличн]:[Безнал]])-SUM(Table[[#This Row],[Наличн]:[Безнал]])*Table[[#This Row],[Скидка]] -> 24300 | K150: 43915 | L150: =DAY(Table[[#This Row],[Дата визита]]) -> 25 | M150: =MONTH(Table[[#This Row],[Дата визита]]) -> 1900-01-03 | N150: =YEAR(Table[[#This Row],[Дата визита]]) -> 2020 | O150: =WEEKNUM(Table[[#This Row],[Дата визита]]) -> 13 | P150: 15:00:00 | Q150: Ростов-на-Дону, бульвар Комарова, д. 20/1 | R150: Субботин С. | S150: Клиент 149 | T150: mail@birdyx.ru | U150: 79008889900 | V150: Сайт | W150: Завершено | X150: да | Y150: 4
A151: 43915 | B151: =DAY('База заказов'!$A151) -> 25 | C151: ='База заказов'!$A151 -> 2020-03-25 | D151: =YEAR('База заказов'!$A151) -> 2020 | E151: Петров В. | F151: Укладка массивной доски | H151: 13900 | J151: =SUM(Table[[#This Row],[Наличн]:[Безнал]])-SUM(Table[[#This Row],[Наличн]:[Безнал]])*Table[[#This Row],[Скидка]] -> 13900 | K151: 43915 | L151: =DAY(Table[[#This Row],[Дата визита]]) -> 25 | M151: =MONTH(Table[[#This Row],[Дата визита]]) -> 1900-01-03 | N151: =YEAR(Table[[#This Row],[Дата визита]]) -> 2020 | O151: =WEEKNUM(Table[[#This Row],[Дата визита]]) -> 13 | P151: 17:00:00 | Q151: Ростов-на-Дону, ул. Пушкинская, д. 225/41/224 | R151: Белозеров В. | S151: Клиент 150 | T151: mail@birdyx.ru | U151: 79008889900 | V151: Инстаграм | W151: Завершено | X151: да | Y151: 3
A152: 43916 | B152: =DAY('База заказов'!$A152) -> 26 | C152: ='База заказов'!$A152 -> 2020-03-26 | D152: =YEAR('База заказов'!$A152) -> 2020 | E152: Иванов И. | F152: Монтаж потолочного плинтуса | G152: 12800 | I152: 0.15 | J152: =SUM(Table[[#This Row],[Наличн]:[Безнал]])-SUM(Table[[#This Row],[Наличн]:[Безнал]])*Table[[#This Row],[Скидка]] -> 10880 | K152: 43916 | L152: =DAY(Table[[#This Row],[Дата визита]]) -> 26 | M152: =MONTH(Table[[#This Row],[Дата визита]]) -> 1900-01-03 | N152: =YEAR(Table[[#This Row],[Дата визита]]) -> 2020 | O152: =WEEKNUM(Table[[#This Row],[Дата визита]]) -> 13 | P152: 10:00:00 | Q152: Ростов-На-Дону, ул. Пушкинская, д. 1/36 | R152: Беспалов Г. | S152: Клиент 151 | T152: mail@birdyx.ru | U152: 79008889900 | V152: Яндекс | W152: Завершено | X152: да | Y152: 5
A153: 43917 | B153: =DAY('База заказов'!$A153) -> 27 | C153: ='База заказов'!$A153 -> 2020-03-27 | D153: =YEAR('База заказов'!$A153) -> 2020 | E153: Гончарова Н. | F153: Укладка массивной доски | H153: 9000 | I153: 0.15 | J153: =SUM(Table[[#This Row],[Наличн]:[Безнал]])-SUM(Table[[#This Row],[Наличн]:[Безнал]])*Table[[#This Row],[Скидка]] -> 7650 | K153: 43917 | L153: =DAY(Table[[#This Row],[Дата визита]]) -> 27 | M153: =MONTH(Table[[#This Row],[Дата визита]]) -> 1900-01-03 | N153: =YEAR(Table[[#This Row],[Дата визита]]) -> 2020 | O153: =WEEKNUM(Table[[#This Row],[Дата визита]]) -> 13 | P153: 12:00:00 | Q153: Ростов-на-Дону, пер. Газетный, д. 92/85 | R153: Шарапов В. | S153: Клиент 152 | T153: mail@birdyx.ru | U153: 79008889900 | V153: По совету | W153: Завершено | X153: да | Y153: 3
A154: 43918 | B154: =DAY('База заказов'!$A154) -> 28 | C154: ='База заказов'!$A154 -> 2020-03-28 | D154: =YEAR('База заказов'!$A154) -> 2020 | E154: Мишин М. | F154: Нанесение декоративной штукатурки | H154: 9400 | J154: =SUM(Table[[#This Row],[Наличн]:[Безнал]])-SUM(Table[[#This Row],[Наличн]:[Безнал]])*Table[[#This Row],[Скидка]] -> 9400 | K154: 43918 | L154: =DAY(Table[[#This Row],[Дата визита]]) -> 28 | M154: =MONTH(Table[[#This Row],[Дата визита]]) -> 1900-01-03 | N154: =YEAR(Table[[#This Row],[Дата визита]]) -> 2020 | O154: =WEEKNUM(Table[[#This Row],[Дата визита]]) -> 13 | P154: 16:00:00 | Q154: Ростов-на-Дону, проспект Буденновский, д. 106/2 | R154: Минин В. | S154: Клиент 153 | T154: mail@birdyx.ru | U154: 79008889900 | V154: Авито | W154: Завершено | X154: да | Y154: 4
A155: 43919 | B155: =DAY('База заказов'!$A155) -> 29 | C155: ='База заказов'!$A155 -> 2020-03-29 | D155: =YEAR('База заказов'!$A155) -> 2020 | E155: Иванов И. | F155: Демонтаж входной двери | H155: 36000 | J155: =SUM(Table[[#This Row],[Наличн]:[Безнал]])-SUM(Table[[#This Row],[Наличн]:[Безнал]])*Table[[#This Row],[Скидка]] -> 36000 | K155: 43919 | L155: =DAY(Table[[#This Row],[Дата визита]]) -> 29 | M155: =MONTH(Table[[#This Row],[Дата визита]]) -> 1900-01-03 | N155: =YEAR(Table[[#This Row],[Дата визита]]) -> 2020 | O155: =WEEKNUM(Table[[#This Row],[Дата визита]]) -> 14 | P155: 18:00:00 | Q155: Ростов-на-Дону, ул. Пушкинская, д. 104/32 | R155: Шарапов В. | S155: Клиент 154 | T155: mail@birdyx.ru | U155: 79008889900 | V155: Сайт | W155: Завершено | X155: да | Y155: 3
A156: 43919 | B156: =DAY('База заказов'!$A156) -> 29 | C156: ='База заказов'!$A156 -> 2020-03-29 | D156: =YEAR('База заказов'!$A156) -> 2020 | E156: Петров В. | F156: Укладка паркетной доски на клей | H156: 13700 | J156: =SUM(Table[[#This Row],[Наличн]:[Безнал]])-SUM(Table[[#This Row],[Наличн]:[Безнал]])*Table[[#This Row],[Скидка]] -> 13700 | K156: 43919 | L156: =DAY(Table[[#This Row],[Дата визита]]) -> 29 | M156: =MONTH(Table[[#This Row],[Дата визита]]) -> 1900-01-03 | N156: =YEAR(Table[[#This Row],[Дата визита]]) -> 2020 | O156: =WEEKNUM(Table[[#This Row],[Дата визита]]) -> 14 | P156: 10:00:00 | Q156: Ростов-на-Дону, ул. Республиканская, д. 1/8 | R156: Субботин С. | S156: Клиент 155 | T156: mail@birdyx.ru | U156: 79008889900 | V156: Авито | W156: Завершено | X156: да | Y156: 4
A157: 43919 | B157: =DAY('База заказов'!$A157) -> 29 | C157: ='База заказов'!$A157 -> 2020-03-29 | D157: =YEAR('База заказов'!$A157) -> 2020 | E157: Гончарова Н. | F157: Выкройка и монтаж дополнительных углов | G157: 9700 | J157: =SUM(Table[[#This Row],[Наличн]:[Безнал]])-SUM(Table[[#This Row],[Наличн]:[Безнал]])*Table[[#This Row],[Скидка]] -> 9700 | K157: 43919 | L157: =DAY(Table[[#This Row],[Дата визита]]) -> 29 | M157: =MONTH(Table[[#This Row],[Дата визита]]) -> 1900-01-03 | N157: =YEAR(Table[[#This Row],[Дата визита]]) -> 2020 | O157: =WEEKNUM(Table[[#This Row],[Дата визита]]) -> 14 | P157: 12:00:00 | Q157: Ростов-на-Дону, ул. Красноармейская, д. 33 | R157: Минин В. | S157: Клиент 156 | T157: mail@birdyx.ru | U157: 79008889900 | V157: Авито | W157: Завершено | X157: да | Y157: 5
A158: 43919 | B158: =DAY('База заказов'!$A158) -> 29 | C158: ='База заказов'!$A158 -> 2020-03-29 | D158: =YEAR('База заказов'!$A158) -> 2020 | E158: Гончарова Н. | F158: Демонтаж входной двери | H158: 36100 | J158: =SUM(Table[[#This Row],[Наличн]:[Безнал]])-SUM(Table[[#This Row],[Наличн]:[Безнал]])*Table[[#This Row],[Скидка]] -> 36100 | K158: 43925 | L158: =DAY(Table[[#This Row],[Дата визита]]) -> 4 | M158: =MONTH(Table[[#This Row],[Дата визита]]) -> 1900-01-04 | N158: =YEAR(Table[[#This Row],[Дата визита]]) -> 2020 | O158: =WEEKNUM(Table[[#This Row],[Дата визита]]) -> 14 | P158: 16:00:00 | Q158: Ростов-на-Дону, ул. Максима Горького, д. 11/43 | R158: Белозеров В. | S158: Клиент 157 | T158: mail@birdyx.ru | U158: 79008889900 | V158: Авито | W158: Завершено | X158: да | Y158: 4
A159: 43923 | B159: =DAY('База заказов'!$A159) -> 2 | C159: ='База заказов'!$A159 -> 2020-04-02 | D159: =YEAR('База заказов'!$A159) -> 2020 | E159: Мишин М. | F159: Демонтаж входной двери | H159: 22100 | J159: =SUM(Table[[#This Row],[Наличн]:[Безнал]])-SUM(Table[[#This Row],[Наличн]:[Безнал]])*Table[[#This Row],[Скидка]] -> 22100 | K159: 43925 | L159: =DAY(Table[[#This Row],[Дата визита]]) -> 4 | M159: =MONTH(Table[[#This Row],[Дата визита]]) -> 1900-01-04 | N159: =YEAR(Table[[#This Row],[Дата визита]]) -> 2020 | O159: =WEEKNUM(Table[[#This Row],[Дата визита]]) -> 14 | P159: 18:00:00 | Q159: Ростов-на-Дону, ул. Алма-Атинская, д. 29/2 А | R159: Беспалов Г. | S159: Клиент 158 | T159: mail@birdyx.ru | U159: 79008889900 | V159: Сайт | W159: Завершено | X159: да | Y159: 5
A160: 43924 | B160: =DAY('База заказов'!$A160) -> 3 | C160: ='База заказов'!$A160 -> 2020-04-03 | D160: =YEAR('База заказов'!$A160) -> 2020 | E160: Иванов И. | F160: Нанесение декоративной штукатурки | H160: 14000 | J160: =SUM(Table[[#This Row],[Наличн]:[Безнал]])-SUM(Table[[#This Row],[Наличн]:[Безнал]])*Table[[#This Row],[Скидка]] -> 14000 | K160: 43925 | L160: =DAY(Table[[#This Row],[Дата визита]]) -> 4 | M160: =MONTH(Table[[#This Row],[Дата визита]]) -> 1900-01-04 | N160: =YEAR(Table[[#This Row],[Дата визита]]) -> 2020 | O160: =WEEKNUM(Table[[#This Row],[Дата визита]]) -> 14 | P160: 10:00:00 | Q160: Ростов-на-Дону, ул. Малиновского, д. 68/1 | R160: Устинов С. | S160: Клиент 159 | T160: mail@birdyx.ru | U160: 79008889900 | V160: Сайт | W160: Завершено | X160: да | Y160: 5
A161: 43925 | B161: =DAY('База заказов'!$A161) -> 4 | C161: ='База заказов'!$A161 -> 2020-04-04 | D161: =YEAR('База заказов'!$A161) -> 2020 | E161: Петров В. | F161: Монтаж потолочного плинтуса | H161: 27300 | J161: =SUM(Table[[#This Row],[Наличн]:[Безнал]])-SUM(Table[[#This Row],[Наличн]:[Безнал]])*Table[[#This Row],[Скидка]] -> 27300 | K161: 43925 | L161: =DAY(Table[[#This Row],[Дата визита]]) -> 4 | M161: =MONTH(Table[[#This Row],[Дата визита]]) -> 1900-01-04 | N161: =YEAR(Table[[#This Row],[Дата визита]]) -> 2020 | O161: =WEEKNUM(Table[[#This Row],[Дата визита]]) -> 14 | P161: 12:00:00 | Q161: Ростов-на-Дону, ул. Береговая, д. 5 | R161: Минин В. | S161: Клиент 160 | T161: mail@birdyx.ru | U161: 79008889900 | V161: Авито | W161: Завершено | X161: да | Y161: 4
A162: 43926 | B162: =DAY('База заказов'!$A162) -> 5 | C162: ='База заказов'!$A162 -> 2020-04-05 | D162: =YEAR('База заказов'!$A162) -> 2020 | E162: Иванов И. | F162: Укладка фанеры в 1 слой | H162: 20900 | I162: 0.15 | J162: =SUM(Table[[#This Row],[Наличн]:[Безнал]])-SUM(Table[[#This Row],[Наличн]:[Безнал]])*Table[[#This Row],[Скидка]] -> 17765 | K162: 43926 | L162: =DAY(Table[[#This Row],[Дата визита]]) -> 5 | M162: =MONTH(Table[[#This Row],[Дата визита]]) -> 1900-01-04 | N162: =YEAR(Table[[#This Row],[Дата визита]]) -> 2020 | O162: =WEEKNUM(Table[[#This Row],[Дата визита]]) -> 15 | P162: 16:00:00 | Q162: Ростов-на-Дону, пл. Гагарина, д. 1 | R162: Минин В. | S162: Клиент 161 | T162: mail@birdyx.ru | U162: 79008889900 | V162: Сайт | W162: Завершено | X162: да | Y162: 5
A163: 43927 | B163: =DAY('База заказов'!$A163) -> 6 | C163: ='База заказов'!$A163 -> 2020-04-06 | D163: =YEAR('База заказов'!$A163) -> 2020 | E163: Гончарова Н. | F163: Укладка кварцвиниловой плитки на подложку | H163: 17600 | J163: =SUM(Table[[#This Row],[Наличн]:[Безнал]])-SUM(Table[[#This Row],[Наличн]:[Безнал]])*Table[[#This Row],[Скидка]] -> 17600 | K163: 43927 | L163: =DAY(Table[[#This Row],[Дата визита]]) -> 6 | M163: =MONTH(Table[[#This Row],[Дата визита]]) -> 1900-01-04 | N163: =YEAR(Table[[#This Row],[Дата визита]]) -> 2020 | O163: =WEEKNUM(Table[[#This Row],[Дата визита]]) -> 15 | P163: 18:00:00 | Q163: Ростов-на-Дону, ул. Механизаторов, д. 6А | R163: Субботин С. | S163: Клиент 162 | T163: mail@birdyx.ru | U163: 79008889900 | V163: По совету | W163: Завершено | X163: да | Y163: 4
A164: 43928 | B164: =DAY('База заказов'!$A164) -> 7 | C164: ='База заказов'!$A164 -> 2020-04-07 | D164: =YEAR('База заказов'!$A164) -> 2020 | E164: Мишин М. | F164: Демонтаж раковины | H164: 7000 | J164: =SUM(Table[[#This Row],[Наличн]:[Безнал]])-SUM(Table[[#This Row],[Наличн]:[Безнал]])*Table[[#This Row],[Скидка]] -> 7000 | K164: 43928 | L164: =DAY(Table[[#This Row],[Дата визита]]) -> 7 | M164: =MONTH(Table[[#This Row],[Дата визита]]) -> 1900-01-04 | N164: =YEAR(Table[[#This Row],[Дата визита]]) -> 2020 | O164: =WEEKNUM(Table[[#This Row],[Дата визита]]) -> 15 | P164: 10:00:00 | Q164: Ростов-На-Дону, проспект Буденновский, д. 3/3 | R164: Белозеров В. | S164: Клиент 163 | T164: mail@birdyx.ru | U164: 79008889900 | V164: Яндекс | W164: Завершено | X164: да | Y164: 5
A165: 43929 | B165: =DAY('База заказов'!$A165) -> 8 | C165: ='База заказов'!$A165 -> 2020-04-08 | D165: =YEAR('База заказов'!$A165) -> 2020 | E165: Иванов И. | F165: Демонтаж душевой кабины | H165: 26800 | J165: =SUM(Table[[#This Row],[Наличн]:[Безнал]])-SUM(Table[[#This Row],[Наличн]:[Безнал]])*Table[[#This Row],[Скидка]] -> 26800 | K165: 43929 | L165: =DAY(Table[[#This Row],[Дата визита]]) -> 8 | M165: =MONTH(Table[[#This Row],[Дата визита]]) -> 1900-01-04 | N165: =YEAR(Table[[#This Row],[Дата визита]]) -> 2020 | O165: =WEEKNUM(Table[[#This Row],[Дата визита]]) -> 15 | P165: 12:00:00 | Q165: Ростов-на-Дону, ул. Обороны, д. 40/17 | R165: Беспалов Г. | S165: Клиент 164 | T165: mail@birdyx.ru | U165: 79008889900 | V165: Инстаграм | W165: Завершено | X165: да | Y165: 4
A166: 43930 | B166: =DAY('База заказов'!$A166) -> 9 | C166: ='База заказов'!$A166 -> 2020-04-09 | D166: =YEAR('База заказов'!$A166) -> 2020 | E166: Петров В. | F166: Укладка кварцвиниловой плитки на клей | H166: 36500 | J166: =SUM(Table[[#This Row],[Наличн]:[Безнал]])-SUM(Table[[#This Row],[Наличн]:[Безнал]])*Table[[#This Row],[Скидка]] -> 36500 | K166: 43933 | L166: =DAY(Table[[#This Row],[Дата визита]]) -> 12 | M166: =MONTH(Table[[#This Row],[Дата визита]]) -> 1900-01-04 | N166: =YEAR(Table[[#This Row],[Дата визита]]) -> 2020 | O166: =WEEKNUM(Table[[#This Row],[Дата визита]]) -> 16 | P166: 16:00:00 | Q166: Ростов-на-Дону, ул. Судостроительная, д. 55 | R166: Шарапов В. | S166: Клиент 165 | T166: mail@birdyx.ru | U166: 79008889900 | V166: Яндекс | W166: Завершено | X166: да | Y166: 5
A167: 43931 | B167: =DAY('База заказов'!$A167) -> 10 | C167: ='База заказов'!$A167 -> 2020-04-10 | D167: =YEAR('База заказов'!$A167) -> 2020 | E167: Гончарова Н. | F167: Укладка паркетной доски на клей | H167: 35900 | I167: 0.15 | J167: =SUM(Table[[#This Row],[Наличн]:[Безнал]])-SUM(Table[[#This Row],[Наличн]:[Безнал]])*Table[[#This Row],[Скидка]] -> 30515 | K167: 43933 | L167: =DAY(Table[[#This Row],[Дата визита]]) -> 12 | M167: =MONTH(Table[[#This Row],[Дата визита]]) -> 1900-01-04 | N167: =YEAR(Table[[#This Row],[Дата визита]]) -> 2020 | O167: =WEEKNUM(Table[[#This Row],[Дата визита]]) -> 16 | P167: 18:00:00 | Q167: Ростов-На-Дону, пер. Семашко, д. 46/1 | R167: Белоусов В. | S167: Клиент 166 | T167: mail@birdyx.ru | U167: 79008889900 | V167: Сайт | W167: Завершено | X167: да | Y167: 5
A168: 43932 | B168: =DAY('База заказов'!$A168) -> 11 | C168: ='База заказов'!$A168 -> 2020-04-11 | D168: =YEAR('База заказов'!$A168) -> 2020 | E168: Иванов И. | F168: Укладка кварцвиниловой плитки на подложку | H168: 33700 | J168: =SUM(Table[[#This Row],[Наличн]:[Безнал]])-SUM(Table[[#This Row],[Наличн]:[Безнал]])*Table[[#This Row],[Скидка]] -> 33700 | K168: 43933 | L168: =DAY(Table[[#This Row],[Дата визита]]) -> 12 | M168: =MONTH(Table[[#This Row],[Дата визита]]) -> 1900-01-04 | N168: =YEAR(Table[[#This Row],[Дата визита]]) -> 2020 | O168: =WEEKNUM(Table[[#This Row],[Дата визита]]) -> 16 | P168: 10:00:00 | Q168: Ростов-на-Дону, проспект Соколова, д. 11/Б | R168: Шарапов В. | S168: Клиент 167 | T168: mail@birdyx.ru | U168: 79008889900 | V168: Авито | W168: Отмена | X168: да | Y168: 4
A169: 43933 | B169: =DAY('База заказов'!$A169) -> 12 | C169: ='База заказов'!$A169 -> 2020-04-12 | D169: =YEAR('База заказов'!$A169) -> 2020 | E169: Петров В. | F169: Демонтаж входной двери | H169: 19400 | J169: =SUM(Table[[#This Row],[Наличн]:[Безнал]])-SUM(Table[[#This Row],[Наличн]:[Безнал]])*Table[[#This Row],[Скидка]] -> 19400 | K169: 43933 | L169: =DAY(Table[[#This Row],[Дата визита]]) -> 12 | M169: =MONTH(Table[[#This Row],[Дата визита]]) -> 1900-01-04 | N169: =YEAR(Table[[#This Row],[Дата визита]]) -> 2020 | O169: =WEEKNUM(Table[[#This Row],[Дата визита]]) -> 16 | P169: 12:00:00 | Q169: Ростов-на-Дону, ул. Ларина, д. 41/19 | R169: Субботин С. | S169: Клиент 168 | T169: mail@birdyx.ru | U169: 79008889900 | V169: Авито | W169: Завершено | X169: да | Y169: 5
A170: 43933 | B170: =DAY('База заказов'!$A170) -> 12 | C170: ='База заказов'!$A170 -> 2020-04-12 | D170: =YEAR('База заказов'!$A170) -> 2020 | E170: Иванов И. | F170: Укладка массивной доски | H170: 27500 | J170: =SUM(Table[[#This Row],[Наличн]:[Безнал]])-SUM(Table[[#This Row],[Наличн]:[Безнал]])*Table[[#This Row],[Скидка]] -> 27500 | K170: 43933 | L170: =DAY(Table[[#This Row],[Дата визита]]) -> 12 | M170: =MONTH(Table[[#This Row],[Дата визита]]) -> 1900-01-04 | N170: =YEAR(Table[[#This Row],[Дата визита]]) -> 2020 | O170: =WEEKNUM(Table[[#This Row],[Дата визита]]) -> 16 | P170: 16:00:00 | Q170: Ростов-на-Дону, проспект Коммунистический, д. 20/4 | R170: Минин В. | S170: Клиент 169 | T170: mail@birdyx.ru | U170: 79008889900 | V170: Сайт | W170: Завершено | X170: да | Y170: 5
A171: 43933 | B171: =DAY('База заказов'!$A171) -> 12 | C171: ='База заказов'!$A171 -> 2020-04-12 | D171: =YEAR('База заказов'!$A171) -> 2020 | E171: Гончарова Н. | F171: Монтаж потолочного плинтуса | H171: 32300 | J171: =SUM(Table[[#This Row],[Наличн]:[Безнал]])-SUM(Table[[#This Row],[Наличн]:[Безнал]])*Table[[#This Row],[Скидка]] -> 32300 | K171: 43933 | L171: =DAY(Table[[#This Row],[Дата визита]]) -> 12 | M171: =MONTH(Table[[#This Row],[Дата визита]]) -> 1900-01-04 | N171: =YEAR(Table[[#This Row],[Дата визита]]) -> 2020 | O171: =WEEKNUM(Table[[#This Row],[Дата визита]]) -> 16 | P171: 18:00:00 | Q171: Ростов-на-Дону, ул. Цезаря Куникова, д. 32/А | R171: Белозеров В. | S171: Клиент 170 | T171: mail@birdyx.ru | U171: 79008889900 | V171: Инстаграм | W171: Завершено | X171: да | Y171: 5
A172: 43933 | B172: =DAY('База заказов'!$A172) -> 12 | C172: ='База заказов'!$A172 -> 2020-04-12 | D172: =YEAR('База заказов'!$A172) -> 2020 | E172: Мишин М. | F172: Демонтаж входной двери | H172: 27900 | J172: =SUM(Table[[#This Row],[Наличн]:[Безнал]])-SUM(Table[[#This Row],[Наличн]:[Безнал]])*Table[[#This Row],[Скидка]] -> 27900 | K172: 43933 | L172: =DAY(Table[[#This Row],[Дата визита]]) -> 12 | M172: =MONTH(Table[[#This Row],[Дата визита]]) -> 1900-01-04 | N172: =YEAR(Table[[#This Row],[Дата визита]]) -> 2020 | O172: =WEEKNUM(Table[[#This Row],[Дата визита]]) -> 16 | P172: 10:00:00 | Q172: Ростов-на-Дону, ул. Красноармейская, д. 21 | R172: Беспалов Г. | S172: Клиент 171 | T172: mail@birdyx.ru | U172: 79008889900 | V172: Яндекс | W172: Завершено | X172: да | Y172: 3
A173: 43937 | B173: =DAY('База заказов'!$A173) -> 16 | C173: ='База заказов'!$A173 -> 2020-04-16 | D173: =YEAR('База заказов'!$A173) -> 2020 | E173: Иванов И. | F173: Монтаж потолочного плинтуса | H173: 17200 | J173: =SUM(Table[[#This Row],[Наличн]:[Безнал]])-SUM(Table[[#This Row],[Наличн]:[Безнал]])*Table[[#This Row],[Скидка]] -> 17200 | K173: 43937 | L173: =DAY(Table[[#This Row],[Дата визита]]) -> 16 | M173: =MONTH(Table[[#This Row],[Дата визита]]) -> 1900-01-04 | N173: =YEAR(Table[[#This Row],[Дата визита]]) -> 2020 | O173: =WEEKNUM(Table[[#This Row],[Дата визита]]) -> 16 | P173: 12:00:00 | Q173: Ростов-на-Дону, проспект 40-летия Победы, д. 95/3 | R173: Устинов С. | S173: Клиент 172 | T173: mail@birdyx.ru | U173: 79008889900 | V173: По совету | W173: Завершено | X173: да | Y173: 3
A174: 43938 | B174: =DAY('База заказов'!$A174) -> 17 | C174: ='База заказов'!$A174 -> 2020-04-17 | D174: =YEAR('База заказов'!$A174) -> 2020 | E174: Петров В. | F174: Выкройка и монтаж дополнительных углов | H174: 23300 | J174: =SUM(Table[[#This Row],[Наличн]:[Безнал]])-SUM(Table[[#This Row],[Наличн]:[Безнал]])*Table[[#This Row],[Скидка]] -> 23300 | K174: 43938 | L174: =DAY(Table[[#This Row],[Дата визита]]) -> 17 | M174: =MONTH(Table[[#This Row],[Дата визита]]) -> 1900-01-04 | N174: =YEAR(Table[[#This Row],[Дата визита]]) -> 2020 | O174: =WEEKNUM(Table[[#This Row],[Дата визита]]) -> 16 | P174: 16:00:00 | Q174: Ростов-на-Дону, ул. Станиславского, д. 58 | R174: Шарапов В. | S174: Клиент 173 | T174: mail@birdyx.ru | U174: 79008889900 | V174: Сайт | W174: Завершено | X174: да | Y174: 2
A175: 43939 | B175: =DAY('База заказов'!$A175) -> 18 | C175: ='База заказов'!$A175 -> 2020-04-18 | D175: =YEAR('База заказов'!$A175) -> 2020 | E175: Гончарова Н. | F175: Укладка паркетной доски на подложку | H175: 7200 | J175: =SUM(Table[[#This Row],[Наличн]:[Безнал]])-SUM(Table[[#This Row],[Наличн]:[Безнал]])*Table[[#This Row],[Скидка]] -> 7200 | K175: 43942 | L175: =DAY(Table[[#This Row],[Дата визита]]) -> 21 | M175: =MONTH(Table[[#This Row],[Дата визита]]) -> 1900-01-04 | N175: =YEAR(Table[[#This Row],[Дата визита]]) -> 2020 | O175: =WEEKNUM(Table[[#This Row],[Дата визита]]) -> 17 | P175: 18:00:00 | Q175: Ростов-на-Дону, проспект Буденновский, 86/197 | R175: Белоусов В. | S175: Клиент 174 | T175: mail@birdyx.ru | U175: 79008889900 | V175: Авито | W175: Завершено | X175: да | Y175: 3
A176: 43940 | B176: =DAY('База заказов'!$A176) -> 19 | C176: ='База заказов'!$A176 -> 2020-04-19 | D176: =YEAR('База заказов'!$A176) -> 2020 | E176: Гончарова Н. | F176: Демонтаж балконного блока | H176: 30200 | J176: =SUM(Table[[#This Row],[Наличн]:[Безнал]])-SUM(Table[[#This Row],[Наличн]:[Безнал]])*Table[[#This Row],[Скидка]] -> 30200 | K176: 43942 | L176: =DAY(Table[[#This Row],[Дата визита]]) -> 21 | M176: =MONTH(Table[[#This Row],[Дата визита]]) -> 1900-01-04 | N176: =YEAR(Table[[#This Row],[Дата визита]]) -> 2020 | O176: =WEEKNUM(Table[[#This Row],[Дата визита]]) -> 17 | P176: 10:00:00 | Q176: Ростов-на-Дону, ул. Липовая, 5 | R176: Субботин С. | S176: Клиент 175 | T176: mail@birdyx.ru | U176: 79008889900 | V176: Авито | W176: Завершено | X176: да | Y176: 5
A177: 43941 | B177: =DAY('База заказов'!$A177) -> 20 | C177: ='База заказов'!$A177 -> 2020-04-20 | D177: =YEAR('База заказов'!$A177) -> 2020 | E177: Мишин М. | F177: Укладка паркетной доски на клей | H177: 30200 | J177: =SUM(Table[[#This Row],[Наличн]:[Безнал]])-SUM(Table[[#This Row],[Наличн]:[Безнал]])*Table[[#This Row],[Скидка]] -> 30200 | K177: 43942 | L177: =DAY(Table[[#This Row],[Дата визита]]) -> 21 | M177: =MONTH(Table[[#This Row],[Дата визита]]) -> 1900-01-04 | N177: =YEAR(Table[[#This Row],[Дата визита]]) -> 2020 | O177: =WEEKNUM(Table[[#This Row],[Дата визита]]) -> 17 | P177: 12:00:00 | Q177: Ростов-на-Дону, ул. Станиславского, д. 58 | R177: Белозеров В. | S177: Клиент 176 | T177: mail@birdyx.ru | U177: 79008889900 | V177: Авито | W177: Завершено | X177: да | Y177: 5
A178: 43942 | B178: =DAY('База заказов'!$A178) -> 21 | C178: ='База заказов'!$A178 -> 2020-04-21 | D178: =YEAR('База заказов'!$A178) -> 2020 | E178: Иванов И. | F178: Демонтаж входной двери | H178: 23400 | J178: =SUM(Table[[#This Row],[Наличн]:[Безнал]])-SUM(Table[[#This Row],[Наличн]:[Безнал]])*Table[[#This Row],[Скидка]] -> 23400 | K178: 43942 | L178: =DAY(Table[[#This Row],[Дата визита]]) -> 21 | M178: =MONTH(Table[[#This Row],[Дата визита]]) -> 1900-01-04 | N178: =YEAR(Table[[#This Row],[Дата визита]]) -> 2020 | O178: =WEEKNUM(Table[[#This Row],[Дата визита]]) -> 17 | P178: 16:00:00 | Q178: Ростов-на-Дону, ул. Беляева, д. 22А | R178: Минин В. | S178: Клиент 177 | T178: mail@birdyx.ru | U178: 79008889900 | V178: Сайт | W178: Завершено | X178: да | Y178: 5
A179: 43943 | B179: =DAY('База заказов'!$A179) -> 22 | C179: ='База заказов'!$A179 -> 2020-04-22 | D179: =YEAR('База заказов'!$A179) -> 2020 | E179: Петров В. | F179: Монтаж потолочного плинтуса | H179: 23900 | J179: =SUM(Table[[#This Row],[Наличн]:[Безнал]])-SUM(Table[[#This Row],[Наличн]:[Безнал]])*Table[[#This Row],[Скидка]] -> 23900 | K179: 43943 | L179: =DAY(Table[[#This Row],[Дата визита]]) -> 22 | M179: =MONTH(Table[[#This Row],[Дата визита]]) -> 1900-01-04 | N179: =YEAR(Table[[#This Row],[Дата визита]]) -> 2020 | O179: =WEEKNUM(Table[[#This Row],[Дата визита]]) -> 17 | P179: 18:00:00 | Q179: Ростов-на-Дону, ул. 22 Линия, д. 34 | R179: Шарапов В. | S179: Клиент 178 | T179: mail@birdyx.ru | U179: 79008889900 | V179: Сайт | W179: Завершено | X179: да | Y179: 4
A180: 43944 | B180: =DAY('База заказов'!$A180) -> 23 | C180: ='База заказов'!$A180 -> 2020-04-23 | D180: =YEAR('База заказов'!$A180) -> 2020 | E180: Иванов И. | F180: Демонтаж душевого поддона | H180: 26100 | J180: =SUM(Table[[#This Row],[Наличн]:[Безнал]])-SUM(Table[[#This Row],[Наличн]:[Безнал]])*Table[[#This Row],[Скидка]] -> 26100 | K180: 43944 | L180: =DAY(Table[[#This Row],[Дата визита]]) -> 23 | M180: =MONTH(Table[[#This Row],[Дата визита]]) -> 1900-01-04 | N180: =YEAR(Table[[#This Row],[Дата визита]]) -> 2020 | O180: =WEEKNUM(Table[[#This Row],[Дата визита]]) -> 17 | P180: 10:00:00 | Q180: Ростов-На-Дону, проспект Шолохова, д. 288 | R180: Субботин С. | S180: Клиент 179 | T180: mail@birdyx.ru | U180: 79008889900 | V180: Авито | W180: Завершено | X180: да | Y180: 3
A181: 43945 | B181: =DAY('База заказов'!$A181) -> 24 | C181: ='База заказов'!$A181 -> 2020-04-24 | D181: =YEAR('База заказов'!$A181) -> 2020 | E181: Петров В. | F181: Демонтаж входной двери | H181: 19500 | J181: =SUM(Table[[#This Row],[Наличн]:[Безнал]])-SUM(Table[[#This Row],[Наличн]:[Безнал]])*Table[[#This Row],[Скидка]] -> 19500 | K181: 43945 | L181: =DAY(Table[[#This Row],[Дата визита]]) -> 24 | M181: =MONTH(Table[[#This Row],[Дата визита]]) -> 1900-01-04 | N181: =YEAR(Table[[#This Row],[Дата визита]]) -> 2020 | O181: =WEEKNUM(Table[[#This Row],[Дата визита]]) -> 17 | P181: 12:00:00 | Q181: Ростов-на-Дону, проспект Кировский, д. 57 | R181: Минин В. | S181: Клиент 180 | T181: mail@birdyx.ru | U181: 79008889900 | V181: Сайт | W181: Завершено | X181: да | Y181: 5
A182: 43946 | B182: =DAY('База заказов'!$A182) -> 25 | C182: ='База заказов'!$A182 -> 2020-04-25 | D182: =YEAR('База заказов'!$A182) -> 2020 | E182: Иванов И. | F182: Установка порожка | H182: 7700 | J182: =SUM(Table[[#This Row],[Наличн]:[Безнал]])-SUM(Table[[#This Row],[Наличн]:[Безнал]])*Table[[#This Row],[Скидка]] -> 7700 | K182: 43946 | L182: =DAY(Table[[#This Row],[Дата визита]]) -> 25 | M182: =MONTH(Table[[#This Row],[Дата визита]]) -> 1900-01-04 | N182: =YEAR(Table[[#This Row],[Дата визита]]) -> 2020 | O182: =WEEKNUM(Table[[#This Row],[Дата визита]]) -> 17 | P182: 16:00:00 | Q182: Ростов-на-Дону, Стартовая 20 | R182: Белозеров В. | S182: Клиент 181 | T182: mail@birdyx.ru | U182: 79008889900 | V182: По совету | W182: Завершено | X182: да | Y182: 4
A183: 43947 | B183: =DAY('База заказов'!$A183) -> 26 | C183: ='База заказов'!$A183 -> 2020-04-26 | D183: =YEAR('База заказов'!$A183) -> 2020 | E183: Гончарова Н. | F183: Демонтаж оконного блока | H183: 24500 | J183: =SUM(Table[[#This Row],[Наличн]:[Безнал]])-SUM(Table[[#This Row],[Наличн]:[Безнал]])*Table[[#This Row],[Скидка]] -> 24500 | K183: 43950 | L183: =DAY(Table[[#This Row],[Дата визита]]) -> 29 | M183: =MONTH(Table[[#This Row],[Дата визита]]) -> 1900-01-04 | N183: =YEAR(Table[[#This Row],[Дата визита]]) -> 2020 | O183: =WEEKNUM(Table[[#This Row],[Дата визита]]) -> 18 | P183: 18:00:00 | Q183: Ростов-на-Дону, Стартовая 22 | R183: Беспалов Г. | S183: Клиент 182 | T183: mail@birdyx.ru | U183: 79008889900 | V183: Яндекс | W183: Завершено | X183: да | Y183: 4
A184: 43948 | B184: =DAY('База заказов'!$A184) -> 27 | C184: ='База заказов'!$A184 -> 2020-04-27 | D184: =YEAR('База заказов'!$A184) -> 2020 | E184: Мишин М. | F184: Укладка керамической плитки, керамогранита на пол с затиркой | H184: 19600 | J184: =SUM(Table[[#This Row],[Наличн]:[Безнал]])-SUM(Table[[#This Row],[Наличн]:[Безнал]])*Table[[#This Row],[Скидка]] -> 19600 | K184: 43950 | L184: =DAY(Table[[#This Row],[Дата визита]]) -> 29 | M184: =MONTH(Table[[#This Row],[Дата визита]]) -> 1900-01-04 | N184: =YEAR(Table[[#This Row],[Дата визита]]) -> 2020 | O184: =WEEKNUM(Table[[#This Row],[Дата визита]]) -> 18 | P184: 09:00:00 | Q184: Ростов-на-Дону, Жданова 15 | R184: Устинов С. | S184: Клиент 183 | T184: mail@birdyx.ru | U184: 79008889900 | V184: Инстаграм | W184: Завершено | X184: да | Y184: 5
A185: 43949 | B185: =DAY('База заказов'!$A185) -> 28 | C185: ='База заказов'!$A185 -> 2020-04-28 | D185: =YEAR('База заказов'!$A185) -> 2020 | E185: Иванов И. | F185: Укладка массивной доски | H185: 29000 | J185: =SUM(Table[[#This Row],[Наличн]:[Безнал]])-SUM(Table[[#This Row],[Наличн]:[Безнал]])*Table[[#This Row],[Скидка]] -> 29000 | K185: 43950 | L185: =DAY(Table[[#This Row],[Дата визита]]) -> 29 | M185: =MONTH(Table[[#This Row],[Дата визита]]) -> 1900-01-04 | N185: =YEAR(Table[[#This Row],[Дата визита]]) -> 2020 | O185: =WEEKNUM(Table[[#This Row],[Дата визита]]) -> 18 | P185: 11:00:00 | Q185: Ростов-на-Дону, ул. Пацаева, д. 2 | R185: Минин В. | S185: Клиент 184 | T185: mail@birdyx.ru | U185: 79008889900 | V185: Яндекс | W185: Завершено | X185: да | Y185: 5
A186: 43950 | B186: =DAY('База заказов'!$A186) -> 29 | C186: ='База заказов'!$A186 -> 2020-04-29 | D186: =YEAR('База заказов'!$A186) -> 2020 | E186: Петров В. | F186: Нанесение декоративной штукатурки | H186: 28500 | J186: =SUM(Table[[#This Row],[Наличн]:[Безнал]])-SUM(Table[[#This Row],[Наличн]:[Безнал]])*Table[[#This Row],[Скидка]] -> 28500 | K186: 43950 | L186: =DAY(Table[[#This Row],[Дата визита]]) -> 29 | M186: =MONTH(Table[[#This Row],[Дата визита]]) -> 1900-01-04 | N186: =YEAR(Table[[#This Row],[Дата визита]]) -> 2020 | O186: =WEEKNUM(Table[[#This Row],[Дата визита]]) -> 18 | P186: 15:00:00 | Q186: Ростов-на-Дону, ул. 14 Линия, д. 33 | R186: Минин В. | S186: Клиент 185 | T186: mail@birdyx.ru | U186: 79008889900 | V186: Сайт | W186: Завершено | X186: да | Y186: 5
A187: 43951 | B187: =DAY('База заказов'!$A187) -> 30 | C187: ='База заказов'!$A187 -> 2020-04-30 | D187: =YEAR('База заказов'!$A187) -> 2020 | E187: Гончарова Н. | F187: Укладка массивной доски | H187: 28100 | J187: =SUM(Table[[#This Row],[Наличн]:[Безнал]])-SUM(Table[[#This Row],[Наличн]:[Безнал]])*Table[[#This Row],[Скидка]] -> 28100 | K187: 43951 | L187: =DAY(Table[[#This Row],[Дата визита]]) -> 30 | M187: =MONTH(Table[[#This Row],[Дата визита]]) -> 1900-01-04 | N187: =YEAR(Table[[#This Row],[Дата визита]]) -> 2020 | O187: =WEEKNUM(Table[[#This Row],[Дата визита]]) -> 18 | P187: 17:00:00 | Q187: Ростов-на-Дону, пер. Беломорский, д. 94 | R187: Субботин С. | S187: Клиент 186 | T187: mail@birdyx.ru | U187: 79008889900 | V187: Авито | W187: Завершено | X187: да | Y187: 4
A188: 43951 | B188: =DAY('База заказов'!$A188) -> 30 | C188: ='База заказов'!$A188 -> 2020-04-30 | D188: =YEAR('База заказов'!$A188) -> 2020 | E188: Гончарова Н. | F188: Нанесение декоративной штукатурки | H188: 12600 | J188: =SUM(Table[[#This Row],[Наличн]:[Безнал]])-SUM(Table[[#This Row],[Наличн]:[Безнал]])*Table[[#This Row],[Скидка]] -> 12600 | K188: 43951 | L188: =DAY(Table[[#This Row],[Дата визита]]) -> 30 | M188: =MONTH(Table[[#This Row],[Дата визита]]) -> 1900-01-04 | N188: =YEAR(Table[[#This Row],[Дата визита]]) -> 2020 | O188: =WEEKNUM(Table[[#This Row],[Дата визита]]) -> 18 | P188: 09:00:00 | Q188: Ростов-На-Дону, ул. Извилистая, д. 13/2 | R188: Белозеров В. | S188: Клиент 187 | T188: mail@birdyx.ru | U188: 79008889900 | V188: Авито | W188: Завершено | X188: да | Y188: 5
A189: 43953 | B189: =DAY('База заказов'!$A189) -> 2 | C189: ='База заказов'!$A189 -> 2020-05-02 | D189: =YEAR('База заказов'!$A189) -> 2020 | E189: Иванов И. | F189: Демонтаж входной двери | H189: 24000 | J189: =SUM(Table[[#This Row],[Наличн]:[Безнал]])-SUM(Table[[#This Row],[Наличн]:[Безнал]])*Table[[#This Row],[Скидка]] -> 24000 | K189: 43953 | L189: =DAY(Table[[#This Row],[Дата визита]]) -> 2 | M189: =MONTH(Table[[#This Row],[Дата визита]]) -> 1900-01-05 | N189: =YEAR(Table[[#This Row],[Дата визита]]) -> 2020 | O189: =WEEKNUM(Table[[#This Row],[Дата визита]]) -> 18 | P189: 11:00:00 | Q189: Ростов-на-Дону, пер. Братский, д. 36 | R189: Беспалов Г. | S189: Клиент 188 | T189: mail@birdyx.ru | U189: 79008889900 | V189: Сайт | W189: Завершено | X189: да | Y189: 5
A190: 43953 | B190: =DAY('База заказов'!$A190) -> 2 | C190: ='База заказов'!$A190 -> 2020-05-02 | D190: =YEAR('База заказов'!$A190) -> 2020 | E190: Петров В. | F190: Укладка паркетной доски на клей | H190: 38600 | J190: =SUM(Table[[#This Row],[Наличн]:[Безнал]])-SUM(Table[[#This Row],[Наличн]:[Безнал]])*Table[[#This Row],[Скидка]] -> 38600 | K190: 43953 | L190: =DAY(Table[[#This Row],[Дата визита]]) -> 2 | M190: =MONTH(Table[[#This Row],[Дата визита]]) -> 1900-01-05 | N190: =YEAR(Table[[#This Row],[Дата визита]]) -> 2020 | O190: =WEEKNUM(Table[[#This Row],[Дата визита]]) -> 18 | P190: 15:00:00 | Q190: Ростов-На-Дону, ул. Андрея Сладкова, д. 87 | R190: Шарапов В. | S190: Клиент 189 | T190: mail@birdyx.ru | U190: 79008889900 | V190: Инстаграм | W190: Завершено | X190: да | Y190: 5
A191: 43955 | B191: =DAY('База заказов'!$A191) -> 4 | C191: ='База заказов'!$A191 -> 2020-05-04 | D191: =YEAR('База заказов'!$A191) -> 2020 | E191: Иванов И. | F191: Выкройка и монтаж дополнительных углов | H191: 7300 | I191: 0.15 | J191: =SUM(Table[[#This Row],[Наличн]:[Безнал]])-SUM(Table[[#This Row],[Наличн]:[Безнал]])*Table[[#This Row],[Скидка]] -> 6205 | K191: 43955 | L191: =DAY(Table[[#This Row],[Дата визита]]) -> 4 | M191: =MONTH(Table[[#This Row],[Дата визита]]) -> 1900-01-05 | N191: =YEAR(Table[[#This Row],[Дата визита]]) -> 2020 | O191: =WEEKNUM(Table[[#This Row],[Дата визита]]) -> 19 | P191: 17:00:00 | Q191: Ростов-на-Дону, ул. 339-й Стрелковой Дивизии, д. 33 | R191: Белоусов В. | S191: Клиент 190 | T191: mail@birdyx.ru | U191: 79008889900 | V191: Яндекс | W191: Завершено | X191: да | Y191: 5
A192: 43956 | B192: =DAY('База заказов'!$A192) -> 5 | C192: ='База заказов'!$A192 -> 2020-05-05 | D192: =YEAR('База заказов'!$A192) -> 2020 | E192: Гончарова Н. | F192: Выкройка и монтаж дополнительных углов | H192: 34400 | J192: =SUM(Table[[#This Row],[Наличн]:[Безнал]])-SUM(Table[[#This Row],[Наличн]:[Безнал]])*Table[[#This Row],[Скидка]] -> 34400 | K192: 43956 | L192: =DAY(Table[[#This Row],[Дата визита]]) -> 5 | M192: =MONTH(Table[[#This Row],[Дата визита]]) -> 1900-01-05 | N192: =YEAR(Table[[#This Row],[Дата визита]]) -> 2020 | O192: =WEEKNUM(Table[[#This Row],[Дата визита]]) -> 19 | P192: 09:00:00 | Q192: Ростов-на-Дону, Ленина 1 | R192: Шарапов В. | S192: Клиент 191 | T192: mail@birdyx.ru | U192: 79008889900 | V192: По совету | W192: Завершено | X192: да | Y192: 4
A193: 43957 | B193: =DAY('База заказов'!$A193) -> 6 | C193: ='База заказов'!$A193 -> 2020-05-06 | D193: =YEAR('База заказов'!$A193) -> 2020 | E193: Мишин М. | F193: Укладка паркетной доски на клей | H193: 27100 | I193: 0.15 | J193: =SUM(Table[[#This Row],[Наличн]:[Безнал]])-SUM(Table[[#This Row],[Наличн]:[Безнал]])*Table[[#This Row],[Скидка]] -> 23035 | K193: 43959 | L193: =DAY(Table[[#This Row],[Дата визита]]) -> 8 | M193: =MONTH(Table[[#This Row],[Дата визита]]) -> 1900-01-05 | N193: =YEAR(Table[[#This Row],[Дата визита]]) -> 2020 | O193: =WEEKNUM(Table[[#This Row],[Дата визита]]) -> 19 | P193: 11:00:00 | Q193: Ростов-на-Дону, Михаила Нагибина 32 | R193: Белоусов В. | S193: Клиент 192 | T193: mail@birdyx.ru | U193: 79008889900 | V193: Сайт | W193: Завершено | X193: да | Y193: 5
A194: 43958 | B194: =DAY('База заказов'!$A194) -> 7 | C194: ='База заказов'!$A194 -> 2020-05-07 | D194: =YEAR('База заказов'!$A194) -> 2020 | E194: Иванов И. | F194: Нанесение декоративной штукатурки | H194: 17300 | J194: =SUM(Table[[#This Row],[Наличн]:[Безнал]])-SUM(Table[[#This Row],[Наличн]:[Безнал]])*Table[[#This Row],[Скидка]] -> 17300 | K194: 43959 | L194: =DAY(Table[[#This Row],[Дата визита]]) -> 8 | M194: =MONTH(Table[[#This Row],[Дата визита]]) -> 1900-01-05 | N194: =YEAR(Table[[#This Row],[Дата визита]]) -> 2020 | O194: =WEEKNUM(Table[[#This Row],[Дата визита]]) -> 19 | P194: 15:00:00 | Q194: Ростов-на-Дону, Михаила Нагибина 32 | R194: Беспалов Г. | S194: Клиент 193 | T194: mail@birdyx.ru | U194: 79008889900 | V194: Сайт | W194: Завершено | X194: да | Y194: 5
A195: 43959 | B195: =DAY('База заказов'!$A195) -> 8 | C195: ='База заказов'!$A195 -> 2020-05-08 | D195: =YEAR('База заказов'!$A195) -> 2020 | E195: Петров В. | F195: Монтаж потолочного плинтуса | H195: 8900 | J195: =SUM(Table[[#This Row],[Наличн]:[Безнал]])-SUM(Table[[#This Row],[Наличн]:[Безнал]])*Table[[#This Row],[Скидка]] -> 8900 | K195: 43959 | L195: =DAY(Table[[#This Row],[Дата визита]]) -> 8 | M195: =MONTH(Table[[#This Row],[Дата визита]]) -> 1900-01-05 | N195: =YEAR(Table[[#This Row],[Дата визита]]) -> 2020 | O195: =WEEKNUM(Table[[#This Row],[Дата визита]]) -> 19 | P195: 17:00:00 | Q195: Ростов-на-Дону, ул. Таганрогская, д. 149/1 К 35 | R195: Минин В. | S195: Клиент 194 | T195: mail@birdyx.ru | U195: 79008889900 | V195: Сайт | W195: Завершено | X195: да | Y195: 5
A196: 43960 | B196: =DAY('База заказов'!$A196) -> 9 | C196: ='База заказов'!$A196 -> 2020-05-09 | D196: =YEAR('База заказов'!$A196) -> 2020 | E196: Гончарова Н. | F196: Укладка фанеры в 1 слой | H196: 38200 | J196: =SUM(Table[[#This Row],[Наличн]:[Безнал]])-SUM(Table[[#This Row],[Наличн]:[Безнал]])*Table[[#This Row],[Скидка]] -> 38200 | K196: 43960 | L196: =DAY(Table[[#This Row],[Дата визита]]) -> 9 | M196: =MONTH(Table[[#This Row],[Дата визита]]) -> 1900-01-05 | N196: =YEAR(Table[[#This Row],[Дата визита]]) -> 2020 | O196: =WEEKNUM(Table[[#This Row],[Дата визита]]) -> 19 | P196: 09:00:00 | Q196: Ростов-На-Дону, ул. Большая Садовая, д. 115 | R196: Субботин С. | S196: Клиент 195 | T196: mail@birdyx.ru | U196: 79008889900 | V196: Сайт | W196: Отмена | X196: да | Y196: 5
A197: 43961 | B197: =DAY('База заказов'!$A197) -> 10 | C197: ='База заказов'!$A197 -> 2020-05-10 | D197: =YEAR('База заказов'!$A197) -> 2020 | E197: Иванов И. | F197: Укладка линолеума на клей | H197: 12500 | I197: 0.15 | J197: =SUM(Table[[#This Row],[Наличн]:[Безнал]])-SUM(Table[[#This Row],[Наличн]:[Безнал]])*Table[[#This Row],[Скидка]] -> 10625 | K197: 43961 | L197: =DAY(Table[[#This Row],[Дата визита]]) -> 10 | M197: =MONTH(Table[[#This Row],[Дата визита]]) -> 1900-01-05 | N197: =YEAR(Table[[#This Row],[Дата визита]]) -> 2020 | O197: =WEEKNUM(Table[[#This Row],[Дата визита]]) -> 20 | P197: 11:00:00 | Q197: Ростов-на-Дону, ул. Большая Садовая, д. 69 | R197: Субботин С. | S197: Клиент 196 | T197: mail@birdyx.ru | U197: 79008889900 | V197: Сайт | W197: Завершено | X197: да | Y197: 3
A198: 43962 | B198: =DAY('База заказов'!$A198) -> 11 | C198: ='База заказов'!$A198 -> 2020-05-11 | D198: =YEAR('База заказов'!$A198) -> 2020 | E198: Петров В. | F198: Укладка паркетной доски на клей | H198: 18100 | J198: =SUM(Table[[#This Row],[Наличн]:[Безнал]])-SUM(Table[[#This Row],[Наличн]:[Безнал]])*Table[[#This Row],[Скидка]] -> 18100 | K198: 43962 | L198: =DAY(Table[[#This Row],[Дата визита]]) -> 11 | M198: =MONTH(Table[[#This Row],[Дата визита]]) -> 1900-01-05 | N198: =YEAR(Table[[#This Row],[Дата визита]]) -> 2020 | O198: =WEEKNUM(Table[[#This Row],[Дата визита]]) -> 20 | P198: 15:00:00 | Q198: Ростов-на-Дону, пер. Университетский, д. 133 | R198: Белоусов В. | S198: Клиент 197 | T198: mail@birdyx.ru | U198: 79008889900 | V198: Сайт | W198: Завершено | X198: да | Y198: 4
A199: 43963 | B199: =DAY('База заказов'!$A199) -> 12 | C199: ='База заказов'!$A199 -> 2020-05-12 | D199: =YEAR('База заказов'!$A199) -> 2020 | E199: Иванов И. | F199: Нанесение декоративной штукатурки | H199: 39700 | J199: =SUM(Table[[#This Row],[Наличн]:[Безнал]])-SUM(Table[[#This Row],[Наличн]:[Безнал]])*Table[[#This Row],[Скидка]] -> 39700 | K199: 43963 | L199: =DAY(Table[[#This Row],[Дата визита]]) -> 12 | M199: =MONTH(Table[[#This Row],[Дата визита]]) -> 1900-01-05 | N199: =YEAR(Table[[#This Row],[Дата визита]]) -> 2020 | O199: =WEEKNUM(Table[[#This Row],[Дата визита]]) -> 20 | P199: 17:00:00 | Q199: Ростов-на-Дону, пер. Соборный, д. 26 | R199: Белозеров В. | S199: Клиент 198 | T199: mail@birdyx.ru | U199: 79008889900 | V199: Сайт | W199: Завершено | X199: да | Y199: 5
A200: 43964 | B200: =DAY('База заказов'!$A200) -> 13 | C200: ='База заказов'!$A200 -> 2020-05-13 | D200: =YEAR('База заказов'!$A200) -> 2020 | E200: Гончарова Н. | F200: Монтаж потолочного плинтуса | H200: 9800 | J200: =SUM(Table[[#This Row],[Наличн]:[Безнал]])-SUM(Table[[#This Row],[Наличн]:[Безнал]])*Table[[#This Row],[Скидка]] -> 9800 | K200: 43964 | L200: =DAY(Table[[#This Row],[Дата визита]]) -> 13 | M200: =MONTH(Table[[#This Row],[Дата визита]]) -> 1900-01-05 | N200: =YEAR(Table[[#This Row],[Дата визита]]) -> 2020 | O200: =WEEKNUM(Table[[#This Row],[Дата визита]]) -> 20 | P200: 10:00:00 | Q200: Ростов-на-Дону, проспект Сиверса, д. 1 | R200: Беспалов Г. | S200: Клиент 199 | T200: mail@birdyx.ru | U200: 79008889900 | V200: Сайт | W200: Завершено | X200: да | Y200: 5
... 566 more rows

Sheet Добавить заказ
I2: Менеджер | N2: =TODAY() -> 44541
B4: Заказчик | G4: Подробнее | L4: Оплата
B7: ФИО | G7: Услуга | L7: Кол-во (шт, кв.м и др)
B10: Номер телефона | G10: Дата визита | L10: Стоимость, руб
L11: =IFERROR(VLOOKUP(G8,data!B:C,2,FALSE),0)*L8 -> 0
B13: E-mail | G13: Время визита | L13: Оплата
B16: Адрес | G16: Мастер | L16: Скидка
B19: Как узнали о нас? | G19: Итого, руб
G20: =L11-L11*L17 -> 0

Sheet Добавить сотрудника
B4: Фамилия И.
B7: Дата рождения
B10: Должность
B13: Оклад
B16: Дата принятия
B17: =TODAY() -> 44541

Sheet Сотрудники
A1: Сотрудники | I1: Оклад
A2: ФИО | B2: Дата рождения | C2: ДР в дашборд | D2: Должность | E2: Дата принятия | F2: Дата увольнения | G2: Статус | H2: Выборка | I2: 2019 | J2: 2020 | K2: 2021
A3: Белозеров В. | B3: 32765 | C3: =IF(MONTH(Таблица57[[#This Row],[Дата рождения]])=MONTH(Расчеты!$D$2),"др","") ->  | D3: Мастер | E3: 43435 | G3: =IF(Таблица57[[#This Row],[Дата увольнения]]<>" ","уволен","") ->  | H3: =IF(OR(Расчеты!$D$2>Таблица57[[#This Row],[Дата увольнения]],Расчеты!$D$2<Таблица57[[#This Row],[Дата принятия]]),FALSE,TRUE) -> TRUE | I3: 10000 | J3: 12000 | K3: 15000
A4: Белоусов В. | B4: 26666 | C4: =IF(MONTH(Таблица57[[#This Row],[Дата рождения]])=MONTH(Расчеты!$D$2),"др","") ->  | D4: Мастер | E4: 43435 | G4: =IF(Таблица57[[#This Row],[Дата увольнения]]<>" ","уволен","") ->  | H4: =IF(OR(Расчеты!$D$2>Таблица57[[#This Row],[Дата увольнения]],Расчеты!$D$2<Таблица57[[#This Row],[Дата принятия]]),FALSE,TRUE) -> TRUE | I4: 10000 | J4: 12000 | K4: 15000
A5: Беспалов Г. | B5: 24521 | C5: =IF(MONTH(Таблица57[[#This Row],[Дата рождения]])=MONTH(Расчеты!$D$2),"др","") ->  | D5: Мастер | E5: 43450 | G5: =IF(Таблица57[[#This Row],[Дата увольнения]]<>" ","уволен","") ->  | H5: =IF(OR(Расчеты!$D$2>Таблица57[[#This Row],[Дата увольнения]],Расчеты!$D$2<Таблица57[[#This Row],[Дата принятия]]),FALSE,TRUE) -> TRUE | I5: 10000 | J5: 12000 | K5: 15000
A6: Минин В. | B6: 33094 | C6: =IF(MONTH(Таблица57[[#This Row],[Дата рождения]])=MONTH(Расчеты!$D$2),"др","") ->  | D6: Мастер | E6: 43450 | F6: 44509 | G6: =IF(Таблица57[[#This Row],[Дата увольнения]]<>" ","уволен","") -> уволен | H6: =IF(OR(Расчеты!$D$2>Таблица57[[#This Row],[Дата увольнения]],Расчеты!$D$2<Таблица57[[#This Row],[Дата принятия]]),FALSE,TRUE) -> TRUE | I6: 10000 | J6: 12000 | K6: 15000
A7: Субботин С. | B7: 29177 | C7: =IF(MONTH(Таблица57[[#This Row],[Дата рождения]])=MONTH(Расчеты!$D$2),"др","") -> др | D7: Мастер | E7: 43450 | G7: =IF(Таблица57[[#This Row],[Дата увольнения]]<>" ","уволен","") ->  | H7: =IF(OR(Расчеты!$D$2>Таблица57[[#This Row],[Дата увольнения]],Расчеты!$D$2<Таблица57[[#This Row],[Дата принятия]]),FALSE,TRUE) -> TRUE | I7: 10000 | J7: 12000 | K7: 15000
A8: Устинов С. | B8: 34906 | C8: =IF(MONTH(Таблица57[[#This Row],[Дата рождения]])=MONTH(Расчеты!$D$2),"др","") ->  | D8: Мастер | E8: 43450 | G8: =IF(Таблица57[[#This Row],[Дата увольнения]]<>" ","уволен","") ->  | H8: =IF(OR(Расчеты!$D$2>Таблица57[[#This Row],[Дата увольнения]],Расчеты!$D$2<Таблица57[[#This Row],[Дата принятия]]),FALSE,TRUE) -> TRUE | I8: 8000 | J8: 10000 | K8: 12000
A9: Шарапов В. | B9: 29371 | C9: =IF(MONTH(Таблица57[[#This Row],[Дата рождения]])=MONTH(Расчеты!$D$2),"др","") ->  | D9: Мастер | E9: 43840 | G9: =IF(Таблица57[[#This Row],[Дата увольнения]]<>" ","уволен","") ->  | H9: =IF(OR(Расчеты!$D$2>Таблица57[[#This Row],[Дата увольнения]],Расчеты!$D$2<Таблица57[[#This Row],[Дата принятия]]),FALSE,TRUE) -> TRUE | I9: 12000 | J9: 15000 | K9: 18000
A10: Гончарова Н. | B10: 34436 | C10: =IF(MONTH(Сотрудники!$B10)=MONTH(Расчеты!$D$2),"др","") ->  | D10: Менеджер | E10: 43435 | G10: =IF(Таблица57[[#This Row],[Дата увольнения]]<>" ","уволен","") ->  | H10: =IF(OR(Расчеты!$D$2>Таблица57[[#This Row],[Дата увольнения]],Расчеты!$D$2<Таблица57[[#This Row],[Дата принятия]]),FALSE,TRUE) -> TRUE | I10: 12000 | J10: 15000 | K10: 18000
A11: Иванов И. | B11: 32756 | C11: =IF(MONTH(Сотрудники!$B11)=MONTH(Расчеты!$D$2),"др","") ->  | D11: Менеджер | E11: 43435 | G11: =IF(Таблица57[[#This Row],[Дата увольнения]]<>" ","уволен","") ->  | H11: =IF(OR(Расчеты!$D$2>Таблица57[[#This Row],[Дата увольнения]],Расчеты!$D$2<Таблица57[[#This Row],[Дата принятия]]),FALSE,TRUE) -> TRUE | I11: 12000 | J11: 15000 | K11: 18000
A12: Мишин М. | B12: 31109 | C12: =IF(MONTH(Сотрудники!$B12)=MONTH(Расчеты!$D$2),"др","") ->  | D12: Менеджер | E12: 43435 | G12: =IF(Таблица57[[#This Row],[Дата увольнения]]<>" ","уволен","") ->  | H12: =IF(OR(Расчеты!$D$2>Таблица57[[#This Row],[Дата увольнения]],Расчеты!$D$2<Таблица57[[#This Row],[Дата принятия]]),FALSE,TRUE) -> TRUE | I12: 12000 | J12: 15000 | K12: 18000
A13: Петров В. | B13: 33230 | C13: =IF(MONTH(Сотрудники!$B13)=MONTH(Расчеты!$D$2),"др","") ->  | D13: Менеджер | E13: 43435 | F13: 44538 | G13: =IF(Таблица57[[#This Row],[Дата увольнения]]<>" ","уволен","") -> уволен | H13: =IF(OR(Расчеты!$D$2>Таблица57[[#This Row],[Дата увольнения]],Расчеты!$D$2<Таблица57[[#This Row],[Дата принятия]]),FALSE,TRUE) -> TRUE | I13: 12000 | J13: 15000 | K13: 18000
A14: Сергеев М. | B14: 34683 | C14: =IF(MONTH(Таблица57[[#This Row],[Дата рождения]])=MONTH(Расчеты!$D$2),"др","") ->  | D14: Менеджер | E14: 44538 | G14: =IF(Таблица57[[#This Row],[Дата увольнения]]<>" ","уволен","") ->  | H14: =IF(OR(Расчеты!$D$2>Таблица57[[#This Row],[Дата увольнения]],Расчеты!$D$2<Таблица57[[#This Row],[Дата принятия]]),FALSE,TRUE) -> FALSE | K14: 16000
A15: Михалев И. | B15: 32003 | C15: =IF(MONTH(Таблица57[[#This Row],[Дата рождения]])=MONTH(Расчеты!$D$2),"др","") ->  | D15: Мастер | E15: 44538 | G15: =IF(Таблица57[[#This Row],[Дата увольнения]]<>" ","уволен","") ->  | H15: =IF(OR(Расчеты!$D$2>Таблица57[[#This Row],[Дата увольнения]],Расчеты!$D$2<Таблица57[[#This Row],[Дата принятия]]),FALSE,TRUE) -> FALSE | K15: 14000

Sheet План KPI
A1: ПЛАН | B1: Менеджеры | C1: Мастера | D1: <100% | E1: 100% | F1: >100%
B2: Продажи | C2: Число заказов
A3: 2019-01-01 | B3: 150000 | C3: 4 | D3: 0 | E3: 5000 | F3: 0.03
A4: 2019-02-01 | B4: 150000 | C4: 4 | D4: 0 | E4: 5000 | F4: 0.03
A5: 2019-03-01 | B5: 150000 | C5: 4 | D5: 0 | E5: 5000 | F5: 0.03
A6: 2019-04-01 | B6: 150000 | C6: 4 | D6: 0 | E6: 5000 | F6: 0.03
A7: 2019-05-01 | B7: 150000 | C7: 4 | D7: 0 | E7: 5000 | F7: 0.03
A8: 2019-06-01 | B8: 150000 | C8: 5 | D8: 0 | E8: 5000 | F8: 0.03
A9: 2019-07-01 | B9: 150000 | C9: 5 | D9: 0 | E9: 5000 | F9: 0.03
A10: 2019-08-01 | B10: 150000 | C10: 5 | D10: 0 | E10: 5000 | F10: 0.03
A11: 2019-09-01 | B11: 150000 | C11: 5 | D11: 0 | E11: 5000 | F11: 0.03
A12: 2019-10-01 | B12: 150000 | C12: 5 | D12: 0 | E12: 5000 | F12: 0.03
A13: 2019-11-01 | B13: 150000 | C13: 5 | D13: 0 | E13: 5000 | F13: 0.03
A14: 2019-12-01 | B14: 150000 | C14: 5 | D14: 0 | E14: 5000 | F14: 0.03
A15: 2020-01-01 | B15: 150000 | C15: 5 | D15: 0 | E15: 5000 | F15: 0.03
A16: 2020-02-01 | B16: 180000 | C16: 5 | D16: 0 | E16: 5000 | F16: 0.03
A17: 2020-03-01 | B17: 180000 | C17: 5 | D17: 0 | E17: 5000 | F17: 0.03
A18: 2020-04-01 | B18: 180000 | C18: 5 | D18: 0 | E18: 5000 | F18: 0.03
A19: 2020-05-01 | B19: 180000 | C19: 5 | D19: 0 | E19: 5000 | F19: 0.03
A20: 2020-06-01 | B20: 180000 | C20: 5 | D20: 0 | E20: 5000 | F20: 0.03
A21: 2020-07-01 | B21: 180000 | C21: 5 | D21: 0 | E21: 5000 | F21: 0.03
A22: 2020-08-01 | B22: 180000 | C22: 5 | D22: 0 | E22: 5000 | F22: 0.03
A23: 2020-09-01 | B23: 180000 | C23: 5 | D23: 0 | E23: 5000 | F23: 0.03
A24: 2020-10-01 | B24: 180000 | C24: 5 | D24: 0 | E24: 5000 | F24: 0.03
A25: 2020-11-01 | B25: 180000 | C25: 6 | D25: 0 | E25: 5000 | F25: 0.03
A26: 2020-12-01 | B26: 180000 | C26: 6 | D26: 0 | E26: 5000 | F26: 0.03
A27: 2021-01-01 | B27: 180000 | C27: 6 | D27: 0 | E27: 5000 | F27: 0.03
A28: 2021-02-01 | B28: 200000 | C28: 6 | D28: 0 | E28: 5000 | F28: 0.03
A29: 2021-03-01 | B29: 200000 | C29: 6 | D29: 0 | E29: 5000 | F29: 0.03
A30: 2021-04-01 | B30: 200000 | C30: 6 | D30: 0 | E30: 5000 | F30: 0.03
A31: 2021-05-01 | B31: 200000 | C31: 6 | D31: 0 | E31: 5000 | F31: 0.03
A32: 2021-06-01 | B32: 200000 | C32: 6 | D32: 0 | E32: 5000 | F32: 0.03
A33: 2021-07-01 | B33: 200000 | C33: 6 | D33: 0 | E33: 5000 | F33: 0.03
A34: 2021-08-01 | B34: 200000 | C34: 6 | D34: 0 | E34: 5000 | F34: 0.03
A35: 2021-09-01 | B35: 200000 | C35: 6 | D35: 0 | E35: 5000 | F35: 0.03
A36: 2021-10-01 | B36: 230000 | C36: 6 | D36: 0 | E36: 5000 | F36: 0.03
A37: 2021-11-01 | B37: 230000 | C37: 6 | D37: 0 | E37: 5000 | F37: 0.03
A38: 2021-12-01 | B38: 140000 | C38: 3 | D38: 0 | E38: 5000 | F38: 0.03

Sheet data
B1: Данные для выпадающих списков
B3: Услуги | C3: Цена | E3: Статус | G3: Трафик
B4: Демонтаж душевой кабины | C4: 25000 | E4: В работе | G4: Сайт
B5: Демонтаж душевого поддона | C5: 34000 | E5: Отмена | G5: Авито
B6: Демонтаж раковины | C6: 12000 | E6: Завершено | G6: Инстаграм
B7: Демонтаж входной двери | C7: 5000 | G7: Яндекс
B8: Демонтаж оконного блока | C8: 5600 | G8: По совету
B9: Демонтаж балконного блока | C9: 6700
B10: Укладка фанеры в 1 слой | C10: 7400
B11: Укладка линолеума на клей | C11: 14500
B12: Укладка ламината на подложку | C12: 8000
B13: Укладка кварцвиниловой плитки на подложку | C13: 9800
B14: Укладка кварцвиниловой плитки на клей | C14: 14000
B15: Укладка паркетной доски на подложку | C15: 24000
B16: Укладка паркетной доски на клей | C16: 32000
B17: Укладка массивной доски | C17: 43000
B18: Укладка керамической плитки, керамогранита на пол с затиркой | C18: 53000
B19: Установка порожка | C19: 20000
B20: Установка плинтуса ПВХ | C20: 12000
B21: Установка деревянного плинтуса на клей | C21: 2000
B22: Монтаж тепло-пароизоляции потолка | C22: 45000
B23: Монтаж реечных потолков | C23: 2500
B24: Поклейка обоев на потолки | C24: 6000
B25: Нанесение декоративной штукатурки на потолки | C25: 5000
B26: Монтаж потолочного плинтуса | C26: 5000
B27: Изготовление и монтаж натяжных потолков (матовый, глянцевый) | C27: 23000
B28: Выкройка и монтаж дополнительных углов | C28: 3000
B29: Демонтаж межкомнатной двери | C29: 7000

Sheet today (hidden)
A1: Статус | B1: (несколько элементов) | C1: Статус | D1: (несколько элементов) | G1: Статус | H1: В работе | I1: Телефон | J1: Услуга | K1: Мастер | L1: Время | M1: 5 | O1: Названия строк | P1: Количество по полю Статус
M2: Позиция в базе | N2: Уведомление | O2: 44541 | P2: 5
A3: Названия строк | C3: Названия строк | D3: Сумма по полю Итого | G3: Названия строк | O3: В работе | P3: 5 | Q3: В работе | R3: =IFERROR(VLOOKUP(Q3,O:P,2,FALSE),0) -> 5
A4: 44541 | C4: 44541 | D4: 187800 | G4: 44541 | Q4: Завершено | R4: =IFERROR(VLOOKUP(Q4,O:P,2,FALSE),0) -> 0
A5: Ростов-На-Дону, пер. Семашко, д. 46/1 | G5: Клиент 743 | I5: =IFERROR(INDEX(Table[Телефон],MATCH(today!G5,Table[Клиент],0)),"") -> 79008889900 | J5: =IFERROR(INDEX(Table[Услуга],MATCH(today!G5,Table[Клиент],0)),"") -> Выкройка и монтаж дополнительных углов | K5: =IFERROR(INDEX(Table[Мастер],MATCH(today!G5,Table[Клиент],0)),"") -> Беспалов Г. | L5: =IFERROR(INDEX(Table[Время визита],MATCH(today!G5,Table[Клиент],0)),"") -> 10:00:00 | M5: =IFERROR(MATCH(TODAY()&G5,'База заказов'!K:K&'База заказов'!S:S,0),"") -> 744 | N5: =IF(IFERROR(INDEX('База заказов'!X:X,today!M5),"")="да","a","") ->  | Q5: Отмена | R5: =IFERROR(VLOOKUP(Q5,O:P,2,FALSE),0) -> 0
A6: Ростов-на-Дону, проспект Коммунистический, д. 20/4 | G6: Клиент 744 | I6: =IFERROR(INDEX(Table[Телефон],MATCH(today!G6,Table[Клиент],0)),"") -> 79008889900 | J6: =IFERROR(INDEX(Table[Услуга],MATCH(today!G6,Table[Клиент],0)),"") -> Установка плинтуса ПВХ | K6: =IFERROR(INDEX(Table[Мастер],MATCH(today!G6,Table[Клиент],0)),"") -> Белозеров В. | L6: =IFERROR(INDEX(Table[Время визита],MATCH(today!G6,Table[Клиент],0)),"") -> 12:00:00 | M6: =IFERROR(MATCH(TODAY()&G6,'База заказов'!K:K&'База заказов'!S:S,0),"") -> 745 | N6: =IF(IFERROR(INDEX('База заказов'!X:X,today!M6),"")="да","a","") -> 
A7: Ростов-на-Дону, проспект Соколова, д. 11/Б | G7: Клиент 745 | I7: =IFERROR(INDEX(Table[Телефон],MATCH(today!G7,Table[Клиент],0)),"") -> 79008889900 | J7: =IFERROR(INDEX(Table[Услуга],MATCH(today!G7,Table[Клиент],0)),"") -> Монтаж реечных потолков | K7: =IFERROR(INDEX(Table[Мастер],MATCH(today!G7,Table[Клиент],0)),"") -> Устинов С. | L7: =IFERROR(INDEX(Table[Время визита],MATCH(today!G7,Table[Клиент],0)),"") -> 16:00:00 | M7: =IFERROR(MATCH(TODAY()&G7,'База заказов'!K:K&'База заказов'!S:S,0),"") -> 746 | N7: =IF(IFERROR(INDEX('База заказов'!X:X,today!M7),"")="да","a","") -> 
A8: Ростов-на-Дону, ул. Ларина, д. 41/19 | G8: Клиент 746 | I8: =IFERROR(INDEX(Table[Телефон],MATCH(today!G8,Table[Клиент],0)),"") -> 79008889900 | J8: =IFERROR(INDEX(Table[Услуга],MATCH(today!G8,Table[Клиент],0)),"") -> Монтаж реечных потолков | K8: =IFERROR(INDEX(Table[Мастер],MATCH(today!G8,Table[Клиент],0)),"") -> Минин В. | L8: =IFERROR(INDEX(Table[Время визита],MATCH(today!G8,Table[Клиент],0)),"") -> 18:00:00 | M8: =IFERROR(MATCH(TODAY()&G8,'База заказов'!K:K&'База заказов'!S:S,0),"") -> 747 | N8: =IF(IFERROR(INDEX('База заказов'!X:X,today!M8),"")="да","a","") -> 
A9: Ростов-на-Дону, ул. Цезаря Куникова, д. 32/А | G9: Клиент 747 | I9: =IFERROR(INDEX(Table[Телефон],MATCH(today!G9,Table[Клиент],0)),"") -> 79008889900 | J9: =IFERROR(INDEX(Table[Услуга],MATCH(today!G9,Table[Клиент],0)),"") -> Поклейка обоев на потолки | K9: =IFERROR(INDEX(Table[Мастер],MATCH(today!G9,Table[Клиент],0)),"") -> Шарапов В. | L9: =IFERROR(INDEX(Table[Время визита],MATCH(today!G9,Table[Клиент],0)),"") -> 10:00:00 | M9: =IFERROR(MATCH(TODAY()&G9,'База заказов'!K:K&'База заказов'!S:S,0),"") -> 748 | N9: =IF(IFERROR(INDEX('База заказов'!X:X,today!M9),"")="да","a","") -> 
I10: =IFERROR(INDEX(Table[Телефон],MATCH(today!G10,Table[Клиент],0)),"") ->  | J10: =IFERROR(INDEX(Table[Услуга],MATCH(today!G10,Table[Клиент],0)),"") ->  | K10: =IFERROR(INDEX(Table[Мастер],MATCH(today!G10,Table[Клиент],0)),"") ->  | L10: =IFERROR(INDEX(Table[Время визита],MATCH(today!G10,Table[Клиент],0)),"") ->  | M10: =IFERROR(MATCH(TODAY()&G10,'База заказов'!K:K&'База заказов'!S:S,0),"") ->  | N10: =IF(IFERROR(INDEX('База заказов'!X:X,today!M10),"")="да","a","") -> 
I11: =IFERROR(INDEX(Table[Телефон],MATCH(today!G11,Table[Клиент],0)),"") ->  | J11: =IFERROR(INDEX(Table[Услуга],MATCH(today!G11,Table[Клиент],0)),"") ->  | K11: =IFERROR(INDEX(Table[Мастер],MATCH(today!G11,Table[Клиент],0)),"") ->  | L11: =IFERROR(INDEX(Table[Время визита],MATCH(today!G11,Table[Клиент],0)),"") ->  | M11: =IFERROR(MATCH(TODAY()&G11,'База заказов'!K:K&'База заказов'!S:S,0),"") ->  | N11: =IF(IFERROR(INDEX('База заказов'!X:X,today!M11),"")="да","a","") -> 
I12: =IFERROR(INDEX(Table[Телефон],MATCH(today!G12,Table[Клиент],0)),"") ->  | J12: =IFERROR(INDEX(Table[Услуга],MATCH(today!G12,Table[Клиент],0)),"") ->  | K12: =IFERROR(INDEX(Table[Мастер],MATCH(today!G12,Table[Клиент],0)),"") ->  | L12: =IFERROR(INDEX(Table[Время визита],MATCH(today!G12,Table[Клиент],0)),"") ->  | M12: =IFERROR(MATCH(TODAY()&G12,'База заказов'!K:K&'База заказов'!S:S,0),"") ->  | N12: =IF(IFERROR(INDEX('База заказов'!X:X,today!M12),"")="да","a","") -> 
I13: =IFERROR(INDEX(Table[Телефон],MATCH(today!G13,Table[Клиент],0)),"") ->  | J13: =IFERROR(INDEX(Table[Услуга],MATCH(today!G13,Table[Клиент],0)),"") ->  | K13: =IFERROR(INDEX(Table[Мастер],MATCH(today!G13,Table[Клиент],0)),"") ->  | L13: =IFERROR(INDEX(Table[Время визита],MATCH(today!G13,Table[Клиент],0)),"") ->  | M13: =IFERROR(MATCH(TODAY()&G13,'База заказов'!K:K&'База заказов'!S:S,0),"") ->  | N13: =IF(IFERROR(INDEX('База заказов'!X:X,today!M13),"")="да","a","") -> 
I14: =IFERROR(INDEX(Table[Телефон],MATCH(today!G14,Table[Клиент],0)),"") ->  | J14: =IFERROR(INDEX(Table[Услуга],MATCH(today!G14,Table[Клиент],0)),"") ->  | K14: =IFERROR(INDEX(Table[Мастер],MATCH(today!G14,Table[Клиент],0)),"") ->  | L14: =IFERROR(INDEX(Table[Время визита],MATCH(today!G14,Table[Клиент],0)),"") ->  | M14: =IFERROR(MATCH(TODAY()&G14,'База заказов'!K:K&'База заказов'!S:S,0),"") ->  | N14: =IF(IFERROR(INDEX('База заказов'!X:X,today!M14),"")="да","a","") -> 

Sheet pivot table (hidden)
A1: Названия строк | B1: Выручка | C1: тыс руб | D1: Названия строк | E1: Выручка | G1: Названия строк | H1: Количество по полю Итого | J1: Названия строк | K1: Количество по полю Безнал | L1: Количество по полю Наличн | N1: Наличные | O1: Безнал | Q1: Названия строк | R1: Сумма по полю Итого | T1: =TODAY() -> 2021-12-11 | U1: 1 | V1: Понедельник | W1: Названия строк | X1: Количество по полю Итого | Y1: Среднее по полю Оценка клиента | AA1: Названия строк | AB1: Количество по полю Статус | AE1: Названия строк | AF1: Количество по полю Статус | AH1: Названия строк | AI1: Количество по полю Мастер | AK1: Названия строк | AL1: =DATE(AK2,MONTH(VLOOKUP(AK3,AM1:AN12,2,FALSE)),1) -> 44501 | AM1: янв | AN1: 36526 | AP1: Названия строк | AQ1: Сумма по полю Итого | AR1: текущая выручка
A2: 2020 | B2: 7936115 | D2: 2020 | E2: 4476150 | G2: 2020 | H2: 1 | J2: 2020 | K2: 268 | L2: 101 | N2: =IFERROR(GETPIVOTDATA("Количество по полю Наличн",$J$1)/SUM(K3:L3),0) -> 0.2737127371 | O2: =IF(N2=0,0,1-N2) -> 0.7262872629 | Q2: 2020 | R2: 7936115 | T2: =VLOOKUP(WEEKDAY(TODAY(),2),U1:V7,2,FALSE) -> Суббота | U2: 2 | V2: Вторник | W2: 2020 | X2: 352 | Y2: 4.224431818 | AA2: 2020 | AB2: 352 | AE2: 2020 | AF2: 352 | AH2: 2021 | AK2: 2021 | AM2: фев | AN2: 36557 | AP2: 2021
A3: янв | B3: 481945 | D3: Демонтаж входной двери | E3: 1147640 | G3: Сайт | H3: 0.4318181818 | J3: Общий итог | K3: 268 | L3: 101 | Q3: Гончарова Н. | R3: 2238490 | U3: 3 | V3: Среда | W3: Белозеров В. | X3: 69 | Y3: 4.173913043 | AA3: Завершено | AB3: 339 | AC3: В работе | AD3: =IFERROR(VLOOKUP(AC3,AA:AB,2,FALSE),0) -> 0 | AE3: Общий итог | AF3: 352 | AH3: ноя | AI3: 27 | AK3: ноя | AM3: мар | AN3: 36586 | AP3: ноя | AQ3: 573635
A4: фев | B4: 734275 | D4: Укладка массивной доски | E4: 1047205 | G4: Авито | H4: 0.2073863636 | Q4: Иванов И. | R4: 2723880 | U4: 4 | V4: Четверг | W4: Субботин С. | X4: 59 | Y4: 4.271186441 | AA4: Отмена | AB4: 13 | AC4: Завершено | AD4: =IFERROR(VLOOKUP(AC4,AA:AB,2,FALSE),0) -> 339 | AH4: Белозеров В. | AI4: 5 | AK4: Общий итог | AM4: апр | AN4: 36617 | AP4: Общий итог | AQ4: 573635
A5: мар | B5: 722035 | D5: Укладка паркетной доски на клей | E5: 851600 | G5: Инстаграм | H5: 0.1448863636 | Q5: Мишин М. | R5: 1246940 | U5: 5 | V5: Пятница | W5: Беспалов Г. | X5: 56 | Y5: 4.232142857 | AA5: Общий итог | AB5: 352 | AC5: Отмена | AD5: 13 | AH5: Белоусов В. | AI5: 3 | AM5: май | AN5: 36647
A6: апр | B6: 691380 | D6: Монтаж потолочного плинтуса | E6: 808975 | G6: Яндекс | H6: 0.1306818182 | Q6: Петров В. | R6: 1726805 | U6: 6 | V6: Суббота | W6: Белоусов В. | X6: 51 | Y6: 4.411764706 | AH6: Беспалов Г. | AI6: 2 | AM6: июн | AN6: 36678
A7: май | B7: 635145 | D7: Нанесение декоративной штукатурки | E7: 620730 | G7: По совету | H7: 0.08522727273 | U7: 7 | V7: Воскресенье | W7: Минин В. | X7: 48 | Y7: 4.270833333 | AH7: Минин В. | AI7: 4 | AM7: июл | AN7: 36708
A8: июн | B8: 652400 | D8: Общий итог | E8: 4476150 | G8: Общий итог | H8: 1 | W8: Шарапов В. | X8: 39 | Y8: 3.820512821 | AH8: Субботин С. | AI8: 3 | AM8: авг | AN8: 36739
A9: июл | B9: 755630 | W9: Устинов С. | X9: 30 | Y9: 4.366666667 | AH9: Устинов С. | AI9: 4 | AM9: сен | AN9: 36770
A10: авг | B10: 667665 | AH10: Шарапов В. | AI10: 6 | AM10: окт | AN10: 36800
A11: сен | B11: 681640 | AH11: Общий итог | AI11: 27 | AM11: ноя | AN11: 36831
A12: окт | B12: 663240 | AM12: дек | AN12: 36861
A13: ноя | B13: 642480
A14: дек | B14: 608280
A15: Общий итог | B15: 7936115
AH42: Названия строк | AI42: Сумма по полю Итого
AH43: 2021
AH44: ноя | AI44: 573635
AH45: Гончарова Н. | AI45: 100200
AH46: Иванов И. | AI46: 88500
AH47: Мишин М. | AI47: 182685
AH48: Петров В. | AI48: 202250
AH49: Общий итог | AI49: 573635

Sheet Расчеты (hidden)
A1: День рождения | D1: Текущий выбор на листе KPI | H1: План | K1: KPI | N1: Текущий список | O1: Мастер | P1: Менеджер | R1: ЗП | S1: =IFERROR(INDEX(Сотрудники!$A$3:$A$40,SMALL(IF(Сотрудники!$H$3:$H$40=TRUE,ROW($E$1:$E$37)),ROW(E1))),"") -> Белозеров В. | T1: =IFERROR(IF(VLOOKUP(S1,KPI!I:R,10,FALSE)<1,$K$3+VLOOKUP(S1,KPI!I:L,4,FALSE),IF(VLOOKUP(S1,KPI!I:R,10,FALSE)=1,Расчеты!$L$3+VLOOKUP(S1,KPI!I:L,4,FALSE),IF(VLOOKUP(S1,KPI!I:R,10,FALSE)>1,Расчеты!$M$3*'pivot table'!$AQ$4+VLOOKUP(S1,KPI!I:L,4,FALSE),""))),"") -> 15000
A2: ФИО | B2: Дата | D2: ='pivot table'!AL1 -> 44501 | H2: Менеджеры | I2: =IFERROR(VLOOKUP(D2,Таблица1[],2,FALSE),0) -> 230000 | K2: <100% | L2: 100% | M2: >100% | O2: =IFERROR(INDEX(Сотрудники!$A$3:$A$40,SMALL(IF((Сотрудники!$D$3:$D$40="Мастер")*(Сотрудники!$G$3:$G$40=""),ROW($E$1:$E$37)),ROW(E1))),"") -> Белозеров В. | P2: =IFERROR(INDEX(Сотрудники!$A$3:$A$40,SMALL(IF((Сотрудники!$D$3:$D$40="Менеджер")*(Сотрудники!$G$3:$G$40=""),ROW($E$1:$E$37)),ROW(E1))),"") -> Гончарова Н. | R2: =SUM(T1:T26) -> 182000 | S2: =IFERROR(INDEX(Сотрудники!$A$3:$A$40,SMALL(IF(Сотрудники!$H$3:$H$40=TRUE,ROW($E$1:$E$37)),ROW(E2))),"") -> Белоусов В. | T2: =IFERROR(IF(VLOOKUP(S2,KPI!I:R,10,FALSE)<1,$K$3+VLOOKUP(S2,KPI!I:L,4,FALSE),IF(VLOOKUP(S2,KPI!I:R,10,FALSE)=1,Расчеты!$L$3+VLOOKUP(S2,KPI!I:L,4,FALSE),IF(VLOOKUP(S2,KPI!I:R,10,FALSE)>1,Расчеты!$M$3*'pivot table'!$AQ$4+VLOOKUP(S2,KPI!I:L,4,FALSE),""))),"") -> 15000
A3: =IFERROR(INDEX(Сотрудники!$A$3:$A$40,SMALL(IF((Сотрудники!$C$3:$C$40="др")*(Сотрудники!$G$3:$G$40=""),ROW($E$1:$E$37)),ROW(E1))),"") -> Субботин С. | B3: =IFERROR(TEXT(VLOOKUP(A3,Сотрудники!A:C,2,FALSE),"ДД МММ"),"") -> 18 ноя | H3: Мастера | I3: =IFERROR(VLOOKUP(D2,Таблица1[],3,FALSE),0) -> 6 | K3: =IFERROR(VLOOKUP(D2,Таблица1[],4,FALSE),0) -> 0 | L3: =IFERROR(VLOOKUP(D2,Таблица1[],5,FALSE),0) -> 5000 | M3: =IFERROR(VLOOKUP(D2,Таблица1[],6,FALSE),0) -> 0.03 | O3: =IFERROR(INDEX(Сотрудники!$A$3:$A$40,SMALL(IF((Сотрудники!$D$3:$D$40="Мастер")*(Сотрудники!$G$3:$G$40=""),ROW($E$1:$E$37)),ROW(E2))),"") -> Белоусов В. | P3: =IFERROR(INDEX(Сотрудники!$A$3:$A$40,SMALL(IF((Сотрудники!$D$3:$D$40="Менеджер")*(Сотрудники!$G$3:$G$40=""),ROW($E$1:$E$37)),ROW(E2))),"") -> Иванов И. | R3: Чистая прибыль | S3: =IFERROR(INDEX(Сотрудники!$A$3:$A$40,SMALL(IF(Сотрудники!$H$3:$H$40=TRUE,ROW($E$1:$E$37)),ROW(E3))),"") -> Беспалов Г. | T3: =IFERROR(IF(VLOOKUP(S3,KPI!I:R,10,FALSE)<1,$K$3+VLOOKUP(S3,KPI!I:L,4,FALSE),IF(VLOOKUP(S3,KPI!I:R,10,FALSE)=1,Расчеты!$L$3+VLOOKUP(S3,KPI!I:L,4,FALSE),IF(VLOOKUP(S3,KPI!I:R,10,FALSE)>1,Расчеты!$M$3*'pivot table'!$AQ$4+VLOOKUP(S3,KPI!I:L,4,FALSE),""))),"") -> 15000
A4: =IFERROR(INDEX(Сотрудники!$A$3:$A$40,SMALL(IF((Сотрудники!$C$3:$C$40="др")*(Сотрудники!$G$3:$G$40=""),ROW($E$1:$E$37)),ROW(E2))),"") ->  | B4: =IFERROR(TEXT(VLOOKUP(A4,Сотрудники!A:C,2,FALSE),"ДД МММ"),"") ->  | O4: =IFERROR(INDEX(Сотрудники!$A$3:$A$40,SMALL(IF((Сотрудники!$D$3:$D$40="Мастер")*(Сотрудники!$G$3:$G$40=""),ROW($E$1:$E$37)),ROW(E3))),"") -> Беспалов Г. | P4: =IFERROR(INDEX(Сотрудники!$A$3:$A$40,SMALL(IF((Сотрудники!$D$3:$D$40="Менеджер")*(Сотрудники!$G$3:$G$40=""),ROW($E$1:$E$37)),ROW(E3))),"") -> Мишин М. | R4: =IFERROR('pivot table'!AQ4-Расчеты!R2,"") -> 391635 | S4: =IFERROR(INDEX(Сотрудники!$A$3:$A$40,SMALL(IF(Сотрудники!$H$3:$H$40=TRUE,ROW($E$1:$E$37)),ROW(E4))),"") -> Минин В. | T4: =IFERROR(IF(VLOOKUP(S4,KPI!I:R,10,FALSE)<1,$K$3+VLOOKUP(S4,KPI!I:L,4,FALSE),IF(VLOOKUP(S4,KPI!I:R,10,FALSE)=1,Расчеты!$L$3+VLOOKUP(S4,KPI!I:L,4,FALSE),IF(VLOOKUP(S4,KPI!I:R,10,FALSE)>1,Расчеты!$M$3*'pivot table'!$AQ$4+VLOOKUP(S4,KPI!I:L,4,FALSE),""))),"") -> 15000
A5: =IFERROR(INDEX(Сотрудники!$A$3:$A$40,SMALL(IF((Сотрудники!$C$3:$C$40="др")*(Сотрудники!$G$3:$G$40=""),ROW($E$1:$E$37)),ROW(E3))),"") ->  | B5: =IFERROR(TEXT(VLOOKUP(A5,Сотрудники!A:C,2,FALSE),"ДД МММ"),"") ->  | O5: =IFERROR(INDEX(Сотрудники!$A$3:$A$40,SMALL(IF((Сотрудники!$D$3:$D$40="Мастер")*(Сотрудники!$G$3:$G$40=""),ROW($E$1:$E$37)),ROW(E4))),"") -> Субботин С. | P5: =IFERROR(INDEX(Сотрудники!$A$3:$A$40,SMALL(IF((Сотрудники!$D$3:$D$40="Менеджер")*(Сотрудники!$G$3:$G$40=""),ROW($E$1:$E$37)),ROW(E4))),"") -> Сергеев М. | S5: =IFERROR(INDEX(Сотрудники!$A$3:$A$40,SMALL(IF(Сотрудники!$H$3:$H$40=TRUE,ROW($E$1:$E$37)),ROW(E5))),"") -> Субботин С. | T5: =IFERROR(IF(VLOOKUP(S5,KPI!I:R,10,FALSE)<1,$K$3+VLOOKUP(S5,KPI!I:L,4,FALSE),IF(VLOOKUP(S5,KPI!I:R,10,FALSE)=1,Расчеты!$L$3+VLOOKUP(S5,KPI!I:L,4,FALSE),IF(VLOOKUP(S5,KPI!I:R,10,FALSE)>1,Расчеты!$M$3*'pivot table'!$AQ$4+VLOOKUP(S5,KPI!I:L,4,FALSE),""))),"") -> 15000
A6: =IFERROR(INDEX(Сотрудники!$A$3:$A$40,SMALL(IF((Сотрудники!$C$3:$C$40="др")*(Сотрудники!$G$3:$G$40=""),ROW($E$1:$E$37)),ROW(E4))),"") ->  | B6: =IFERROR(TEXT(VLOOKUP(A6,Сотрудники!A:C,2,FALSE),"ДД МММ"),"") ->  | O6: =IFERROR(INDEX(Сотрудники!$A$3:$A$40,SMALL(IF((Сотрудники!$D$3:$D$40="Мастер")*(Сотрудники!$G$3:$G$40=""),ROW($E$1:$E$37)),ROW(E5))),"") -> Устинов С. | P6: =IFERROR(INDEX(Сотрудники!$A$3:$A$40,SMALL(IF((Сотрудники!$D$3:$D$40="Менеджер")*(Сотрудники!$G$3:$G$40=""),ROW($E$1:$E$37)),ROW(E5))),"") ->  | S6: =IFERROR(INDEX(Сотрудники!$A$3:$A$40,SMALL(IF(Сотрудники!$H$3:$H$40=TRUE,ROW($E$1:$E$37)),ROW(E6))),"") -> Устинов С. | T6: =IFERROR(IF(VLOOKUP(S6,KPI!I:R,10,FALSE)<1,$K$3+VLOOKUP(S6,KPI!I:L,4,FALSE),IF(VLOOKUP(S6,KPI!I:R,10,FALSE)=1,Расчеты!$L$3+VLOOKUP(S6,KPI!I:L,4,FALSE),IF(VLOOKUP(S6,KPI!I:R,10,FALSE)>1,Расчеты!$M$3*'pivot table'!$AQ$4+VLOOKUP(S6,KPI!I:L,4,FALSE),""))),"") -> 12000
A7: =IFERROR(INDEX(Сотрудники!$A$3:$A$40,SMALL(IF((Сотрудники!$C$3:$C$40="др")*(Сотрудники!$G$3:$G$40=""),ROW($E$1:$E$37)),ROW(E5))),"") ->  | B7: =IFERROR(TEXT(VLOOKUP(A7,Сотрудники!A:C,2,FALSE),"ДД МММ"),"") ->  | O7: =IFERROR(INDEX(Сотрудники!$A$3:$A$40,SMALL(IF((Сотрудники!$D$3:$D$40="Мастер")*(Сотрудники!$G$3:$G$40=""),ROW($E$1:$E$37)),ROW(E6))),"") -> Шарапов В. | P7: =IFERROR(INDEX(Сотрудники!$A$3:$A$40,SMALL(IF((Сотрудники!$D$3:$D$40="Менеджер")*(Сотрудники!$G$3:$G$40=""),ROW($E$1:$E$37)),ROW(E6))),"") ->  | S7: =IFERROR(INDEX(Сотрудники!$A$3:$A$40,SMALL(IF(Сотрудники!$H$3:$H$40=TRUE,ROW($E$1:$E$37)),ROW(E7))),"") -> Шарапов В. | T7: =IFERROR(IF(VLOOKUP(S7,KPI!I:R,10,FALSE)<1,$K$3+VLOOKUP(S7,KPI!I:L,4,FALSE),IF(VLOOKUP(S7,KPI!I:R,10,FALSE)=1,Расчеты!$L$3+VLOOKUP(S7,KPI!I:L,4,FALSE),IF(VLOOKUP(S7,KPI!I:R,10,FALSE)>1,Расчеты!$M$3*'pivot table'!$AQ$4+VLOOKUP(S7,KPI!I:L,4,FALSE),""))),"") -> 23000
A8: =IFERROR(INDEX(Сотрудники!$A$3:$A$40,SMALL(IF((Сотрудники!$C$3:$C$40="др")*(Сотрудники!$G$3:$G$40=""),ROW($E$1:$E$37)),ROW(E6))),"") ->  | B8: =IFERROR(TEXT(VLOOKUP(A8,Сотрудники!A:C,2,FALSE),"ДД МММ"),"") ->  | O8: =IFERROR(INDEX(Сотрудники!$A$3:$A$40,SMALL(IF((Сотрудники!$D$3:$D$40="Мастер")*(Сотрудники!$G$3:$G$40=""),ROW($E$1:$E$37)),ROW(E7))),"") -> Михалев И. | P8: =IFERROR(INDEX(Сотрудники!$A$3:$A$40,SMALL(IF((Сотрудники!$D$3:$D$40="Менеджер")*(Сотрудники!$G$3:$G$40=""),ROW($E$1:$E$37)),ROW(E7))),"") ->  | S8: =IFERROR(INDEX(Сотрудники!$A$3:$A$40,SMALL(IF(Сотрудники!$H$3:$H$40=TRUE,ROW($E$1:$E$37)),ROW(E8))),"") -> Гончарова Н. | T8: =IFERROR(IF(VLOOKUP(S8,KPI!I:R,10,FALSE)<1,$K$3+VLOOKUP(S8,KPI!I:L,4,FALSE),IF(VLOOKUP(S8,KPI!I:R,10,FALSE)=1,Расчеты!$L$3+VLOOKUP(S8,KPI!I:L,4,FALSE),IF(VLOOKUP(S8,KPI!I:R,10,FALSE)>1,Расчеты!$M$3*'pivot table'!$AQ$4+VLOOKUP(S8,KPI!I:L,4,FALSE),""))),"") -> 18000
A9: =IFERROR(INDEX(Сотрудники!$A$3:$A$40,SMALL(IF((Сотрудники!$C$3:$C$40="др")*(Сотрудники!$G$3:$G$40=""),ROW($E$1:$E$37)),ROW(E7))),"") ->  | B9: =IFERROR(TEXT(VLOOKUP(A9,Сотрудники!A:C,2,FALSE),"ДД МММ"),"") ->  | O9: =IFERROR(INDEX(Сотрудники!$A$3:$A$40,SMALL(IF((Сотрудники!$D$3:$D$40="Мастер")*(Сотрудники!$G$3:$G$40=""),ROW($E$1:$E$37)),ROW(E8))),"") ->  | P9: =IFERROR(INDEX(Сотрудники!$A$3:$A$40,SMALL(IF((Сотрудники!$D$3:$D$40="Менеджер")*(Сотрудники!$G$3:$G$40=""),ROW($E$1:$E$37)),ROW(E8))),"") ->  | S9: =IFERROR(INDEX(Сотрудники!$A$3:$A$40,SMALL(IF(Сотрудники!$H$3:$H$40=TRUE,ROW($E$1:$E$37)),ROW(E9))),"") -> Иванов И. | T9: =IFERROR(IF(VLOOKUP(S9,KPI!I:R,10,FALSE)<1,$K$3+VLOOKUP(S9,KPI!I:L,4,FALSE),IF(VLOOKUP(S9,KPI!I:R,10,FALSE)=1,Расчеты!$L$3+VLOOKUP(S9,KPI!I:L,4,FALSE),IF(VLOOKUP(S9,KPI!I:R,10,FALSE)>1,Расчеты!$M$3*'pivot table'!$AQ$4+VLOOKUP(S9,KPI!I:L,4,FALSE),""))),"") -> 18000
A10: =IFERROR(INDEX(Сотрудники!$A$3:$A$40,SMALL(IF((Сотрудники!$C$3:$C$40="др")*(Сотрудники!$G$3:$G$40=""),ROW($E$1:$E$37)),ROW(E8))),"") ->  | B10: =IFERROR(TEXT(VLOOKUP(A10,Сотрудники!A:C,2,FALSE),"ДД МММ"),"") ->  | O10: =IFERROR(INDEX(Сотрудники!$A$3:$A$40,SMALL(IF((Сотрудники!$D$3:$D$40="Мастер")*(Сотрудники!$G$3:$G$40=""),ROW($E$1:$E$37)),ROW(E9))),"") ->  | P10: =IFERROR(INDEX(Сотрудники!$A$3:$A$40,SMALL(IF((Сотрудники!$D$3:$D$40="Менеджер")*(Сотрудники!$G$3:$G$40=""),ROW($E$1:$E$37)),ROW(E9))),"") ->  | S10: =IFERROR(INDEX(Сотрудники!$A$3:$A$40,SMALL(IF(Сотрудники!$H$3:$H$40=TRUE,ROW($E$1:$E$37)),ROW(E10))),"") -> Мишин М. | T10: =IFERROR(IF(VLOOKUP(S10,KPI!I:R,10,FALSE)<1,$K$3+VLOOKUP(S10,KPI!I:L,4,FALSE),IF(VLOOKUP(S10,KPI!I:R,10,FALSE)=1,Расчеты!$L$3+VLOOKUP(S10,KPI!I:L,4,FALSE),IF(VLOOKUP(S10,KPI!I:R,10,FALSE)>1,Расчеты!$M$3*'pivot table'!$AQ$4+VLOOKUP(S10,KPI!I:L,4,FALSE),""))),"") -> 18000
O11: =IFERROR(INDEX(Сотрудники!$A$3:$A$40,SMALL(IF((Сотрудники!$D$3:$D$40="Мастер")*(Сотрудники!$G$3:$G$40=""),ROW($E$1:$E$37)),ROW(E10))),"") ->  | P11: =IFERROR(INDEX(Сотрудники!$A$3:$A$40,SMALL(IF((Сотрудники!$D$3:$D$40="Менеджер")*(Сотрудники!$G$3:$G$40=""),ROW($E$1:$E$37)),ROW(E10))),"") ->  | S11: =IFERROR(INDEX(Сотрудники!$A$3:$A$40,SMALL(IF(Сотрудники!$H$3:$H$40=TRUE,ROW($E$1:$E$37)),ROW(E11))),"") -> Петров В. | T11: =IFERROR(IF(VLOOKUP(S11,KPI!I:R,10,FALSE)<1,$K$3+VLOOKUP(S11,KPI!I:L,4,FALSE),IF(VLOOKUP(S11,KPI!I:R,10,FALSE)=1,Расчеты!$L$3+VLOOKUP(S11,KPI!I:L,4,FALSE),IF(VLOOKUP(S11,KPI!I:R,10,FALSE)>1,Расчеты!$M$3*'pivot table'!$AQ$4+VLOOKUP(S11,KPI!I:L,4,FALSE),""))),"") -> 18000
O12: =IFERROR(INDEX(Сотрудники!$A$3:$A$40,SMALL(IF((Сотрудники!$D$3:$D$40="Мастер")*(Сотрудники!$G$3:$G$40=""),ROW($E$1:$E$37)),ROW(E11))),"") ->  | P12: =IFERROR(INDEX(Сотрудники!$A$3:$A$40,SMALL(IF((Сотрудники!$D$3:$D$40="Менеджер")*(Сотрудники!$G$3:$G$40=""),ROW($E$1:$E$37)),ROW(E11))),"") ->  | S12: =IFERROR(INDEX(Сотрудники!$A$3:$A$40,SMALL(IF(Сотрудники!$H$3:$H$40=TRUE,ROW($E$1:$E$37)),ROW(E12))),"") ->  | T12: =IFERROR(IF(VLOOKUP(S12,KPI!I:R,10,FALSE)<1,$K$3+VLOOKUP(S12,KPI!I:L,4,FALSE),IF(VLOOKUP(S12,KPI!I:R,10,FALSE)=1,Расчеты!$L$3+VLOOKUP(S12,KPI!I:L,4,FALSE),IF(VLOOKUP(S12,KPI!I:R,10,FALSE)>1,Расчеты!$M$3*'pivot table'!$AQ$4+VLOOKUP(S12,KPI!I:L,4,FALSE),""))),"") -> 
O13: =IFERROR(INDEX(Сотрудники!$A$3:$A$40,SMALL(IF((Сотрудники!$D$3:$D$40="Мастер")*(Сотрудники!$G$3:$G$40=""),ROW($E$1:$E$37)),ROW(E12))),"") ->  | P13: =IFERROR(INDEX(Сотрудники!$A$3:$A$40,SMALL(IF((Сотрудники!$D$3:$D$40="Менеджер")*(Сотрудники!$G$3:$G$40=""),ROW($E$1:$E$37)),ROW(E12))),"") ->  | S13: =IFERROR(INDEX(Сотрудники!$A$3:$A$40,SMALL(IF(Сотрудники!$H$3:$H$40=TRUE,ROW($E$1:$E$37)),ROW(E13))),"") ->  | T13: =IFERROR(IF(VLOOKUP(S13,KPI!I:R,10,FALSE)<1,$K$3+VLOOKUP(S13,KPI!I:L,4,FALSE),IF(VLOOKUP(S13,KPI!I:R,10,FALSE)=1,Расчеты!$L$3+VLOOKUP(S13,KPI!I:L,4,FALSE),IF(VLOOKUP(S13,KPI!I:R,10,FALSE)>1,Расчеты!$M$3*'pivot table'!$AQ$4+VLOOKUP(S13,KPI!I:L,4,FALSE),""))),"") -> 
O14: =IFERROR(INDEX(Сотрудники!$A$3:$A$40,SMALL(IF((Сотрудники!$D$3:$D$40="Мастер")*(Сотрудники!$G$3:$G$40=""),ROW($E$1:$E$37)),ROW(E13))),"") ->  | P14: =IFERROR(INDEX(Сотрудники!$A$3:$A$40,SMALL(IF((Сотрудники!$D$3:$D$40="Менеджер")*(Сотрудники!$G$3:$G$40=""),ROW($E$1:$E$37)),ROW(E13))),"") ->  | S14: =IFERROR(INDEX(Сотрудники!$A$3:$A$40,SMALL(IF(Сотрудники!$H$3:$H$40=TRUE,ROW($E$1:$E$37)),ROW(E14))),"") ->  | T14: =IFERROR(IF(VLOOKUP(S14,KPI!I:R,10,FALSE)<1,$K$3+VLOOKUP(S14,KPI!I:L,4,FALSE),IF(VLOOKUP(S14,KPI!I:R,10,FALSE)=1,Расчеты!$L$3+VLOOKUP(S14,KPI!I:L,4,FALSE),IF(VLOOKUP(S14,KPI!I:R,10,FALSE)>1,Расчеты!$M$3*'pivot table'!$AQ$4+VLOOKUP(S14,KPI!I:L,4,FALSE),""))),"") -> 
O15: =IFERROR(INDEX(Сотрудники!$A$3:$A$40,SMALL(IF((Сотрудники!$D$3:$D$40="Мастер")*(Сотрудники!$G$3:$G$40=""),ROW($E$1:$E$37)),ROW(E14))),"") ->  | P15: =IFERROR(INDEX(Сотрудники!$A$3:$A$40,SMALL(IF((Сотрудники!$D$3:$D$40="Менеджер")*(Сотрудники!$G$3:$G$40=""),ROW($E$1:$E$37)),ROW(E14))),"") ->  | S15: =IFERROR(INDEX(Сотрудники!$A$3:$A$40,SMALL(IF(Сотрудники!$H$3:$H$40=TRUE,ROW($E$1:$E$37)),ROW(E15))),"") ->  | T15: =IFERROR(IF(VLOOKUP(S15,KPI!I:R,10,FALSE)<1,$K$3+VLOOKUP(S15,KPI!I:L,4,FALSE),IF(VLOOKUP(S15,KPI!I:R,10,FALSE)=1,Расчеты!$L$3+VLOOKUP(S15,KPI!I:L,4,FALSE),IF(VLOOKUP(S15,KPI!I:R,10,FALSE)>1,Расчеты!$M$3*'pivot table'!$AQ$4+VLOOKUP(S15,KPI!I:L,4,FALSE),""))),"") -> 
O16: =IFERROR(INDEX(Сотрудники!$A$3:$A$40,SMALL(IF((Сотрудники!$D$3:$D$40="Мастер")*(Сотрудники!$G$3:$G$40=""),ROW($E$1:$E$37)),ROW(E15))),"") ->  | P16: =IFERROR(INDEX(Сотрудники!$A$3:$A$40,SMALL(IF((Сотрудники!$D$3:$D$40="Менеджер")*(Сотрудники!$G$3:$G$40=""),ROW($E$1:$E$37)),ROW(E15))),"") ->  | S16: =IFERROR(INDEX(Сотрудники!$A$3:$A$40,SMALL(IF(Сотрудники!$H$3:$H$40=TRUE,ROW($E$1:$E$37)),ROW(E16))),"") ->  | T16: =IFERROR(IF(VLOOKUP(S16,KPI!I:R,10,FALSE)<1,$K$3+VLOOKUP(S16,KPI!I:L,4,FALSE),IF(VLOOKUP(S16,KPI!I:R,10,FALSE)=1,Расчеты!$L$3+VLOOKUP(S16,KPI!I:L,4,FALSE),IF(VLOOKUP(S16,KPI!I:R,10,FALSE)>1,Расчеты!$M$3*'pivot table'!$AQ$4+VLOOKUP(S16,KPI!I:L,4,FALSE),""))),"") -> 
O17: =IFERROR(INDEX(Сотрудники!$A$3:$A$40,SMALL(IF((Сотрудники!$D$3:$D$40="Мастер")*(Сотрудники!$G$3:$G$40=""),ROW($E$1:$E$37)),ROW(E16))),"") ->  | P17: =IFERROR(INDEX(Сотрудники!$A$3:$A$40,SMALL(IF((Сотрудники!$D$3:$D$40="Менеджер")*(Сотрудники!$G$3:$G$40=""),ROW($E$1:$E$37)),ROW(E16))),"") ->  | S17: =IFERROR(INDEX(Сотрудники!$A$3:$A$40,SMALL(IF(Сотрудники!$H$3:$H$40=TRUE,ROW($E$1:$E$37)),ROW(E17))),"") ->  | T17: =IFERROR(IF(VLOOKUP(S17,KPI!I:R,10,FALSE)<1,$K$3+VLOOKUP(S17,KPI!I:L,4,FALSE),IF(VLOOKUP(S17,KPI!I:R,10,FALSE)=1,Расчеты!$L$3+VLOOKUP(S17,KPI!I:L,4,FALSE),IF(VLOOKUP(S17,KPI!I:R,10,FALSE)>1,Расчеты!$M$3*'pivot table'!$AQ$4+VLOOKUP(S17,KPI!I:L,4,FALSE),""))),"") -> 
O18: =IFERROR(INDEX(Сотрудники!$A$3:$A$40,SMALL(IF((Сотрудники!$D$3:$D$40="Мастер")*(Сотрудники!$G$3:$G$40=""),ROW($E$1:$E$37)),ROW(E17))),"") ->  | P18: =IFERROR(INDEX(Сотрудники!$A$3:$A$40,SMALL(IF((Сотрудники!$D$3:$D$40="Менеджер")*(Сотрудники!$G$3:$G$40=""),ROW($E$1:$E$37)),ROW(E17))),"") ->  | S18: =IFERROR(INDEX(Сотрудники!$A$3:$A$40,SMALL(IF(Сотрудники!$H$3:$H$40=TRUE,ROW($E$1:$E$37)),ROW(E18))),"") ->  | T18: =IFERROR(IF(VLOOKUP(S18,KPI!I:R,10,FALSE)<1,$K$3+VLOOKUP(S18,KPI!I:L,4,FALSE),IF(VLOOKUP(S18,KPI!I:R,10,FALSE)=1,Расчеты!$L$3+VLOOKUP(S18,KPI!I:L,4,FALSE),IF(VLOOKUP(S18,KPI!I:R,10,FALSE)>1,Расчеты!$M$3*'pivot table'!$AQ$4+VLOOKUP(S18,KPI!I:L,4,FALSE),""))),"") -> 
O19: =IFERROR(INDEX(Сотрудники!$A$3:$A$40,SMALL(IF((Сотрудники!$D$3:$D$40="Мастер")*(Сотрудники!$G$3:$G$40=""),ROW($E$1:$E$37)),ROW(E18))),"") ->  | P19: =IFERROR(INDEX(Сотрудники!$A$3:$A$40,SMALL(IF((Сотрудники!$D$3:$D$40="Менеджер")*(Сотрудники!$G$3:$G$40=""),ROW($E$1:$E$37)),ROW(E18))),"") ->  | S19: =IFERROR(INDEX(Сотрудники!$A$3:$A$40,SMALL(IF(Сотрудники!$H$3:$H$40=TRUE,ROW($E$1:$E$37)),ROW(E19))),"") ->  | T19: =IFERROR(IF(VLOOKUP(S19,KPI!I:R,10,FALSE)<1,$K$3+VLOOKUP(S19,KPI!I:L,4,FALSE),IF(VLOOKUP(S19,KPI!I:R,10,FALSE)=1,Расчеты!$L$3+VLOOKUP(S19,KPI!I:L,4,FALSE),IF(VLOOKUP(S19,KPI!I:R,10,FALSE)>1,Расчеты!$M$3*'pivot table'!$AQ$4+VLOOKUP(S19,KPI!I:L,4,FALSE),""))),"") -> 
O20: =IFERROR(INDEX(Сотрудники!$A$3:$A$40,SMALL(IF((Сотрудники!$D$3:$D$40="Мастер")*(Сотрудники!$G$3:$G$40=""),ROW($E$1:$E$37)),ROW(E19))),"") ->  | P20: =IFERROR(INDEX(Сотрудники!$A$3:$A$40,SMALL(IF((Сотрудники!$D$3:$D$40="Менеджер")*(Сотрудники!$G$3:$G$40=""),ROW($E$1:$E$37)),ROW(E19))),"") ->  | S20: =IFERROR(INDEX(Сотрудники!$A$3:$A$40,SMALL(IF(Сотрудники!$H$3:$H$40=TRUE,ROW($E$1:$E$37)),ROW(E20))),"") ->  | T20: =IFERROR(IF(VLOOKUP(S20,KPI!I:R,10,FALSE)<1,$K$3+VLOOKUP(S20,KPI!I:L,4,FALSE),IF(VLOOKUP(S20,KPI!I:R,10,FALSE)=1,Расчеты!$L$3+VLOOKUP(S20,KPI!I:L,4,FALSE),IF(VLOOKUP(S20,KPI!I:R,10,FALSE)>1,Расчеты!$M$3*'pivot table'!$AQ$4+VLOOKUP(S20,KPI!I:L,4,FALSE),""))),"") -> 
O21: =IFERROR(INDEX(Сотрудники!$A$3:$A$40,SMALL(IF((Сотрудники!$D$3:$D$40="Мастер")*(Сотрудники!$G$3:$G$40=""),ROW($E$1:$E$37)),ROW(E20))),"") ->  | P21: =IFERROR(INDEX(Сотрудники!$A$3:$A$40,SMALL(IF((Сотрудники!$D$3:$D$40="Менеджер")*(Сотрудники!$G$3:$G$40=""),ROW($E$1:$E$37)),ROW(E20))),"") ->  | S21: =IFERROR(INDEX(Сотрудники!$A$3:$A$40,SMALL(IF(Сотрудники!$H$3:$H$40=TRUE,ROW($E$1:$E$37)),ROW(E21))),"") ->  | T21: =IFERROR(IF(VLOOKUP(S21,KPI!I:R,10,FALSE)<1,$K$3+VLOOKUP(S21,KPI!I:L,4,FALSE),IF(VLOOKUP(S21,KPI!I:R,10,FALSE)=1,Расчеты!$L$3+VLOOKUP(S21,KPI!I:L,4,FALSE),IF(VLOOKUP(S21,KPI!I:R,10,FALSE)>1,Расчеты!$M$3*'pivot table'!$AQ$4+VLOOKUP(S21,KPI!I:L,4,FALSE),""))),"") -> 
O22: =IFERROR(INDEX(Сотрудники!$A$3:$A$40,SMALL(IF((Сотрудники!$D$3:$D$40="Мастер")*(Сотрудники!$G$3:$G$40=""),ROW($E$1:$E$37)),ROW(E21))),"") ->  | P22: =IFERROR(INDEX(Сотрудники!$A$3:$A$40,SMALL(IF((Сотрудники!$D$3:$D$40="Менеджер")*(Сотрудники!$G$3:$G$40=""),ROW($E$1:$E$37)),ROW(E21))),"") ->  | S22: =IFERROR(INDEX(Сотрудники!$A$3:$A$40,SMALL(IF(Сотрудники!$H$3:$H$40=TRUE,ROW($E$1:$E$37)),ROW(E22))),"") ->  | T22: =IFERROR(IF(VLOOKUP(S22,KPI!I:R,10,FALSE)<1,$K$3+VLOOKUP(S22,KPI!I:L,4,FALSE),IF(VLOOKUP(S22,KPI!I:R,10,FALSE)=1,Расчеты!$L$3+VLOOKUP(S22,KPI!I:L,4,FALSE),IF(VLOOKUP(S22,KPI!I:R,10,FALSE)>1,Расчеты!$M$3*'pivot table'!$AQ$4+VLOOKUP(S22,KPI!I:L,4,FALSE),""))),"") -> 
O23: =IFERROR(INDEX(Сотрудники!$A$3:$A$40,SMALL(IF((Сотрудники!$D$3:$D$40="Мастер")*(Сотрудники!$G$3:$G$40=""),ROW($E$1:$E$37)),ROW(E22))),"") ->  | P23: =IFERROR(INDEX(Сотрудники!$A$3:$A$40,SMALL(IF((Сотрудники!$D$3:$D$40="Менеджер")*(Сотрудники!$G$3:$G$40=""),ROW($E$1:$E$37)),ROW(E22))),"") ->  | S23: =IFERROR(INDEX(Сотрудники!$A$3:$A$40,SMALL(IF(Сотрудники!$H$3:$H$40=TRUE,ROW($E$1:$E$37)),ROW(E23))),"") ->  | T23: =IFERROR(IF(VLOOKUP(S23,KPI!I:R,10,FALSE)<1,$K$3+VLOOKUP(S23,KPI!I:L,4,FALSE),IF(VLOOKUP(S23,KPI!I:R,10,FALSE)=1,Расчеты!$L$3+VLOOKUP(S23,KPI!I:L,4,FALSE),IF(VLOOKUP(S23,KPI!I:R,10,FALSE)>1,Расчеты!$M$3*'pivot table'!$AQ$4+VLOOKUP(S23,KPI!I:L,4,FALSE),""))),"") -> 
O24: =IFERROR(INDEX(Сотрудники!$A$3:$A$40,SMALL(IF((Сотрудники!$D$3:$D$40="Мастер")*(Сотрудники!$G$3:$G$40=""),ROW($E$1:$E$37)),ROW(E23))),"") ->  | P24: =IFERROR(INDEX(Сотрудники!$A$3:$A$40,SMALL(IF((Сотрудники!$D$3:$D$40="Менеджер")*(Сотрудники!$G$3:$G$40=""),ROW($E$1:$E$37)),ROW(E23))),"") ->  | S24: =IFERROR(INDEX(Сотрудники!$A$3:$A$40,SMALL(IF(Сотрудники!$H$3:$H$40=TRUE,ROW($E$1:$E$37)),ROW(E24))),"") ->  | T24: =IFERROR(IF(VLOOKUP(S24,KPI!I:R,10,FALSE)<1,$K$3+VLOOKUP(S24,KPI!I:L,4,FALSE),IF(VLOOKUP(S24,KPI!I:R,10,FALSE)=1,Расчеты!$L$3+VLOOKUP(S24,KPI!I:L,4,FALSE),IF(VLOOKUP(S24,KPI!I:R,10,FALSE)>1,Расчеты!$M$3*'pivot table'!$AQ$4+VLOOKUP(S24,KPI!I:L,4,FALSE),""))),"") -> 
O25: =IFERROR(INDEX(Сотрудники!$A$3:$A$40,SMALL(IF((Сотрудники!$D$3:$D$40="Мастер")*(Сотрудники!$G$3:$G$40=""),ROW($E$1:$E$37)),ROW(E24))),"") ->  | P25: =IFERROR(INDEX(Сотрудники!$A$3:$A$40,SMALL(IF((Сотрудники!$D$3:$D$40="Менеджер")*(Сотрудники!$G$3:$G$40=""),ROW($E$1:$E$37)),ROW(E24))),"") ->  | S25: =IFERROR(INDEX(Сотрудники!$A$3:$A$40,SMALL(IF(Сотрудники!$H$3:$H$40=TRUE,ROW($E$1:$E$37)),ROW(E25))),"") ->  | T25: =IFERROR(IF(VLOOKUP(S25,KPI!I:R,10,FALSE)<1,$K$3+VLOOKUP(S25,KPI!I:L,4,FALSE),IF(VLOOKUP(S25,KPI!I:R,10,FALSE)=1,Расчеты!$L$3+VLOOKUP(S25,KPI!I:L,4,FALSE),IF(VLOOKUP(S25,KPI!I:R,10,FALSE)>1,Расчеты!$M$3*'pivot table'!$AQ$4+VLOOKUP(S25,KPI!I:L,4,FALSE),""))),"") -> 
O26: =IFERROR(INDEX(Сотрудники!$A$3:$A$40,SMALL(IF((Сотрудники!$D$3:$D$40="Мастер")*(Сотрудники!$G$3:$G$40=""),ROW($E$1:$E$37)),ROW(E25))),"") ->  | P26: =IFERROR(INDEX(Сотрудники!$A$3:$A$40,SMALL(IF((Сотрудники!$D$3:$D$40="Менеджер")*(Сотрудники!$G$3:$G$40=""),ROW($E$1:$E$37)),ROW(E25))),"") ->  | S26: =IFERROR(INDEX(Сотрудники!$A$3:$A$40,SMALL(IF(Сотрудники!$H$3:$H$40=TRUE,ROW($E$1:$E$37)),ROW(E26))),"") ->  | T26: =IFERROR(IF(VLOOKUP(S26,KPI!I:R,10,FALSE)<1,$K$3+VLOOKUP(S26,KPI!I:L,4,FALSE),IF(VLOOKUP(S26,KPI!I:R,10,FALSE)=1,Расчеты!$L$3+VLOOKUP(S26,KPI!I:L,4,FALSE),IF(VLOOKUP(S26,KPI!I:R,10,FALSE)>1,Расчеты!$M$3*'pivot table'!$AQ$4+VLOOKUP(S26,KPI!I:L,4,FALSE),""))),"") -> 
